{"text_format":"1","workbook":"xlsx","n_sheets":12,"sheets":["Caractérisation implantation","Fractions sortantes","processus","B2 en mélange","Evaluation quantitative","réglementation","tableau de bord","Fractions et services","Evaluation qualitative","Fractions potentielles","Base de donnée","menu déroulant"],"not_rendered":{"charts":2,"images":2,"macros":1,"external_links":1,"defined_names":1,"comments":0,"pivot_tables":0},"unopened":[],"bounds":{"document_bytes":16777216,"sheet_cells":100000,"rows_first":2000,"rows_last":500,"rows_between":2000,"halvings":0,"cell_chars":16384,"cell_head_chars":4096},"cells_cut":0,"cells_raw":0,"read":"whole","date_system":"1900"}

{"sheet":"Caractérisation implantation","index":0,"n_rows":52,"n_cols":19,"rows_kept":52,"cut":false,"hidden":false,"merged":[[4,9,4,10],[8,8,51,8],[8,0,26,0],[8,4,21,4]]}
[]
[null,null,null,null,null,null,null,null,null,"Caractérisation de l'implantation"]
[]
[null,null,null,null,null,null,null,null,null,"Implantation concernée : "]
[]
[]
[null,"Tableau 1",null,null,null,null,null,null,null,"Tableau 2",null,null,null,null,null,"Tableau 3 "]
[null,"Données de caractérisation","données",null,null,"Caractérisation","données",null,null,"Services","Présence",null,null,null,null,"Données de caractérisation","Année 01","Année 02","Année 03"]
[null,"Superficie au sol non batie (voiries, espaces verts, etc.) [m²]",null,null,"Caractérisation de l'activité","Nombre de journées cumulées d'hospitalisation [nbr/an]",null,null,"caractérisation des services","Médecine cardiovasculaire et thoracique","oui",null,null,null,null,"Quantité des déchets sans  risque (type B1) en kg/ton"]
[null,"Superficie plancher tous services confondus [m²]",null,null,null,"Nombre de consultations  [nbr/an]",null,null,null,"Médecine dentaire - orthodontie","oui",null,null,null,null,"Prix total pour les déchets sans risques (type B1) tout compris"]
[null,"Taux d'occupation annuel des lits [% en moyenne annuelle]",null,null,null,"Nombre de consultations ambulatoires (se distingue des hospitalisation par une intervention ne demandant pas de passer la nuit à l'hopital) [nbr/an]",null,null,null,"Médecine endocrino-diabétologie","oui",null,null,null,null,"Quantité des déchets risque (type B2) en kg/ton"]
[null,null,null,null,null,"Nombre de visiteurs \"autres\" (visiteurs accompagnant les patients) [nbr/an]",null,null,null,"Médecine générale",null,null,null,null,null,"Coût total pour les déchets à risque (type B2) tout compris"]
[null,null,null,null,null,"Nombre d'employés [tot de pers.]",null,null,null,"Médecine gériatrique",null,null,null,null,null,"Nombre de lits 1"]
[null,null,null,null,null,"Nombre d'employés [ETP]",null,null,null,"Médecine gynécologique",null,null,null,null,null,"Nombre de consultations 2"]
[null,null,null,null,null,"Nombre d'ouvrier [tot de pers.]",null,null,null,"Médecine hématologie",null,null,null,null,null,"Nombre d'hospitalisations 3"]
[null,null,null,null,null,"Nombre d'ouvrier [ETP]",null,null,null,"Médecine interne",null,null,null,null,null,"Nombre de jours d'occupation des lits  4"]
[null,null,null,null,null,"Nombre d'indépendant [tot de pers.]",null,null,null,"Médecine neurologique",null,null,null,null,null,"Nombre total d'employés 5"]
[null,null,null,null,null,"Nombre d'indépendant [ETP]",null,null,null,"Médecine nucléaire",null,null,null,null,null,"Nombre d'employés à temps plein (FTE)"]
[null,null,null,null,null,"Nombre de bénévole [tot de pers.]",null,null,null,"Médecine obstetrique",null,null,null,null,null,"Nombre d'heures de travail 6"]
[null,null,null,null,null,"Nombre de bénévole [ETP]",null,null,null,"Médecine oncologique",null,null,null,null,null,"Nombre de patients oncologiques 7"]
[null,null,null,null,null,"Nombre total de personnes actives [pers.]",null,null,null,"Médecine orthopédique et traumatologie",null,null,null,null,null,"Nombre d'interventions chirurgicales 8"]
[null,null,null,null,null,"Nombre total d'heures travaillées [h/an]",null,null,null,"Médecine Oto-Rhino-Laryngologique"]
[null,null,null,null,null,null,null,null,null,"Médecine pédiatrique"]
[null,null,null,null,null,null,null,null,null,"Médecine physique",null,null,null,1,"nombre de lits indépendemment du type "]
[null,null,null,null,null,null,null,null,null,"Médecine psychiatrique",null,null,null,2,"nombre de consultations en ambulatoire et concultations suivi d'un admission "]
[null,null,null,null,null,null,null,null,null,"Unité de soins palliatif",null,null,null,3,"nombre d'admission y compris les admissions d'un jour "]
[null,null,null,null,null,null,null,null,null,"Morgue",null,null,null,4,"nombre de jours avec occupation des lits (maximum = nombre de lits x 365) "]
[null,null,null,null,null,null,null,null,null,"Unité bloc opératoire",null,null,null,5,"nombre d'employés y compris les employés à temps partiel "]
[null,null,null,null,null,null,null,null,null,"Unité de consultation",null,null,null,6,"nombre d'heures de travail "]
[null,null,null,null,null,null,null,null,null,"Unité de laboratoire",null,null,null,7,"nombre de patients oncologique tous diagnoses "]
[null,null,null,null,null,null,null,null,null,"Unité de réveil / anesthésie",null,null,null,8,"nombre d'interventions chirurgicales y compris les intervention ambulatoire"]
[null,null,null,null,null,null,null,null,null,"Unité de soins généraux"]
[null,null,null,null,null,null,null,null,null,"Unité de soins intensifs"]
[null,null,null,null,null,null,null,null,null,"Unité du sommeil"]
[null,null,null,null,null,null,null,null,null,"Unité de stérilisation"]
[null,null,null,null,null,null,null,null,null,"Unité transport des patients"]
[null,null,null,null,null,null,null,null,null,"Unité d'examen"]
[null,null,null,null,null,null,null,null,null,"Unité d'imagerie médicale"]
[null,null,null,null,null,null,null,null,null,"Unité d'urgence"]
[null,null,null,null,null,null,null,null,null,"Unité pharmaceutique"]
[null,null,null,null,null,null,null,null,null,"Surface commerciale"]
[null,null,null,null,null,null,null,null,null,"Service de l'éducation - école"]
[null,null,null,null,null,null,null,null,null,"Services religieux"]
[null,null,null,null,null,null,null,null,null,"chambre"]
[null,null,null,null,null,null,null,null,null,"Accueil"]
[null,null,null,null,null,null,null,null,null,"Service administratif"]
[null,null,null,null,null,null,null,null,null,"Service informatique"]
[null,null,null,null,null,null,null,null,null,"Service de maintenance"]
[null,null,null,null,null,null,null,null,null,"Service entretien"]
[null,null,null,null,null,null,null,null,null,"Service housekeeping"]
[null,null,null,null,null,null,null,null,null,"Service restauration - cuisine"]
[null,null,null,null,null,null,null,null,null,"Zone de stockage"]

{"sheet":"Fractions sortantes","index":1,"n_rows":69,"n_cols":5,"rows_kept":69,"cut":false,"hidden":false,"merged":[[4,0,4,5],[1,0,1,2]]}
[]
["Identifier les fractions faisant l'objet d'un tri"]
[]
["Bon à savoir : "]
[" - On entend par fraction \"un ensemble de déchets qui sont collectés ensemble en vue d’être pris en charge et traités ensuite de manière sélective \"\n\nA partir de quel moment une fraction est-elle considérée comme triée ? \n- Une fraction est triée dans la mesure où elle peut être prise en charge par un opérateur qui en assurera une valorisation optimale, selon une filière bien définie. \n\n- Toutes fractions produites dans le cadre de l’intervention d’un co-contractant (ex : entreprise de construction, d’entretien d’espace vert,…) sont renseignées comme « Contractant ». A la condition expresse qu’une convention, un contrat ou un cahier des charges mentionne la prise en charge de la fraction. \n\n- Toutes fractions faisant l’objet d’un processus de tri et collecte en interne mais ne correspondant pas à une fraction spécifique (ex : les papiers ne sont pas considérés comme une fraction triée si ceux-ci sont mélangés au stade de l’enlèvement final avec les cartons. Dans ce cas de figure, la fraction à sélectionner comme « oui » est le papier/carton).\n\n/!\\ Lors de chaque modification, appuyer sur le bouton ci-dessous pour actualiser le reste de l'outil. \n"]
[]
[]
[]
[]
[]
[null,null,"Oui"]
[null,null,"Non","Applicable"]
[null,null,"Contractant","Non applicable"]
[null,"Fractions","Tri réalisé","obligation de tri","seuil"]
[null,"B2 en mélange","Oui",null,"pas de seuil"]
[null,"Amalgames dentaires",null,null,"pas de seuil"]
[null,"Appareils d'éclairages"]
[null,"Asbeste ciment"]
[null,"Bois contaminé ou dangereux (C)"]
[null,"Bois en mélange",null,null,"à-p-d 2,5m³/semaine"]
[null,"Bois non traité (A)"]
[null,"Bois traité (B)"]
[null,"Cartons"]
[null,"Cartouches d'imprimante"]
[null,"Déchets anatomiques"]
[null,"Déchets verts"]
[null,"DEEE en mélange"]
[null,"DMIA"]
[null,"Encombrants"]
[null,"Extincteurs"]
[null,"Frigolite"]
[null,"Gros appareils électriques"]
[null,"Huiles à usage alimentaire",null,null,"à-p-d 50L/sem"]
[null,"Huiles de moteur"]
[null,"Inertes"]
[null,"Lampes à décharges"]
[null,"Marc de café"]
[null,"Matériel informatique"]
[null,"Médicaments en mélange",null,null,"pas de seuil"]
[null,"Médicaments inusités"]
[null,"Médicaments périmés"]
[null,"Mégots"]
[null,"Mercure"]
[null,"Métaux en mélange",null,null,"à-p-d 120L/sem"]
[null,"Papiers"]
[null,"Papiers confidentiels"]
[null,"Papiers et cartons",null,null,"à-p-d 30L/sem"]
[null,"PCB et PCT"]
[null,"Peintures et solvants"]
[null,"Petits appareils électriques"]
[null,"Pièces anatomiques"]
[null,"Piles et accumulateurs",null,null,"pas de seuil"]
[null,"Plaques de plâtre"]
[null,"Plastiques d'emballage",null,null,"à-p-d 200L/sem"]
[null,"Plastiques rigides"]
[null,"Plâtre"]
[null,"PMC",null,null,"pas de seuil"]
[null,"Pneus usagés"]
[null,"Produits dangereux en mélange"]
[null,"Produits d'entretien"]
[null,"Résiduels (B1_A)"]
[null,"Restes alimentaires"]
[null,"Textiles non souillés",null,null,"à-p-d 500L/sem"]
[null,"TV et écrans"]
[null,"Végétaux ",null,null,"çà-p-d 2,5m³/semaine"]
[null,"Verres d'emballage",null,null,"à-p-d 120L/sem"]
[null,"Verres plats"]
[null,"VHU"]
[null,"Xylène et formol"]

{"sheet":"processus","index":2,"n_rows":60,"n_cols":18,"rows_kept":60,"cut":false,"hidden":true,"merged":[[9,2,9,3],[0,1,0,3],[1,3,1,8],[5,5,5,8],[5,1,6,3],[14,6,14,7],[18,1,21,3],[18,5,21,8],[19,15,19,17],[20,15,20,17],[26,1,26,3],[26,10,26,12],[26,16,26,17],[27,10,27,12],[29,11,29,12],[30,16,30,17],[35,16,35,17],[38,16,38,17],[39,1,42,3],[39,10,42,12],[42,15,45,17],[33,16,33,17],[60,1,63,3],[60,5,63,8],[47,1,47,3],[47,5,47,8],[48,1,48,3],[51,2,51,3],[56,6,56,7]]}
[]
[null,"Fraction concernée : "]
[]
[]
[]
[null,"Lieu de poduction (Services)",null,null,null,"Collecte interne"]
[]
[null,null,null,null,null,null,null,"unité"]
[null,null,null,null,null,"fréquence : "]
[null,"Contenant : ",null,null,null,"OU enlèvement sur demande : "]
[null,null,null,"unité"]
[null,"Volume : ",null,null,null,"responsable(s) : ( à cocher) "]
[null,null,null,null,null,"- Service housekeeping",null,null,"oui"]
[null,"Coût : ",null,"€/an",null,"- Service logistique",null,null,"non"]
[null,null,null,null,null,"- Autre : ",null,null,"non"]
[null,"Nombre: ",null,{"$f":"IFERROR(VLOOKUP(D14,'menu déroulant'!E2:F7,2,FALSE),\"\")","v":"pg"}]
[]
[null,"Remarques : ",null,null,null,"Remarques : "]
[]
[null,null,null,null,null,null,null,null,null,null,null,null,null,null,null,"Evacuation"]
[null,null,null,null,null,null,null,null,null,null,null,null,null,null,null,"(Enlèvement réalisé par le prestataire) "]
[null,null,null,null,null,null,null,null,null,null,null,null,null,null,null,null,null,"unité"]
[null,null,null,null,null,null,null,null,null,null,null,null,null,null,null,"Fréquence : "]
[null,null,null,null,null,null,null,null,null,null,null,null,null,null,null,"OU enlèvement sur demande : "]
[]
[null,null,null,null,null,null,null,null,null,null,null,null,null,null,null,"Nombre de collecte(s) annuelle(s) : "]
[null,"Collecte interne",null,null,null,null,null,null,null,null,"Lieu d'enlèvement"]
[null,null,null,null,null,null,null,null,null,null,"(Parc à conteneur) "]
[null,null,null,"unité"]
[null,"fréquence : ",null,null,null,null,null,null,null,null,"Contenant : "]
[null,"OU enlèvement sur demande : ",null,null,null,null,null,null,null,null,"Contenant sur demande : ",null,null,null,null,"Opérateur"]
[null,null,null,null,null,null,null,null,null,null,null,null,"unité"]
[null,"responsable(s) : ( à cocher) ",null,null,null,null,null,null,null,null,"Volume",null,null,null,null,"Quantité annuelle (kg) : "]
[null,"- Service housekeeping",null,"oui"]
[null,"- Service logistique",null,"non",null,null,null,null,null,null,"Coût : ",null,"€/ mois"]
[null,"- Autre : ",null,"non",null,null,null,null,null,null,null,null,null,null,null,"Cout annuel : "]
[null,null,null,null,null,null,null,null,null,null,"Nombre: ",null,{"$f":"IFERROR(VLOOKUP(M35,'menu déroulant'!E2:F7,2,FALSE),\"\")","v":"mois/an"}]
[null,null,null,null,null,null,null,null,null,null,null,null,null,null,null,"Traitement final : "]
[null,"Remarques : ",null,null,null,null,null,null,null,null,"Remarques : "]
[]
[]
[null,null,null,null,null,null,null,null,null,null,null,null,null,null,null,"Remarques : "]
[null,null,null,null,null,null,null,null,null,null,null,null,null,null,null," "]
[null,null,null,null,null,null,null,null,null,null,"ex : localisation, si traitement interne, etc."]
[]
[]
[null,null,null,null,null,null,null,null,null,null,null,null,null,null,null,"si facturation PG (prix global), kg, collecte"]
[null,"Lieu de stockage intermédiaire",null,null,null,"Collecte interne"]
[null,"(local déchet) "]
[null,null,null,null,null,null,null,"unité"]
[null,null,null,null,null,"fréquence : "]
[null,"Contenant : ",null,null,null,"OU enlèvement sur demande : "]
[null,null,null,"unité"]
[null,"Volume : ",null,null,null,"responsable(s) : ( à cocher) "]
[null,null,null,null,null,"- Service housekeeping",null,null,"non"]
[null,"Coût : ",null,"€/ mois",null,"- Service logistique",null,null,"oui"]
[null,null,null,null,null,"- Autre : ",null,null,"non"]
[null,"Nombre: ",null,{"$f":"IFERROR(VLOOKUP(D56,'menu déroulant'!E2:F7,2,FALSE),\"\")","v":"mois/an"}]
[]
[null,"Remarques : ",null,null,null,"Remarques : "]

{"sheet":"B2 en mélange","index":3,"n_rows":68,"n_cols":22,"rows_kept":68,"cut":false,"hidden":false,"merged":[[38,14,41,16],[39,1,42,3],[41,20,41,21],[60,1,63,3],[60,5,63,8],[44,20,44,21],[47,1,47,3],[47,5,47,8],[48,1,48,3],[56,6,56,7],[48,19,51,21],[26,1,26,3],[26,14,26,16],[26,19,26,21],[32,20,32,21],[36,20,36,21],[18,10,21,12],[18,13,21,15],[18,16,21,18],[18,19,21,21],[25,14,25,16],[25,19,25,21],[68,1,80,8],[0,1,0,3],[1,3,1,9],[5,1,5,21],[6,1,6,21],[9,2,9,3],[9,5,9,6],[9,8,9,9],[9,11,9,12],[9,14,9,15],[9,17,9,18],[28,15,28,16],[9,20,9,21],[18,1,21,3],[18,4,21,6],[18,7,21,9]]}
[]
[null,"Fraction concernée : ",null,"B2 en mélange"]
[]
[]
[]
[null,"Lieu de production"]
[null,"(Service)"]
[]
[]
[null,"Contenant : ",null,null,"Contenant : ",null,null,"Contenant : ",null,null,"Contenant : ",null,null,"Contenant : ",null,null,"Contenant : ",null,null,"Contenant : "]
[]
[null,"Volume : ",null,"L","Volume : ",null,"L","Volume : ",null,"L","Volume : ",null,"L","Volume : ",null,"L","Volume : ",null,"L","Volume : ",null,"L"]
[]
[null,"Coût : ",null,"€/pce","Coût : ",null,"€/pce","Coût : ",null,"€/pce","Coût : ",null,"€/pce","Coût : ",null,"€/pce","Coût : ",null,"€/pce","Coût : ",null,"€/pce"]
[]
[null,"Nombre: ",null,"pces/an","Nombre: ",null,"pces/an","Nombre: ",null,"pces/an","Nombre: ",null,"pces/an","Nombre: ",null,"pces/an","Nombre: ",null,"pces/an","Nombre: ",null,"pces/an"]
[]
[null,"Remarques :",null,null,"Remarques : ",null,null,"Remarques : ",null,null,"Remarques : ",null,null,"Remarques : ",null,null,"Remarques : ",null,null,"Remarques : "]
[]
[]
[]
[]
[null," (Préciser si les achats correspondent à l'utilisation annuelle) ",null,null," (Préciser si les achats correspondent à l'utilisation annuelle) ",null,null," (Préciser si les achats correspondent à l'utilisation annuelle) ",null,null," (Préciser si les achats correspondent à l'utilisation annuelle) ",null,null," (Préciser si les achats correspondent à l'utilisation annuelle) ",null,null," (Préciser si les achats correspondent à l'utilisation annuelle) ",null,null," (Préciser si les achats correspondent à l'utilisation annuelle) "]
[]
[]
[null,null,null,null,null,null,null,null,null,null,null,null,null,null,"Lieu d'enlèvement",null,null,null,null,"Evacuation"]
[null,"collecte interne",null,null,null,null,null,null,null,null,null,null,null,null,"(Parc à conteneur) ",null,null,null,null,"(Enlèvement et traitement)  "]
[null,null,null,null,null,null,null,null,null,null,null,null,null,null,null,null,null,null,null,null,null,"unité"]
[null,null,null,"unité",null,null,null,null,null,null,null,null,null,null,"Contenant : ",null,null,null,null,"Fréquence : "]
[null,"Fréquence : ",null,"/jour",null,null,null,null,null,null,null,null,null,null,"Contenant sur demande : ",null,null,null,null,"OU enlèvement sur demande : "]
[null,"OU enlèvement sur demande : ",null,null,null,null,null,null,null,null,null,null,null,null,null,null,"unité"]
[null,null,null,null,null,null,null,null,null,null,null,null,null,null,"Volume : ",null,null,null,null,"Nombre de collecte(s) annuelle(s) : "]
[null,"Responsable(s) :"]
[null,"- Service housekeeping",null,"oui",null,null,null,null,null,null,null,null,null,null,"Coût : "]
[null,"- Service logistique",null,"non"]
[null,"- Autre : ",null,"non",null,null,null,null,null,null,null,null,null,null,"Nombre : ",null,{"$f":"IFERROR(VLOOKUP(Q34,'menu déroulant'!E2:F7,2,FALSE),\"\")","v":""}]
[null,null,null,null,null,null,null,null,null,null,null,null,null,null,null,null,null,null,null,"Opérateur"]
[null,null,null,null,null,null,null,null,null,null,null,null,null,null,"Remarques : "]
[null,"Remarques : ",null,null,null,null,null,null,null,null,null,null,null,null,null,null,null,null,null,"Quantité annuelle (kg) : "]
[]
[]
[null,null,null,null,null,null,null,null,null,null,null,null,null,null,null,null,null,null,null,"Cout annuel : ","IC"]
[null,null,null,null,null,null,null,null,null,null,null,null,null,null,"ex : localisation, si traitement interne, etc."]
[null,null,null,null,null,null,null,null,null,null,null,null,null,null,null,null,null,null,null,"Traitement final : "]
[]
[]
[]
[null,"Lieu de stockage intermédiaire",null,null,null,"collecte interne",null,null,null,null,null,null,null,null,null,null,null,null,null,"Remarques : "]
[null,"(local déchet) ",null,null,null,null,null,null,null,null,null,null,null,null,null,null,null,null,null," "]
[null,null,null,null,null,null,null,"unité"]
[null,null,null,null,null,"Fréquence : ",null,"/jour"]
[null,"Contenants : ","idem lieu de production",null,null,"OU enlèvement sur demande : ",null,"non"]
[null,null,null,null,null,null,null,null,null,null,null,null,null,null,null,null,null,null,null,"si facturation PG (prix global), kg, collecte"]
[null,null,null,null,null,"Responsable(s) : "]
[null,null,null,null,null,"- Service housekeeping",null,null,"non"]
[null,null,null,null,null,"- Service logistique",null,null,"oui"]
[null,null,null,null,null,"- Autre : ",null,null,"non"]
[]
[]
[null,"Remarques : ",null,null,null,"Remarques : "]
[]
[]
[]
[]
[]
[]
[]
[null,"Description du processus d'acheminement au sein des services des contenants B2 vides : "]

{"sheet":"Evaluation quantitative","index":4,"n_rows":118,"n_cols":12,"rows_kept":118,"cut":false,"hidden":false,"merged":[[40,10,41,10],[41,0,41,2],[43,7,49,7],[43,9,49,9],[40,9,41,9],[40,8,41,8],[43,8,49,8],[40,3,40,6],[40,7,41,7]]}
["hypothèse"]
[" nombre de jours/an:","/jour",365]
["nombre de semaines/an","/sem",52]
["nombre de mois/an","/mois",12]
["nombre d'année/an","/an",1]
["permet de faire la convertion entre temps de travail en heure et temps de travail annuel"]
[]
["Couts internes"]
[]
[]
["Type d'opérateur de la gestion des déchets",null,"Cout horaire [€/h]","Temps de travail [h]","Unité",null,"Temps de travail annuel [h]","Cout total","Remarques"]
["Housekeeping",null,null,null,"/jour",{"$f":"VLOOKUP(E12,$B$2:$C$5,2,FALSE)","v":365},{"$f":"D12*F12","v":0},{"$f":"C12*G12","v":0}]
["Logistic",null,null,null,"/jour",{"$f":"VLOOKUP(E13,$B$2:$C$5,2,FALSE)","v":365},{"$f":"D13*F13","v":0},{"$f":"C13*G13","v":0}]
["Autres : ….............................",null,null,null,"/jour",365,0,0]
["Autres : ….............................",null,null,null,"/jour",365,0,0]
["Autres: …..............................",null,null,null,"/jour",365,0,0]
["Autres : ….............................",null,null,null,"/jour",365,0,0]
[null,null,null,null,null,null,null,{"$f":"SUM(H12:H17)","v":0}]
[]
["Il a été considéré que les dalles extérieures de stockage représentent un coût annuel de 30,33 €/m² et les utility sale de 226,95 €/m²."]
["Types de zones de stockage",null,"Superficie [m²]","Nombre de zones de stockage similaires","Superficie totale [m²]",null,"Couts au m² \n[ €/m²]","Cout total","Remarques"]
["Utility Sale",null,null,null,{"$f":"C22*D22","v":0},{"$f":"VLOOKUP(E22,$B$2:$C$5,2,FALSE)","v":{"$error":"#N/A"}},null,{"$f":"G22*E22","v":0}]
["Dalle extérieure",null,null,null,{"$f":"C23*D23","v":0},{"$f":"VLOOKUP(E23,$B$2:$C$5,2,FALSE)","v":{"$error":"#N/A"}},null,{"$f":"G23*E23","v":0}]
["Autres : ….............................",null,null,null,0,{"$error":"#N/A"},null,0]
["Autres : ….............................",null,null,null,0,{"$error":"#N/A"},null,0]
["Autres: …..............................",null,null,null,0,{"$error":"#N/A"},null,0]
["Autres : ….............................",null,null,null,0,{"$error":"#N/A"},null,0]
["Autres : ….............................",null,null,null,{"$f":"C28*D28","v":0},{"$f":"VLOOKUP(E28,$B$2:$C$5,2,FALSE)","v":{"$error":"#N/A"}},null,0]
["Autres : ….............................",null,null,null,0,{"$error":"#N/A"},null,0]
["Autres : ….............................",null,null,null,{"$f":"C30*D30","v":0},{"$f":"VLOOKUP(E30,$B$2:$C$5,2,FALSE)","v":{"$error":"#N/A"}},null,{"$f":"G30*E30","v":0}]
["Autres : ….............................",null,null,null,0,{"$error":"#N/A"},null,0]
["Autres : ….............................",null,null,null,0,{"$error":"#N/A"},null,0]
["Autres : ….............................",null,null,null,0,{"$error":"#N/A"},null,0]
["Autres : ….............................",null,null,null,0,{"$error":"#N/A"},null,0]
["Autres : ….............................",null,null,null,0,{"$error":"#N/A"},null,0]
["Autres : ….............................",null,null,null,0,{"$error":"#N/A"},null,0]
[null,null,null,null,{"$f":"SUM(E22:E36)","v":0},null,null,{"$f":"SUM(H22:H36)","v":0}]
[]
["Couts externes"]
[]
[null,null,null,"Couts annuels liés aux contenants",null,null,null,"Couts annuel liés à l'enlèvement","couts totaux","couts totaux par kilos","Poids"]
["Inventaire des contenants",null,null,"Prix unitaire","Nombre",null,"Cout annuel "]
["Fractions",null,"Liste des contenants ","[€/ unité]","[unité]",null,"[€/ an]","[€/ an]","[€]","[€/kg]","[Kg]"]
["B2",null,{"$f":"CONCATENATE('B2 en mélange'!C10,\" \",'B2 en mélange'!C12,\" \",'B2 en mélange'!D12)","v":"  L"},{"$f":"'B2 en mélange'!C14","v":0},{"$f":"'B2 en mélange'!C16","v":0},null,{"$f":"IFERROR(D44*E44,0)","v":0},null,{"$f":"IFERROR(H44+SUM(G44:G50),\"\")","v":0},{"$f":"IFERROR(SUM(G44:G50)+H44/K44,\"\")","v":""},{"$f":"'B2 en mélange'!V40","v":0},{"$f":"I44","v":0}]
["B2",null,{"$f":"CONCATENATE('B2 en mélange'!F10,\" \",'B2 en mélange'!F12,\" \",'B2 en mélange'!G12)","v":"  L"},{"$f":"'B2 en mélange'!F14","v":0},{"$f":"'B2 en mélange'!F16","v":0},null,{"$f":"IFERROR(D45*E45,0)","v":0}]
["B2",null,{"$f":"CONCATENATE('B2 en mélange'!I10,\" \",'B2 en mélange'!I12,\" \",'B2 en mélange'!J12)","v":"  L"},{"$f":"'B2 en mélange'!I14","v":0},{"$f":"'B2 en mélange'!I16","v":0},null,0]
["B2",null,{"$f":"CONCATENATE('B2 en mélange'!L10,\" \",'B2 en mélange'!L12,\" \",'B2 en mélange'!M12)","v":"  L"},{"$f":"'B2 en mélange'!L14","v":0},{"$f":"'B2 en mélange'!L16","v":0},null,0]
["B2",null,{"$f":"CONCATENATE('B2 en mélange'!O10,\" \",'B2 en mélange'!O12,\" \",'B2 en mélange'!P12)","v":"  L"},{"$f":"'B2 en mélange'!O14","v":0},{"$f":"'B2 en mélange'!O16","v":0},null,0]
["B2",null,{"$f":"CONCATENATE('B2 en mélange'!R10,\" \",'B2 en mélange'!R12,\" \",'B2 en mélange'!S12)","v":"  L"},{"$f":"'B2 en mélange'!R14","v":0},{"$f":"'B2 en mélange'!R16","v":0},null,0]
["B2",null,{"$f":"CONCATENATE('B2 en mélange'!U10,\" \",'B2 en mélange'!U12,\" \",'B2 en mélange'!V12)","v":"  L"},{"$f":"'B2 en mélange'!U14","v":0},{"$f":"'B2 en mélange'!U16","v":0},null,0]
[{"$f":"'Fractions sortantes'!B16","v":"Amalgames dentaires"},null,{"$f":"IFERROR(INDIRECT(ADDRESS(30,12,1,1,A51)),\"\")","v":""},{"$f":"IFERROR(INDIRECT(ADDRESS(35,12,1,1,A51)),\"\")","v":""},{"$f":"IFERROR(INDIRECT(ADDRESS(37,12,1,1,A51)),\"\")","v":""},null,0,{"$f":"IFERROR(INDIRECT(ADDRESS(36,17,1,1,A51)),\"\")","v":""},{"$f":"IFERROR(G51+H51,\"\")","v":""},{"$f":"IFERROR((G51+H51)/K51,\"\")","v":""},{"$f":"IFERROR(INDIRECT(ADDRESS(34,17,1,1,A51)),\"\")","v":""}]
[{"$f":"'Fractions sortantes'!B17","v":"Appareils d'éclairages"},null,{"$f":"IFERROR(INDIRECT(ADDRESS(30,12,1,1,A52)),\"\")","v":""},{"$f":"IFERROR(INDIRECT(ADDRESS(35,12,1,1,A52)),\"\")","v":""},{"$f":"IFERROR(INDIRECT(ADDRESS(37,12,1,1,A52)),\"\")","v":""},null,0,{"$f":"IFERROR(INDIRECT(ADDRESS(36,17,1,1,A52)),\"\")","v":""},{"$f":"IFERROR(G52+H52,\"\")","v":""},"",""]
[{"$f":"'Fractions sortantes'!B18","v":"Asbeste ciment"},null,"","","",null,0,"","","",""]
[{"$f":"'Fractions sortantes'!B19","v":"Bois contaminé ou dangereux (C)"},null,"","","",null,0,"","","",""]
[{"$f":"'Fractions sortantes'!B20","v":"Bois en mélange"},null,"","","",null,0,"","","",""]
[{"$f":"'Fractions sortantes'!B21","v":"Bois non traité (A)"},null,"","","",null,0,"","","",""]
[{"$f":"'Fractions sortantes'!B22","v":"Bois traité (B)"},null,"","","",null,0,"","","",""]
[{"$f":"'Fractions sortantes'!B23","v":"Cartons"},null,"","","",null,0,"","","",""]
[{"$f":"'Fractions sortantes'!B24","v":"Cartouches d'imprimante"},null,"","","",null,0,"","","",""]
[{"$f":"'Fractions sortantes'!B25","v":"Déchets anatomiques"},null,"","","",null,0,"","","",""]
[{"$f":"'Fractions sortantes'!B26","v":"Déchets verts"},null,"","","",null,0,"","","",""]
[{"$f":"'Fractions sortantes'!B27","v":"DEEE en mélange"},null,"","","",null,0,"","","",""]
[{"$f":"'Fractions sortantes'!B28","v":"DMIA"},null,"","","",null,0,"","","",""]
[{"$f":"'Fractions sortantes'!B29","v":"Encombrants"},null,"","","",null,0,"","","",""]
[{"$f":"'Fractions sortantes'!B30","v":"Extincteurs"},null,"","","",null,0,"","","",""]
[{"$f":"'Fractions sortantes'!B31","v":"Frigolite"},null,"","","",null,0,"","","",""]
[{"$f":"'Fractions sortantes'!B32","v":"Gros appareils électriques"},null,"","","",null,0,"","","",""]
[{"$f":"'Fractions sortantes'!B33","v":"Huiles à usage alimentaire"},null,"","","",null,0,"","","",""]
[{"$f":"'Fractions sortantes'!B34","v":"Huiles de moteur"},null,"","","",null,0,"","","",""]
[{"$f":"'Fractions sortantes'!B35","v":"Inertes"},null,"","","",null,0,"","","",""]
[{"$f":"'Fractions sortantes'!B36","v":"Lampes à décharges"},null,"","","",null,0,"","","",""]
[{"$f":"'Fractions sortantes'!B37","v":"Marc de café"},null,"","","",null,0,"","","",""]
[{"$f":"'Fractions sortantes'!B38","v":"Matériel informatique"},null,"","","",null,0,"","","",""]
[{"$f":"'Fractions sortantes'!B39","v":"Médicaments en mélange"},null,"","","",null,0,"","","",""]
[{"$f":"'Fractions sortantes'!B40","v":"Médicaments inusités"},null,"","","",null,0,"","","",""]
[{"$f":"'Fractions sortantes'!B41","v":"Médicaments périmés"},null,{"$f":"IFERROR(INDIRECT(ADDRESS(30,12,1,1,A76)),\"\")","v":""},{"$f":"IFERROR(INDIRECT(ADDRESS(35,12,1,1,A76)),\"\")","v":""},{"$f":"IFERROR(INDIRECT(ADDRESS(37,12,1,1,A76)),\"\")","v":""},null,0,{"$f":"IFERROR(INDIRECT(ADDRESS(36,17,1,1,A76)),\"\")","v":""},"","",""]
[{"$f":"'Fractions sortantes'!B42","v":"Mégots"},null,"","","",null,0,"","","",""]
[{"$f":"'Fractions sortantes'!B43","v":"Mercure"},null,"","","",null,0,"","","",""]
[{"$f":"'Fractions sortantes'!B44","v":"Métaux en mélange"},null,"","","",null,0,"","","",""]
[{"$f":"'Fractions sortantes'!B45","v":"Papiers"},null,"","","",null,0,"","","",""]
[{"$f":"'Fractions sortantes'!B46","v":"Papiers confidentiels"},null,"","","",null,0,"","","",""]
[{"$f":"'Fractions sortantes'!B47","v":"Papiers et cartons"},null,"","","",null,0,"","","",""]
[{"$f":"'Fractions sortantes'!B48","v":"PCB et PCT"},null,"","","",null,0,"","",{"$f":"IFERROR((G83+H83)/K83,\"\")","v":""},{"$f":"IFERROR(INDIRECT(ADDRESS(34,17,1,1,A83)),\"\")","v":""}]
[{"$f":"'Fractions sortantes'!B49","v":"Peintures et solvants"},null,"","","",null,0,"","","",""]
[{"$f":"'Fractions sortantes'!B50","v":"Petits appareils électriques"},null,"","","",null,0,"","","",""]
[{"$f":"'Fractions sortantes'!B51","v":"Pièces anatomiques"},null,"","","",null,0,"","","",""]
[{"$f":"'Fractions sortantes'!B52","v":"Piles et accumulateurs"},null,"","","",null,0,"","","",""]
[{"$f":"'Fractions sortantes'!B53","v":"Plaques de plâtre"},null,"","","",null,0,"","","",""]
[{"$f":"'Fractions sortantes'!B54","v":"Plastiques d'emballage"},null,"","","",null,0,"","","",""]
[{"$f":"'Fractions sortantes'!B55","v":"Plastiques rigides"},null,"","","",null,0,"","","",""]
[{"$f":"'Fractions sortantes'!B56","v":"Plâtre"},null,"","","",null,0,"","","",""]
[{"$f":"'Fractions sortantes'!B57","v":"PMC"},null,"","","",null,0,"","","",""]
[{"$f":"'Fractions sortantes'!B58","v":"Pneus usagés"},null,"","","",null,0,"","","",""]
[{"$f":"'Fractions sortantes'!B59","v":"Produits dangereux en mélange"},null,"","","",null,0,"","","",""]
[{"$f":"'Fractions sortantes'!B60","v":"Produits d'entretien"},null,"","","",null,0,"","","",""]
[{"$f":"'Fractions sortantes'!B61","v":"Résiduels (B1_A)"},null,"","","",null,0,"","","",""]
[{"$f":"'Fractions sortantes'!B62","v":"Restes alimentaires"},null,"","","",null,0,"","","",""]
[{"$f":"'Fractions sortantes'!B63","v":"Textiles non souillés"},null,"","","",null,0,"","","",""]
[{"$f":"'Fractions sortantes'!B64","v":"TV et écrans"},null,"","","",null,0,"","","",""]
[{"$f":"'Fractions sortantes'!B65","v":"Végétaux "},null,"","","",null,0,"","","",""]
[{"$f":"'Fractions sortantes'!B66","v":"Verres d'emballage"},null,"","","",null,0,"","","",""]
[{"$f":"'Fractions sortantes'!B67","v":"Verres plats"},null,"","","",null,0,"","","",""]
[{"$f":"'Fractions sortantes'!B68","v":"VHU"},null,"","","",null,0,"","","",""]
[{"$f":"'Fractions sortantes'!B69","v":"Xylène et formol"},null,"","","",null,0,"","","",""]
[null,null,null,null,null,null,{"$f":"SUM(G44:G104)","v":0},{"$f":"SUM(H44:H104)","v":0},{"$f":"SUM(I44:I104)","v":0},null,{"$f":"SUM(K44:K104)","v":0}]
[]
[]
["Résultats"]
["Couts internes",null,{"$f":"H18+H37","v":0}]
["Couts externes",null,{"$f":"G105+H105","v":0}]
["cout total annuel",null,{"$f":"SUM(C109:C110)","v":0}]
[]
[]
[]
["couts d'enlèvement",null,{"$f":"H105","v":0}]
["couts de conteneurs",null,{"$f":"G105","v":0}]
["couts de stockage",null,{"$f":"H37","v":0}]
["couts de main d'œuvre",null,{"$f":"H18","v":0}]

{"sheet":"réglementation","index":5,"n_rows":57,"n_cols":2,"rows_kept":57,"cut":false,"hidden":false,"merged":[]}
["Audit réglementaire"]
[]
["Conforme","C"]
["Point d'attention","PA"]
["Non conforme","NC"]
["Applicable","A"]
["Non applicable","NA"]
[]
["Obligations","Conformité"]
["Déchets de classe A et B1 : obligation de les éliminer ou valoriser comme des déchets assimilés"]
["Déchets de classe B2 : obligation d’éliminer ou valoriser les déchets via un tiers agréé pour la collecte et le transport "]
["Déchets de classe B2 : preuve de d’élimination: preuve à garder pendant 5 ans à disposition de l’administration"]
["Pièces anatomiques : inhumation ou crématorium"]
["Mélange de déchets : classes A et B1, classes A et B2, classes B1 et B2 ou les trois classes ? "]
["Gestion des déchets ainsi mélangés ?"]
["Registre des déchets B2 à tenir. A conserver pendant 5 ans"]
["Contenu minimum du registre des déchets B2"]
["Agrément des transporteurs et collecteurs de déchets dangereux de classe B2"]
["Formulaire de transport des déchets B2, lettre de voiture, CMR (à conserver pendant 5 ans)"]
["Déchets à trier :\n-\tPiles et accumulateurs, DEEE, HGFU, huiles minérales usagées, \n-\tPMC, P/C, Emballages industriels (housses, films et sacs plastiques), déchets métalliques,\n-\tDéchets végétaux, textiles, verre, bois\n-\tPapiers confidentiels, \n-\tAutres …  "]
["Preuve du respect de l’obligation de tri pour chaque fraction (factures, contrats et attestations). A conserver pendant 2 ans"]
["Contenu minimum des preuves "]
["Accès interdit au public et personne non autorisée"]
["Aire de stockage réservée aux déchets B1"]
["Revêtement des aires de stockage étanche, construites en matériaux incombustibles"]
["Sol de l’aire de stockage en pente pour écoulement des eaux vers le système d’évacuation des eaux usées "]
["Registre de déchets B1 : tenir à jour et contenu minimum (à conserver pendant 5 ans)"]
["Accès interdit au public et personne non autorisée"]
["Aire de stockage réservée aux déchets B2"]
["Identification des différents emballages de stockage : numéro UN3291 et portant la mention « déchets de classe B2 » + logo déchets B2 ou logo de déchets de classe B2 pour les petits récipients rigides (10 l max) + coordonnées de l’institution"]
["Récipients de collecte : déchets conditionnés dans\n-\tRécipients rigides en plastiques à usage unique, récipients en carton à usage unique, \n-\tOu dans un conteneur réutilisable opaque et étanche + sacs plastiques\n-\tAvec du matériel absorbant à l’intérieur"]
["Objets piquants, coupants et tranchants dans des récipients spécifiques (max 60 l)"]
["Plan de travail - Instruction de travail (propreté, incendie, organisation du stockage...)"]
["Registre de déchets B2 : tenir à jour et contenu minimum"]
["L'exploitant est tenu de fournir annuellement au Département du Sol et des Déchets de la Direction générale opérationnelle Agriculture, Ressources naturelles et Environnement du Service public de Wallonie une copie des informations présentes dans le registre"]
["Gestion des épanchements"]
["Obligation d’éliminer ou de valoriser les déchets dangereux en les confiant à un tiers agréé"]
["Registre des déchets dangereux/huiles usagées à tenir. A conserver pendant 5 ans"]
["Contenu minimum du registre des déchets "]
["Agréments des transporteurs et collecteurs de déchets dangereux/huiles usagées "]
["Déclaration déchets dangereux/huiles usagées (annuel)"]
["Etiquetage des déchets dangereux stockés conformément à l’AR relatif au transport de matières dangereuses"]
["Est-ce que l’hôpital est considéré comme une pharmacie ou un producteur (mise sur le marché) de médicaments ?"]
["Rangement des médicaments périmés ou non utilisés dans des récipients /conteneurs dédiés"]
["Identification sur la face extérieure des récipients comme étant exclusivement destinés au conditionnement des médicaments périmés "]
["Apposer de manière visible une étiquette d’identification de la pharmacie (institution stockant les médicaments) avant enlèvement "]
[]
["Nombre de ligne",{"$f":"COUNTA(B10:B46)","v":0}]
["Applicable",{"$f":"COUNTIFS($B$10:$B$46,\"A\")","v":0}]
["Nombre d'obligation non applicable",{"$f":"COUNTIFS($B$10:$B$46,\"NA\")","v":0}]
["Total des conformes",{"$f":"COUNTIFS($B$10:$B$46,\"C\")","v":0}]
["Total des points d'attention",{"$f":"COUNTIFS($B$10:$B$46,\"PA\")","v":0}]
["Total des non Conforme",{"$f":"COUNTIFS($B$10:$B$46,\"NC\")","v":0}]
["Nombre d'obligation applicable (total - non applicable - applicable) ",{"$f":"B48-B49-B50","v":0}]
["% Conforme",{"$f":"IFERROR((B51/B$54*100),\"\")","v":""}]
["% Point d'attention",{"$f":"IFERROR((B52/B$54*100),\"\")","v":""}]
["%Non conforme",{"$f":"IFERROR((B53/B$54*100),\"\")","v":""}]

{"sheet":"tableau de bord","index":6,"n_rows":31,"n_cols":16384,"rows_kept":31,"cut":false,"hidden":false,"merged":[]}
["Tableau de bord",null,null,null,null,null,null,null,null,null,null,null,null,null,null,null,null,null,null,null,null,null,null,null,null,null,null,null,null,null,null,null,null,null,null,null,null,null,null,null,null,null,null,null,null,null,null,null,null,null,null,null,null,null,null,null,null,null,null,null,null,null,null,null,null,null,null,null,null,null,null,null,null,null,null,null,null,null,null,null,null,null,null,null,null,null,null,null,null,null,null,"Couts internes","Couts internes","Couts internes","Couts internes","Couts internes","Couts internes","Couts internes","Couts internes","Couts internes","Couts internes","Couts internes","Couts internes","Couts internes","Couts internes","Couts internes","Couts internes","Couts internes","Couts internes","Couts internes","Couts internes","Couts internes","Couts internes","Couts internes","Couts internes","Couts internes","Couts internes","Couts internes","Couts internes","Couts internes","Couts internes","Couts internes","Couts internes","Couts internes","Couts internes","Couts internes","Couts internes","Couts internes","Couts internes","Couts internes","Couts internes","Couts internes","Couts internes","Couts internes","Couts internes","Couts internes","Couts internes","Couts internes","Couts internes","Couts internes","Couts internes","Couts internes","Couts internes","Couts internes","Couts internes","Couts internes","Couts internes","Couts internes","Couts internes","Couts internes","Couts internes","Couts internes","Couts internes","Couts internes","Couts internes","Couts internes","Couts internes","Couts internes","Couts internes","Couts internes","Couts internes","Couts internes","Couts internes","Couts internes","Couts internes","Couts internes","Couts internes","Couts internes","Couts internes","Couts internes","Couts internes","Couts internes","Couts internes","Couts internes","Couts internes","Couts internes","Couts internes","Couts internes","Couts internes","Couts internes","Couts internes","Couts internes","Couts internes","Couts internes","Couts internes","Couts internes","Couts internes","Couts internes","Couts internes","Couts internes","Couts internes","Couts internes","Couts internes","Couts internes","Couts internes","Couts internes","Couts internes","Couts internes","Couts internes","Couts internes","Couts internes","Couts internes","Couts internes","Couts internes","Couts internes","Couts internes","Couts internes","Couts internes","Couts internes","Couts internes","Couts internes","Couts internes","Couts internes","Couts internes","Couts internes","Couts internes","Couts internes","Couts internes","Couts internes","Couts internes","Couts internes","Couts internes","Couts internes","Couts internes","Couts internes","Couts internes","Couts internes","Couts internes","Couts internes","Couts internes","Couts internes","Couts internes","Couts internes","Couts internes","Couts internes","Couts internes","Couts internes","Couts internes","Couts internes","Couts internes","Couts internes","Couts internes","Couts internes","Couts internes","Couts internes","Couts internes","Couts internes","Couts internes","Couts internes","Couts internes","Couts internes","Couts internes","Couts internes","Couts internes","Couts internes","Couts internes","Couts internes","Couts internes","Couts internes","Couts internes","Couts internes","Couts internes","Couts internes","Couts internes","Couts internes","Couts internes","Couts internes","Couts internes","Couts internes","Couts internes","Couts internes","Couts internes","Couts internes","Couts internes","Couts internes","Couts internes","Couts internes","Couts internes","Couts internes","Couts internes","Couts internes","Couts internes","Couts internes","Couts internes","Couts internes","Couts internes","Couts internes","Couts internes","Couts internes","Couts internes","Couts internes","Couts internes","Couts internes","Couts internes","Couts internes","Couts internes","Couts internes","Couts internes","Couts internes","Couts internes","Couts internes","Couts internes","Couts internes","Couts internes","Couts internes","Couts internes","Couts internes","Couts internes","Couts internes","Couts internes","Couts internes","Couts internes","Couts internes","Couts internes","Couts internes","Couts internes","Couts internes","Couts internes","Couts internes","Couts internes","Couts internes","Couts internes","Couts internes","Couts internes","Couts internes","Couts internes","Couts internes","Couts internes","Couts internes","Couts internes","Couts internes","Couts internes","Couts internes","Couts internes","Couts internes","Couts internes","Couts internes","Couts internes","Couts internes","Couts internes","Couts internes","Couts internes","Couts internes","Couts internes","Couts internes","Couts internes","Couts internes","Couts internes","Couts internes","Couts internes","Couts internes","Couts internes","Couts internes","Couts internes","Couts internes","Couts internes","Couts internes","Couts internes","Couts internes","Couts internes","Couts internes","Couts internes","Couts internes","Couts internes","Couts internes","Couts internes","Couts internes","Couts internes","Couts internes","Couts internes","Couts internes","Couts internes","Couts internes","Couts internes","Couts internes","Couts internes","Couts internes","Couts internes","Couts internes","Couts internes","Couts internes","Couts internes","Couts internes","Couts internes","Couts internes","Couts internes","Couts internes","Couts internes","Couts internes","Couts internes","Couts internes","Couts internes","Couts internes","Couts internes","Couts internes","Couts internes","Couts internes","Couts internes","Couts internes","Couts internes","Couts internes","Couts internes","Couts internes","Couts internes","Couts internes","Couts internes","Couts internes","Couts internes","Couts internes","Couts internes","Couts internes","Couts internes","Couts internes","Couts internes","Couts internes","Couts internes","Couts internes","Couts internes","Couts internes","Couts internes","Couts internes","Couts internes","Couts internes","Couts internes","Couts internes","Couts internes","Couts internes","Couts internes","Couts internes","Couts internes","Couts internes","Couts internes","Couts internes","Couts internes","Couts internes","Couts internes","Couts internes","Couts internes","Couts internes","Couts internes","Couts internes","Couts internes","Couts internes","Couts internes","Couts internes","Couts internes","Couts internes","Couts internes","Couts internes","Couts internes","Couts internes","Couts internes","Couts internes","Couts internes","Couts internes","Couts internes","Couts internes","Couts internes","Couts internes","Couts internes","Couts internes","Couts internes","Couts internes","Couts internes","Couts internes","Couts internes","Couts internes","Couts internes","Couts internes","Couts internes","Couts internes","Couts internes","Couts internes","Couts internes","Couts internes","Couts internes","Couts internes","Couts internes","Couts internes","Couts internes","Couts internes","Couts internes","Couts internes","Couts internes","Couts internes","Couts internes","Couts internes","Couts internes","Couts internes","Couts internes","Couts internes","Couts internes","Couts internes","Couts internes","Couts internes","Couts internes","Couts internes","Couts internes","Couts internes","Couts internes","Couts internes","Couts internes","Couts internes","Couts internes","Couts internes","Couts internes","Couts internes","Couts internes","Couts internes","Couts internes","Couts internes","Couts internes","Couts internes","Couts internes","Couts internes","Couts internes","Couts internes","Couts internes","Couts internes","Couts internes","Couts internes","Couts internes","Couts internes","Couts internes","Couts internes","Couts internes","Couts internes","Couts internes","Couts internes","Couts internes","Couts internes","Couts internes","Couts internes","Couts internes","Couts internes","Couts internes","Couts internes","Couts internes","Couts internes","Couts internes","Couts internes","Couts internes","Couts internes","Couts internes","Couts internes","Couts internes","Couts internes","Couts internes","Couts internes","Couts internes","Couts internes","Couts internes","Couts internes","Couts internes","Couts internes","Couts internes","Couts internes","Couts internes","Couts internes","Couts internes","Couts internes","Couts internes","Couts internes","Couts internes","Couts internes","Couts internes","Couts internes","Couts internes","Couts internes","Couts internes","Couts internes","Couts internes","Couts internes","Couts internes","Couts internes","Couts internes","Couts internes","Couts internes","Couts internes","Couts internes","Couts internes","Couts internes","Couts internes","Couts internes","Couts internes","Couts internes","Couts internes","Couts internes","Couts internes","Couts internes","Couts internes","Couts internes","Couts internes","Couts internes","Couts internes","Couts internes","Couts internes","Couts internes","Couts internes","Couts internes","Couts internes","Couts internes","Couts internes","Couts internes","Couts internes","Couts internes","Couts internes","Couts internes","Couts internes","Couts internes","Couts internes","Couts internes","Couts internes","Couts internes","Couts internes","Couts internes","Couts internes","Couts internes","Couts internes","Couts internes","Couts internes","Couts internes","Couts internes","Couts internes","Couts internes","Couts internes","Couts internes","Couts internes","Couts internes","Couts internes","Couts internes","Couts internes","Couts internes","Couts internes","Couts internes","Couts internes","Couts internes","Couts internes","Couts internes","Couts internes","Couts internes","Couts internes","Couts internes","Couts internes","Couts internes","Couts internes","Couts internes","Couts internes","Couts internes","Couts internes","Couts internes","Couts internes","Couts internes","Couts internes","Couts internes","Couts internes","Couts internes","Couts internes","Couts internes","Couts internes","Couts internes","Couts internes","Couts internes","Couts internes","Couts internes","Couts internes","Couts internes","Couts internes","Couts internes","Couts internes","Couts internes","Couts internes","Couts internes","Couts internes","Couts internes","Couts internes","Couts internes","Couts internes","Couts internes","Couts internes","Couts internes","Couts internes","Couts internes","Couts internes","Couts internes","Couts internes","Couts internes","Couts internes","Couts internes","Couts internes","Couts internes","Couts internes","Couts internes","Couts internes","Couts internes","Couts internes","Couts internes","Couts internes","Couts internes","Couts internes","Couts internes","Couts internes","Couts internes","Couts internes","Couts internes","Couts internes","Couts internes","Couts internes","Couts internes","Couts internes","Couts internes","Couts internes","Couts internes","Couts internes","Couts internes","Couts internes","Couts internes","Couts internes","Couts internes","Couts internes","Couts internes","Couts internes","Couts internes","Couts internes","Couts internes","Couts internes","Couts internes","Couts internes","Couts internes","Couts internes","Couts internes","Couts internes","Couts internes","Couts internes","Couts internes","Couts internes","Couts internes","Couts internes","Couts internes","Couts internes","Couts internes","Couts internes","Couts internes","Couts internes","Couts internes","Couts internes","Couts internes","Couts internes","Couts internes","Couts internes","Couts internes","Couts internes","Couts internes","Couts internes","Couts internes","Couts internes","Couts internes","Couts internes","Couts internes","Couts internes","Couts internes","Couts internes","Couts internes","Couts internes","Couts internes","Couts internes","Couts internes","Couts internes","Couts internes","Couts internes","Couts internes","Couts internes","Couts internes","Couts internes","Couts internes","Couts internes","Couts internes","Couts internes","Couts internes","Couts internes","Couts internes","Couts internes","Couts internes","Couts internes","Couts internes","Couts internes","Couts internes","Couts internes","Couts internes","Couts internes","Couts internes","Couts internes","Couts internes","Couts internes","Couts internes","Couts internes","Couts internes","Couts internes","Couts internes","Couts internes","Couts internes","Couts internes","Couts internes","Couts internes","Couts internes","Couts internes","Couts internes","Couts internes","Couts internes","Couts internes","Couts internes","Couts internes","Couts internes","Couts internes","Couts internes","Couts internes","Couts internes","Couts internes","Couts internes","Couts internes","Couts internes","Couts internes","Couts internes","Couts internes","Couts internes","Couts internes","Couts internes","Couts internes","Couts internes","Couts internes","Couts internes","Couts internes","Couts internes","Couts internes","Couts internes","Couts internes","Couts internes","Couts internes","Couts internes","Couts internes","Couts internes","Couts internes","Couts internes","Couts internes","Couts internes","Couts internes","Couts internes","Couts internes","Couts internes","Couts internes","Couts internes","Couts internes","Couts internes","Couts internes","Couts internes","Couts internes","Couts internes","Couts internes","Couts internes","Couts internes","Couts internes","Couts internes","Couts internes","Couts internes","Couts internes","Couts internes","Couts internes","Couts internes","Couts internes","Couts internes","Couts internes","Couts internes","Couts internes","Couts internes","Couts internes","Couts internes","Couts internes","Couts internes","Couts internes","Couts internes","Couts internes","Couts internes","Couts internes","Couts internes","Couts internes","Couts internes","Couts internes","Couts internes","Couts internes","Couts internes","Couts internes","Couts internes","Couts internes","Couts internes","Couts internes","Couts internes","Couts internes","Couts internes","Couts internes","Couts internes","Couts internes","Couts internes","Couts internes","Couts internes","Couts internes","Couts internes","Couts internes","Couts internes","Couts internes","Couts internes","Couts internes","Couts internes","Couts internes","Couts internes","Couts internes","Couts internes","Couts internes","Couts internes","Couts internes","Couts internes","Couts internes","Couts internes","Couts internes","Couts internes","Couts internes","Couts internes","Couts internes","Couts internes","Couts internes","Couts internes","Couts internes","Couts internes","Couts internes","Couts internes","Couts internes","Couts internes","Couts internes","Couts internes","Couts internes","Couts internes","Couts internes","Couts internes","Couts internes","Couts internes","Couts internes","Couts internes","Couts internes","Couts internes","Couts internes","Couts internes","Couts internes","Couts internes","Couts internes","Couts internes","Couts internes","Couts internes","Couts internes","Couts internes","Couts internes","Couts internes","Couts internes","Couts internes","Couts internes","Couts internes","Couts internes","Couts internes","Couts internes","Couts internes","Couts internes","Couts internes","Couts internes","Couts internes","Couts internes","Couts internes","Couts internes","Couts internes","Couts internes","Couts internes","Couts internes","Couts internes","Couts internes","Couts internes","Couts internes","Couts internes","Couts internes","Couts internes","Couts internes","Couts internes","Couts internes","Couts internes","Couts internes","Couts internes","Couts internes","Couts internes","Couts internes","Couts internes","Couts internes","Couts internes","Couts internes","Couts internes","Couts internes","Couts internes","Couts internes","Couts internes","Couts internes","Couts internes","Couts internes","Couts internes","Couts internes","Couts internes","Couts internes","Couts internes","Couts internes","Couts internes","Couts internes","Couts internes","Couts internes","Couts internes","Couts internes","Couts internes","Couts internes","Couts internes","Couts internes","Couts internes","Couts internes","Couts internes","Couts internes","Couts internes","Couts internes","Couts internes","Couts internes","Couts internes","Couts internes","Couts internes","Couts internes","Couts internes","Couts internes","Couts internes","Couts internes","Couts internes","Couts internes","Couts internes","Couts internes","Couts internes","Couts internes","Couts internes","Couts internes","Couts internes","Couts internes","Couts internes","Couts internes","Couts internes","Couts internes","Couts internes","Couts internes","Couts internes","Couts internes","Couts internes","Couts internes","Couts internes","Couts internes","Couts internes","Couts internes","Couts internes","Couts internes","Couts internes","Couts internes","Couts internes","Couts internes","Couts internes","Couts internes","Couts internes","Couts internes","Couts internes","Couts internes","Couts internes","Couts internes","Couts internes","Couts internes","Couts internes","Couts internes","Couts internes","Couts internes","Couts internes","Couts internes","Couts internes","Couts internes","Couts internes","Couts internes","Couts internes","Couts internes","Couts internes","Couts internes","Couts internes","Couts internes","Couts internes","Couts internes","Couts internes","Couts internes","Couts internes","Couts internes","Couts internes","Couts internes","Couts internes","Couts internes","Couts internes","Couts internes","Couts internes","Couts internes","Couts internes","Couts internes","Couts internes","Couts internes","Couts internes","Couts internes","Couts internes","Couts internes","Couts internes","Couts internes","Couts internes","Couts internes","Couts internes","Couts internes","Couts internes","Couts internes","Couts internes","Couts internes","Couts internes","Couts internes","Couts internes","Couts internes","Couts internes","Couts internes","Couts internes","Couts internes","Couts internes","Couts internes","Couts internes","Couts internes","Couts internes","Couts internes","Couts internes","Couts internes","Couts internes","Couts internes","Couts internes","Couts internes","Couts internes","Couts internes","Couts internes","Couts internes","Couts internes","Couts internes","Couts internes","Couts internes","Couts internes","Couts internes","Couts internes","Couts internes","Couts internes","Couts internes","Couts internes","Couts internes","Couts internes","Couts internes","Couts internes","Couts internes","Couts internes","Couts internes","Couts internes","Couts internes","Couts internes","Couts internes","Couts internes","Couts internes","Couts internes","Couts internes","Couts internes","Couts internes","Couts internes","Couts internes","Couts internes","Couts internes","Couts internes","Couts internes","Couts internes","Couts internes","Couts internes","Couts internes","Couts internes","Couts internes","Couts internes","Couts internes","Couts internes","Couts internes","Couts internes","Couts internes","Couts internes","Couts internes","Couts internes","Couts internes","Couts internes","Couts internes","Couts internes","Couts internes","Couts internes","Couts internes","Couts internes","Couts internes","Couts internes","Couts internes","Couts internes","Couts internes","Couts internes","Couts internes","Couts internes","Couts internes","Couts internes","Couts internes","Couts internes","Couts internes","Couts internes","Couts internes","Couts internes","Couts internes","Couts internes","Couts internes","Couts internes","Couts internes","Couts internes","Couts internes","Couts internes","Couts internes","Couts internes","Couts internes","Couts internes","Couts internes","Couts internes","Couts internes","Couts internes","Couts internes","Couts internes","Couts internes","Couts internes","Couts internes","Couts internes","Couts internes","Couts internes","Couts internes","Couts internes","Couts internes","Couts internes","Couts internes","Couts internes","Couts internes","Couts internes","Couts internes","Couts internes","Couts internes","Couts internes","Couts internes","Couts internes","Couts internes","Couts internes","Couts internes","Couts internes","Couts internes","Couts internes","Couts internes","Couts internes","Couts internes","Couts internes","Couts internes","Couts internes","Couts internes","Couts internes","Couts internes","Couts internes","Couts internes","Couts internes","Couts internes","Couts internes","Couts internes","Couts internes","Couts internes","Couts internes","Couts internes","Couts internes","Couts internes","Couts internes","Couts internes","Couts internes","Couts internes","Couts internes","Couts internes","Couts internes","Couts internes","Couts internes","Couts internes","Couts internes","Couts internes","Couts internes","Couts internes","Couts internes","Couts internes","Couts internes","Couts internes","Couts internes","Couts internes","Couts internes","Couts internes","Couts internes","Couts internes","Couts internes","Couts internes","Couts internes","Couts internes","Couts internes","Couts internes","Couts internes","Couts internes","Couts internes","Couts internes","Couts internes","Couts internes","Couts internes","Couts internes","Couts internes","Couts internes","Couts internes","Couts internes","Couts internes","Couts internes","Couts internes","Couts internes","Couts internes","Couts internes","Couts internes","Couts internes","Couts internes","Couts internes","Couts internes","Couts internes","Couts internes","Couts internes","Couts internes","Couts internes","Couts internes","Couts internes","Couts internes","Couts internes","Couts internes","Couts internes","Couts internes","Couts internes","Couts internes","Couts internes","Couts internes","Couts internes","Couts internes","Couts internes","Couts internes","Couts internes","Couts internes","Couts internes","Couts internes","Couts internes","Couts internes","Couts internes","Couts internes","Couts internes","Couts internes","Couts internes","Couts internes","Couts internes","Couts internes","Couts internes","Couts internes","Couts internes","Couts internes","Couts internes","Couts internes","Couts internes","Couts internes","Couts internes","Couts internes","Couts internes","Couts internes","Couts internes","Couts internes","Couts internes","Couts internes","Couts internes","Couts internes","Couts internes","Couts internes","Couts internes","Couts internes","Couts internes","Couts internes","Couts internes","Couts internes","Couts internes","Couts internes","Couts internes","Couts internes","Couts internes","Couts internes","Couts internes","Couts internes","Couts internes","Couts internes","Couts internes","Couts internes","Couts internes","Couts internes","Couts internes","Couts internes","Couts internes","Couts internes","Couts internes","Couts internes","Couts internes","Couts internes","Couts internes","Couts internes","Couts internes","Couts internes","Couts internes","Couts internes","Couts internes","Couts internes","Couts internes","Couts internes","Couts internes","Couts internes","Couts internes","Couts internes","Couts internes","Couts internes","Couts internes","Couts internes","Couts internes","Couts internes","Couts internes","Couts internes","Couts internes","Couts internes","Couts internes","Couts internes","Couts internes","Couts internes","Couts internes","Couts internes","Couts internes","Couts internes","Couts internes","Couts internes","Couts internes","Couts internes","Couts internes","Couts internes","Couts internes","Couts internes","Couts internes","Couts internes","Couts internes","Couts internes","Couts internes","Couts internes","Couts internes","Couts internes","Couts internes","Couts internes","Couts internes","Couts internes","Couts internes","Couts internes","Couts internes","Couts internes","Couts internes","Couts internes","Couts internes","Couts internes","Couts internes","Couts internes","Couts internes","Couts internes","Couts internes","Couts internes","Couts internes","Couts internes","Couts internes","Couts internes","Couts internes","Couts internes","Couts internes","Couts internes","Couts internes","Couts internes","Couts internes","Couts internes","Couts internes","Couts internes","Couts internes","Couts internes","Couts internes","Couts internes","Couts internes","Couts internes","Couts internes","Couts internes","Couts internes","Couts internes","Couts internes","Couts internes","Couts internes","Couts internes","Couts internes","Couts internes","Couts internes","Couts internes","Couts internes","Couts internes","Couts internes","Couts internes","Couts internes","Couts internes","Couts internes","Couts internes","Couts internes","Couts internes","Couts internes","Couts internes","Couts internes","Couts internes","Couts internes","Couts internes","Couts internes","Couts internes","Couts internes","Couts internes","Couts internes","Couts internes","Couts internes","Couts internes","Couts internes","Couts internes","Couts internes","Couts internes","Couts internes","Couts internes","Couts internes","Couts internes","Couts internes","Couts internes","Couts internes","Couts internes","Couts internes","Couts internes","Couts internes","Couts internes","Couts internes","Couts internes","Couts internes","Couts internes","Couts internes","Couts internes","Couts internes","Couts internes","Couts internes","Couts internes","Couts internes","Couts internes","Couts internes","Couts internes","Couts internes","Couts internes","Couts internes","Couts internes","Couts internes","Couts internes","Couts internes","Couts internes","Couts internes","Couts internes","Couts internes","Couts internes","Couts internes","Couts internes","Couts internes","Couts internes","Couts internes","Couts internes","Couts internes","Couts internes","Couts internes","Couts internes","Couts internes","Couts internes","Couts internes","Couts internes","Couts internes","Couts internes","Couts internes","Couts internes","Couts internes","Couts internes","Couts internes","Couts internes","Couts internes","Couts internes","Couts internes","Couts internes","Couts internes","Couts internes","Couts internes","Couts internes","Couts internes","Couts internes","Couts internes","Couts internes","Couts internes","Couts internes","Couts internes","Couts internes","Couts internes","Couts internes","Couts internes","Couts internes","Couts internes","Couts internes","Couts internes","Couts internes","Couts internes","Couts internes","Couts internes","Couts internes","Couts internes","Couts internes","Couts internes","Couts internes","Couts internes","Couts internes","Couts internes","Couts internes","Couts internes","Couts internes","Couts internes","Couts internes","Couts internes","Couts internes","Couts internes","Couts internes","Couts internes","Couts internes","Couts internes","Couts internes","Couts internes","Couts internes","Couts internes","Couts internes","Couts internes","Couts internes","Couts internes","Couts internes","Couts internes","Couts internes","Couts internes","Couts internes","Couts internes","Couts internes","Couts internes","Couts internes","Couts internes","Couts internes","Couts internes","Couts internes","Couts internes","Couts internes","Couts internes","Couts internes","Couts internes","Couts internes","Couts internes","Couts internes","Couts internes","Couts internes","Couts internes","Couts internes","Couts internes","Couts internes","Couts internes","Couts internes","Couts internes","Couts internes","Couts internes","Couts internes","Couts internes","Couts internes","Couts internes","Couts internes","Couts internes","Couts internes","Couts internes","Couts internes","Couts internes","Couts internes","Couts internes","Couts internes","Couts internes","Couts internes","Couts internes","Couts internes","Couts internes","Couts internes","Couts internes","Couts internes","Couts internes","Couts internes","Couts internes","Couts internes","Couts internes","Couts internes","Couts internes","Couts internes","Couts internes","Couts internes","Couts internes","Couts internes","Couts internes","Couts internes","Couts internes","Couts internes","Couts internes","Couts internes","Couts internes","Couts internes","Couts internes","Couts internes","Couts internes","Couts internes","Couts internes","Couts internes","Couts internes","Couts internes","Couts internes","Couts internes","Couts internes","Couts internes","Couts internes","Couts internes","Couts internes","Couts internes","Couts internes","Couts internes","Couts internes","Couts internes","Couts internes","Couts internes","Couts internes","Couts internes","Couts internes","Couts internes","Couts internes","Couts internes","Couts internes","Couts internes","Couts internes","Couts internes","Couts internes","Couts internes","Couts internes","Couts internes","Couts internes","Couts internes","Couts internes","Couts internes","Couts internes","Couts internes","Couts internes","Couts internes","Couts internes","Couts internes","Couts internes","Couts internes","Couts internes","Couts internes","Couts internes","Couts internes","Couts internes","Couts internes","Couts internes","Couts internes","Couts internes","Couts internes","Couts internes","Couts internes","Couts internes","Couts internes","Couts internes","Couts internes","Couts internes","Couts internes","Couts internes","Couts internes","Couts internes","Couts internes","Couts internes","Couts internes","Couts internes","Couts internes","Couts internes","Couts internes","Couts internes","Couts internes","Couts internes","Couts internes","Couts internes","Couts internes","Couts internes","Couts internes","Couts internes","Couts internes","Couts internes","Couts internes","Couts internes","Couts internes","Couts internes","Couts internes","Couts internes","Couts internes","Couts internes","Couts internes","Couts internes","Couts internes","Couts internes","Couts internes","Couts internes","Couts internes","Couts internes","Couts internes","Couts internes","Couts internes","Couts internes","Couts internes","Couts internes","Couts internes","Couts internes","Couts internes","Couts internes","Couts internes","Couts internes","Couts internes","Couts internes","Couts internes","Couts internes","Couts internes","Couts internes","Couts internes","Couts internes","Couts internes","Couts internes","Couts internes","Couts internes","Couts internes","Couts internes","Couts internes","Couts internes","Couts internes","Couts internes","Couts internes","Couts internes","Couts internes","Couts internes","Couts internes","Couts internes","Couts internes","Couts internes","Couts internes","Couts internes","Couts internes","Couts internes","Couts internes","Couts internes","Couts internes","Couts internes","Couts internes","Couts internes","Couts internes","Couts internes","Couts internes","Couts internes","Couts internes","Couts internes","Couts internes","Couts internes","Couts internes","Couts internes","Couts internes","Couts internes","Couts internes","Couts internes","Couts internes","Couts internes","Couts internes","Couts internes","Couts internes","Couts internes","Couts internes","Couts internes","Couts internes","Couts internes","Couts internes","Couts internes","Couts internes","Couts internes","Couts internes","Couts internes","Couts internes","Couts internes","Couts internes","Couts internes","Couts internes","Couts internes","Couts internes","Couts internes","Couts internes","Couts internes","Couts internes","Couts internes","Couts internes","Couts internes","Couts internes","Couts internes","Couts internes","Couts internes","Couts internes","Couts internes","Couts internes","Couts internes","Couts internes","Couts internes","Couts internes","Couts internes","Couts internes","Couts internes","Couts internes","Couts internes","Couts internes","Couts internes","Couts internes","Couts internes","Couts internes","Couts internes","Couts internes","Couts internes","Couts internes","Couts internes","Couts internes","Couts internes","Couts internes","Couts internes","Couts internes","Couts internes","Couts internes","Couts internes","Couts internes","Couts internes","Couts internes","Couts internes","Couts internes","Couts internes","Couts internes","Couts internes","Couts internes","Couts internes","Couts internes","Couts internes","Couts internes","Couts internes","Couts internes","Couts internes","Couts internes","Couts internes","Couts internes","Couts internes","Couts internes","Couts internes","Couts internes","Couts internes","Couts internes","Couts internes","Couts internes","Couts internes","Couts internes","Couts internes","Couts internes","Couts internes","Couts internes","Couts internes","Couts internes","Couts internes","Couts internes","Couts internes","Couts internes","Couts internes","Couts internes","Couts internes","Couts internes","Couts internes","Couts internes","Couts internes","Couts internes","Couts internes","Couts internes","Couts internes","Couts internes","Couts internes","Couts internes","Couts internes","Couts internes","Couts internes","Couts internes","Couts internes","Couts internes","Couts internes","Couts internes","Couts internes","Couts internes","Couts internes","Couts internes","Couts internes","Couts internes","Couts internes","Couts internes","Couts internes","Couts internes","Couts internes","Couts internes","Couts internes","Couts internes","Couts internes","Couts internes","Couts internes","Couts internes","Couts internes","Couts internes","Couts internes","Couts internes","Couts internes","Couts internes","Couts internes","Couts internes","Couts internes","Couts internes","Couts internes","Couts internes","Couts internes","Couts internes","Couts internes","Couts internes","Couts internes","Couts internes","Couts internes","Couts internes","Couts internes","Couts internes","Couts internes","Couts internes","Couts internes","Couts internes","Couts internes","Couts internes","Couts internes","Couts internes","Couts internes","Couts internes","Couts internes","Couts internes","Couts internes","Couts internes","Couts internes","Couts internes","Couts internes","Couts internes","Couts internes","Couts internes","Couts internes","Couts internes","Couts internes","Couts internes","Couts internes","Couts internes","Couts internes","Couts internes","Couts internes","Couts internes","Couts internes","Couts internes","Couts internes","Couts internes","Couts internes","Couts internes","Couts internes","Couts internes","Couts internes","Couts internes","Couts internes","Couts internes","Couts internes","Couts internes","Couts internes","Couts internes","Couts internes","Couts internes","Couts internes","Couts internes","Couts internes","Couts internes","Couts internes","Couts internes","Couts internes","Couts internes","Couts internes","Couts internes","Couts internes","Couts internes","Couts internes","Couts internes","Couts internes","Couts internes","Couts internes","Couts internes","Couts internes","Couts internes","Couts internes","Couts internes","Couts internes","Couts internes","Couts internes","Couts internes","Couts internes","Couts internes","Couts internes","Couts internes","Couts internes","Couts internes","Couts internes","Couts internes","Couts internes","Couts internes","Couts internes","Couts internes","Couts internes","Couts internes","Couts internes","Couts internes","Couts internes","Couts internes","Couts internes","Couts internes","Couts internes","Couts internes","Couts internes","Couts internes","Couts internes","Couts internes","Couts internes","Couts internes","Couts internes","Couts internes","Couts internes","Couts internes","Couts internes","Couts internes","Couts internes","Couts internes","Couts internes","Couts internes","Couts internes","Couts internes","Couts internes","Couts internes","Couts internes","Couts internes","Couts internes","Couts internes","Couts internes","Couts internes","Couts internes","Couts internes","Couts internes","Couts internes","Couts internes","Couts internes","Couts internes","Couts internes","Couts internes","Couts internes","Couts internes","Couts internes","Couts internes","Couts internes","Couts internes","Couts internes","Couts internes","Couts internes","Couts internes","Couts internes","Couts internes","Couts internes","Couts internes","Couts internes","Couts internes","Couts internes","Couts internes","Couts internes","Couts internes","Couts internes","Couts internes","Couts internes","Couts internes","Couts internes","Couts internes","Couts internes","Couts internes","Couts internes","Couts internes","Couts internes","Couts internes","Couts internes","Couts internes","Couts internes","Couts internes","Couts internes","Couts internes","Couts internes","Couts internes","Couts internes","Couts internes","Couts internes","Couts internes","Couts internes","Couts internes","Couts internes","Couts internes","Couts internes","Couts internes","Couts internes","Couts internes","Couts internes","Couts internes","Couts internes","Couts internes","Couts internes","Couts internes","Couts internes","Couts internes","Couts internes","Couts internes","Couts internes","Couts internes","Couts internes","Couts internes","Couts internes","Couts internes","Couts internes","Couts internes","Couts internes","Couts internes","Couts internes","Couts internes","Couts internes","Couts internes","Couts internes","Couts internes","Couts internes","Couts internes","Couts internes","Couts internes","Couts internes","Couts internes","Couts internes","Couts internes","Couts internes","Couts internes","Couts internes","Couts internes","Couts internes","Couts internes","Couts internes","Couts internes","Couts internes","Couts internes","Couts internes","Couts internes","Couts internes","Couts internes","Couts internes","Couts internes","Couts internes","Couts internes","Couts internes","Couts internes","Couts internes","Couts internes","Couts internes","Couts internes","Couts internes","Couts internes","Couts internes","Couts internes","Couts internes","Couts internes","Couts internes","Couts internes","Couts internes","Couts internes","Couts internes","Couts internes","Couts internes","Couts internes","Couts internes","Couts internes","Couts internes","Couts internes","Couts internes","Couts internes","Couts internes","Couts internes","Couts internes","Couts internes","Couts internes","Couts internes","Couts internes","Couts internes","Couts internes","Couts internes","Couts internes","Couts internes","Couts internes","Couts internes","Couts internes","Couts internes","Couts internes","Couts internes","Couts internes","Couts internes","Couts internes","Couts internes","Couts internes","Couts internes","Couts internes","Couts internes","Couts internes","Couts internes","Couts internes","Couts internes","Couts internes","Couts internes","Couts internes","Couts internes","Couts internes","Couts internes","Couts internes","Couts internes","Couts internes","Couts internes","Couts internes","Couts internes","Couts internes","Couts internes","Couts internes","Couts internes","Couts internes","Couts internes","Couts internes","Couts internes","Couts internes","Couts internes","Couts internes","Couts internes","Couts internes","Couts internes","Couts internes","Couts internes","Couts internes","Couts internes","Couts internes","Couts internes","Couts internes","Couts internes","Couts internes","Couts internes","Couts internes","Couts internes","Couts internes","Couts internes","Couts internes","Couts internes","Couts internes","Couts internes","Couts internes","Couts internes","Couts internes","Couts internes","Couts internes","Couts internes","Couts internes","Couts internes","Couts internes","Couts internes","Couts internes","Couts internes","Couts internes","Couts internes","Couts internes","Couts internes","Couts internes","Couts internes","Couts internes","Couts internes","Couts internes","Couts internes","Couts internes","Couts internes","Couts internes","Couts internes","Couts internes","Couts internes","Couts internes","Couts internes","Couts internes","Couts internes","Couts internes","Couts internes","Couts internes","Couts internes","Couts internes","Couts internes","Couts internes","Couts internes","Couts internes","Couts internes","Couts internes","Couts internes","Couts internes","Couts internes","Couts internes","Couts internes","Couts internes","Couts internes","Couts internes","Couts internes","Couts internes","Couts internes","Couts internes","Couts internes","Couts internes","Couts internes","Couts internes","Couts internes","Couts internes","Couts internes","Couts internes","Couts internes","Couts internes","Couts internes","Couts internes","Couts internes","Couts internes","Couts internes","Couts internes","Couts internes","Couts internes","Couts internes","Couts internes","Couts internes","Couts internes","Couts internes","Couts internes","Couts internes","Couts internes","Couts internes","Couts internes","Couts internes","Couts internes","Couts internes","Couts internes","Couts internes","Couts internes","Couts internes","Couts internes","Couts internes","Couts internes","Couts internes","Couts internes","Couts internes","Couts internes","Couts internes","Couts internes","Couts internes","Couts internes","Couts internes","Couts internes","Couts internes","Couts internes","Couts internes","Couts internes","Couts internes","Couts internes","Couts internes","Couts internes","Couts internes","Couts internes","Couts internes","Couts internes","Couts internes","Couts internes","Couts internes","Couts internes","Couts internes","Couts internes","Couts internes","Couts internes","Couts internes","Couts internes","Couts internes","Couts internes","Couts internes","Couts internes","Couts internes","Couts internes","Couts internes","Couts internes","Couts internes","Couts internes","Couts internes","Couts internes","Couts internes","Couts internes","Couts internes","Couts internes","Couts internes","Couts internes","Couts internes","Couts internes","Couts internes","Couts internes","Couts internes","Couts internes","Couts internes","Couts internes","Couts internes","Couts internes","Couts internes","Couts internes","Couts internes","Couts internes","Couts internes","Couts internes","Couts internes","Couts internes","Couts internes","Couts internes","Couts internes","Couts internes","Couts internes","Couts internes","Couts internes","Couts internes","Couts internes","Couts internes","Couts internes","Couts internes","Couts internes","Couts internes","Couts internes","Couts internes","Couts internes","Couts internes","Couts internes","Couts internes","Couts internes","Couts internes","Couts internes","Couts internes","Couts internes","Couts internes","Couts internes","Couts internes","Couts internes","Couts internes","Couts internes","Couts internes","Couts internes","Couts internes","Couts internes","Couts internes","Couts internes","Couts internes","Couts internes","Couts internes","Couts internes","Couts internes","Couts internes","Couts internes","Couts internes","Couts internes","Couts internes","Couts internes","Couts internes","Couts internes","Couts internes","Couts internes","Couts internes","Couts internes","Couts internes","Couts internes","Couts internes","Couts internes","Couts internes","Couts internes","Couts internes","Couts internes","Couts internes","Couts internes","Couts internes","Couts internes","Couts internes","Couts internes","Couts internes","Couts internes","Couts internes","Couts internes","Couts internes","Couts internes","Couts internes","Couts internes","Couts internes","Couts internes","Couts internes","Couts internes","Couts internes","Couts internes","Couts internes","Couts internes","Couts internes","Couts internes","Couts internes","Couts internes","Couts internes","Couts internes","Couts internes","Couts internes","Couts internes","Couts internes","Couts internes","Couts internes","Couts internes","Couts internes","Couts internes","Couts internes","Couts internes","Couts internes","Couts internes","Couts internes","Couts internes","Couts internes","Couts internes","Couts internes","Couts internes","Couts internes","Couts internes","Couts internes","Couts internes","Couts internes","Couts internes","Couts internes","Couts internes","Couts internes","Couts internes","Couts internes","Couts internes","Couts internes","Couts internes","Couts internes","Couts internes","Couts internes","Couts internes","Couts internes","Couts internes","Couts internes","Couts internes","Couts internes","Couts internes","Couts internes","Couts internes","Couts internes","Couts internes","Couts internes","Couts internes","Couts internes","Couts internes","Couts internes","Couts internes","Couts internes","Couts internes","Couts internes","Couts internes","Couts internes","Couts internes","Couts internes","Couts internes","Couts internes","Couts internes","Couts internes","Couts internes","Couts internes","Couts internes","Couts internes","Couts internes","Couts internes","Couts internes","Couts internes","Couts internes","Couts internes","Couts internes","Couts internes","Couts internes","Couts internes","Couts internes","Couts internes","Couts internes","Couts internes","Couts internes","Couts internes","Couts internes","Couts internes","Couts internes","Couts internes","Couts internes","Couts internes","Couts internes","Couts internes","Couts internes","Couts internes","Couts internes","Couts internes","Couts internes","Couts internes","Couts internes","Couts internes","Couts internes","Couts internes","Couts internes","Couts internes","Couts internes","Couts internes","Couts internes","Couts internes","Couts internes","Couts internes","Couts internes","Couts internes","Couts internes","Couts internes","Couts internes","Couts internes","Couts internes","Couts internes","Couts internes","Couts internes","Couts internes","Couts internes","Couts internes","Couts internes","Couts internes","Couts internes","Couts internes","Couts internes","Couts internes","Couts internes","Couts internes","Couts internes","Couts internes","Couts internes","Couts internes","Couts internes","Couts internes","Couts internes","Couts internes","Couts internes","Couts internes","Couts internes","Couts internes","Couts internes","Couts internes","Couts internes","Couts internes","Couts internes","Couts internes","Couts internes","Couts internes","Couts internes","Couts internes","Couts internes","Couts internes","Couts internes","Couts internes","Couts internes","Couts internes","Couts internes","Couts internes","Couts internes","Couts internes","Couts internes","Couts internes","Couts internes","Couts internes","Couts internes","Couts internes","Couts internes","Couts internes","Couts internes","Couts internes","Couts internes","Couts internes","Couts internes","Couts internes","Couts internes","Couts internes","Couts internes","Couts internes","Couts internes","Couts internes","Couts internes","Couts internes","Couts internes","Couts internes","Couts internes","Couts internes","Couts internes","Couts internes","Couts internes","Couts internes","Couts internes","Couts internes","Couts internes","Couts internes","Couts internes","Couts internes","Couts internes","Couts internes","Couts internes","Couts internes","Couts internes","Couts internes","Couts internes","Couts internes","Couts internes","Couts internes","Couts internes","Couts internes","Couts internes","Couts internes","Couts internes","Couts internes","Couts internes","Couts internes","Couts internes","Couts internes","Couts internes","Couts internes","Couts internes","Couts internes","Couts internes","Couts internes","Couts internes","Couts internes","Couts internes","Couts internes","Couts internes","Couts internes","Couts internes","Couts internes","Couts internes","Couts internes","Couts internes","Couts internes","Couts internes","Couts internes","Couts internes","Couts internes","Couts internes","Couts internes","Couts internes","Couts internes","Couts internes","Couts internes","Couts internes","Couts internes","Couts internes","Couts internes","Couts internes","Couts internes","Couts internes","Couts internes","Couts internes","Couts internes","Couts internes","Couts internes","Couts internes","Couts internes","Couts internes","Couts internes","Couts internes","Couts internes","Couts internes","Couts internes","Couts internes","Couts internes","Couts internes","Couts internes","Couts internes","Couts internes","Couts internes","Couts internes","Couts internes","Couts internes","Couts internes","Couts internes","Couts internes","Couts internes","Couts internes","Couts internes","Couts internes","Couts internes","Couts internes","Couts internes","Couts internes","Couts internes","Couts internes","Couts internes","Couts internes","Couts internes","Couts internes","Couts internes","Couts internes","Couts internes","Couts internes","Couts internes","Couts internes","Couts internes","Couts internes","Couts internes","Couts internes","Couts internes","Couts internes","Couts internes","Couts internes","Couts internes","Couts internes","Couts internes","Couts internes","Couts internes","Couts internes","Couts internes","Couts internes","Couts internes","Couts internes","Couts internes","Couts internes","Couts internes","Couts internes","Couts internes","Couts internes","Couts internes","Couts internes","Couts internes","Couts internes","Couts internes","Couts internes","Couts internes","Couts internes","Couts internes","Couts internes","Couts internes","Couts internes","Couts internes","Couts internes","Couts internes","Couts internes","Couts internes","Couts internes","Couts internes","Couts internes","Couts internes","Couts internes","Couts internes","Couts internes","Couts internes","Couts internes","Couts internes","Couts internes","Couts internes","Couts internes","Couts internes","Couts internes","Couts internes","Couts internes","Couts internes","Couts internes","Couts internes","Couts internes","Couts internes","Couts internes","Couts internes","Couts internes","Couts internes","Couts internes","Couts internes","Couts internes","Couts internes","Couts internes","Couts internes","Couts internes","Couts internes","Couts internes","Couts internes","Couts internes","Couts internes","Couts internes","Couts internes","Couts internes","Couts internes","Couts internes","Couts internes","Couts internes","Couts internes","Couts internes","Couts internes","Couts internes","Couts internes","Couts internes","Couts internes","Couts internes","Couts internes","Couts internes","Couts internes","Couts internes","Couts internes","Couts internes","Couts internes","Couts internes","Couts internes","Couts internes","Couts internes","Couts internes","Couts internes","Couts internes","Couts internes","Couts internes","Couts internes","Couts internes","Couts internes","Couts internes","Couts internes","Couts internes","Couts internes","Couts internes","Couts internes","Couts internes","Couts internes","Couts internes","Couts internes","Couts internes","Couts internes","Couts internes","Couts internes","Couts internes","Couts internes","Couts internes","Couts internes","Couts internes","Couts internes","Couts internes","Couts internes","Couts internes","Couts internes","Couts internes","Couts internes","Couts internes","Couts internes","Couts internes","Couts internes","Couts internes","Couts internes","Couts internes","Couts internes","Couts internes","Couts internes","Couts internes","Couts internes","Couts internes","Couts internes","Couts internes","Couts internes","Couts internes","Couts internes","Couts internes","Couts internes","Couts internes","Couts internes","Couts internes","Couts internes","Couts internes","Couts internes","Couts internes","Couts internes","Couts internes","Couts internes","Couts internes","Couts internes","Couts internes","Couts internes","Couts internes","Couts internes","Couts internes","Couts internes","Couts internes","Couts internes","Couts internes","Couts internes","Couts internes","Couts internes","Couts internes","Couts internes","Couts internes","Couts internes","Couts internes","Couts internes","Couts internes","Couts internes","Couts internes","Couts internes","Couts internes","Couts internes","Couts internes","Couts internes","Couts internes","Couts internes","Couts internes","Couts internes","Couts internes","Couts internes","Couts internes","Couts internes","Couts internes","Couts internes","Couts internes","Couts internes","Couts internes","Couts internes","Couts internes","Couts internes","Couts internes","Couts internes","Couts internes","Couts internes","Couts internes","Couts internes","Couts internes","Couts internes","Couts internes","Couts internes","Couts internes","Couts internes","Couts internes","Couts internes","Couts internes","Couts internes","Couts internes","Couts internes","Couts internes","Couts internes","Couts internes","Couts internes","Couts internes","Couts internes","Couts internes","Couts internes","Couts internes","Couts internes","Couts internes","Couts internes","Couts internes","Couts internes","Couts internes","Couts internes","Couts internes","Couts internes","Couts internes","Couts internes","Couts internes","Couts internes","Couts internes","Couts internes","Couts internes","Couts internes","Couts internes","Couts internes","Couts internes","Couts internes","Couts internes","Couts internes","Couts internes","Couts internes","Couts internes","Couts internes","Couts internes","Couts internes","Couts internes","Couts internes","Couts internes","Couts internes","Couts internes","Couts internes","Couts internes","Couts internes","Couts internes","Couts internes","Couts internes","Couts internes","Couts internes","Couts internes","Couts internes","Couts internes","Couts internes","Couts internes","Couts internes","Couts internes","Couts internes","Couts internes","Couts internes","Couts internes","Couts internes","Couts internes","Couts internes","Couts internes","Couts internes","Couts internes","Couts internes","Couts internes","Couts internes","Couts internes","Couts internes","Couts internes","Couts internes","Couts internes","Couts internes","Couts internes","Couts internes","Couts internes","Couts internes","Couts internes","Couts internes","Couts internes","Couts internes","Couts internes","Couts internes","Couts internes","Couts internes","Couts internes","Couts internes","Couts internes","Couts internes","Couts internes","Couts internes","Couts internes","Couts internes","Couts internes","Couts internes","Couts internes","Couts internes","Couts internes","Couts internes","Couts internes","Couts internes","Couts internes","Couts internes","Couts internes","Couts internes","Couts internes","Couts internes","Couts internes","Couts internes","Couts internes","Couts internes","Couts internes","Couts internes","Couts internes","Couts internes","Couts internes","Couts internes","Couts internes","Couts internes","Couts internes","Couts internes","Couts internes","Couts internes","Couts internes","Couts internes","Couts internes","Couts internes","Couts internes","Couts internes","Couts internes","Couts internes","Couts internes","Couts internes","Couts internes","Couts internes","Couts internes","Couts internes","Couts internes","Couts internes","Couts internes","Couts internes","Couts internes","Couts internes","Couts internes","Couts internes","Couts internes","Couts internes","Couts internes","Couts internes","Couts internes","Couts internes","Couts internes","Couts internes","Couts internes","Couts internes","Couts internes","Couts internes","Couts internes","Couts internes","Couts internes","Couts internes","Couts internes","Couts internes","Couts internes","Couts internes","Couts internes","Couts internes","Couts internes","Couts internes","Couts internes","Couts internes","Couts internes","Couts internes","Couts internes","Couts internes","Couts internes","Couts internes","Couts internes","Couts internes","Couts internes","Couts internes","Couts internes","Couts internes","Couts internes","Couts internes","Couts internes","Couts internes","Couts internes","Couts internes","Couts internes","Couts internes","Couts internes","Couts internes","Couts internes","Couts internes","Couts internes","Couts internes","Couts internes","Couts internes","Couts internes","Couts internes","Couts internes","Couts internes","Couts internes","Couts internes","Couts internes","Couts internes","Couts internes","Couts internes","Couts internes","Couts internes","Couts internes","Couts internes","Couts internes","Couts internes","Couts internes","Couts internes","Couts internes","Couts internes","Couts internes","Couts internes","Couts internes","Couts internes","Couts internes","Couts internes","Couts internes","Couts internes","Couts internes","Couts internes","Couts internes","Couts internes","Couts internes","Couts internes","Couts internes","Couts internes","Couts internes","Couts internes","Couts internes","Couts internes","Couts internes","Couts internes","Couts internes","Couts internes","Couts internes","Couts internes","Couts internes","Couts internes","Couts internes","Couts internes","Couts internes","Couts internes","Couts internes","Couts internes","Couts internes","Couts internes","Couts internes","Couts internes","Couts internes","Couts internes","Couts internes","Couts internes","Couts internes","Couts internes","Couts internes","Couts internes","Couts internes","Couts internes","Couts internes","Couts internes","Couts internes","Couts internes","Couts internes","Couts internes","Couts internes","Couts internes","Couts internes","Couts internes","Couts internes","Couts internes","Couts internes","Couts internes","Couts internes","Couts internes","Couts internes","Couts internes","Couts internes","Couts internes","Couts internes","Couts internes","Couts internes","Couts internes","Couts internes","Couts internes","Couts internes","Couts internes","Couts internes","Couts internes","Couts internes","Couts internes","Couts internes","Couts internes","Couts internes","Couts internes","Couts internes","Couts internes","Couts internes","Couts internes","Couts internes","Couts internes","Couts internes","Couts internes","Couts internes","Couts internes","Couts internes","Couts internes","Couts internes","Couts internes","Couts internes","Couts internes","Couts internes","Couts internes","Couts internes","Couts internes","Couts internes","Couts internes","Couts internes","Couts internes","Couts internes","Couts internes","Couts internes","Couts internes","Couts internes","Couts internes","Couts internes","Couts internes","Couts internes","Couts internes","Couts internes","Couts internes","Couts internes","Couts internes","Couts internes","Couts internes","Couts internes","Couts internes","Couts internes","Couts internes","Couts internes","Couts internes","Couts internes","Couts internes","Couts internes","Couts internes","Couts internes","Couts internes","Couts internes","Couts internes","Couts internes","Couts internes","Couts internes","Couts internes","Couts internes","Couts internes","Couts internes","Couts internes","Couts internes","Couts internes","Couts internes","Couts internes","Couts internes","Couts internes","Couts internes","Couts internes","Couts internes","Couts internes","Couts internes","Couts internes","Couts internes","Couts internes","Couts internes","Couts internes","Couts internes","Couts internes","Couts internes","Couts internes","Couts internes","Couts internes","Couts internes","Couts internes","Couts internes","Couts internes","Couts internes","Couts internes","Couts internes","Couts internes","Couts internes","Couts internes","Couts internes","Couts internes","Couts internes","Couts internes","Couts internes","Couts internes","Couts internes","Couts internes","Couts internes","Couts internes","Couts internes","Couts internes","Couts internes","Couts internes","Couts internes","Couts internes","Couts internes","Couts internes","Couts internes","Couts internes","Couts internes","Couts internes","Couts internes","Couts internes","Couts internes","Couts internes","Couts internes","Couts internes","Couts internes","Couts internes","Couts internes","Couts internes","Couts internes","Couts internes","Couts internes","Couts internes","Couts internes","Couts internes","Couts internes","Couts internes","Couts internes","Couts internes","Couts internes","Couts internes","Couts internes","Couts internes","Couts internes","Couts internes","Couts internes","Couts internes","Couts internes","Couts internes","Couts internes","Couts internes","Couts internes","Couts internes","Couts internes","Couts internes","Couts internes","Couts internes","Couts internes","Couts internes","Couts internes","Couts internes","Couts internes","Couts internes","Couts internes","Couts internes","Couts internes","Couts internes","Couts internes","Couts internes","Couts internes","Couts internes","Couts internes","Couts internes","Couts internes","Couts internes","Couts internes","Couts internes","Couts internes","Couts internes","Couts internes","Couts internes","Couts internes","Couts internes","Couts internes","Couts internes","Couts internes","Couts internes","Couts internes","Couts internes","Couts internes","Couts internes","Couts internes","Couts internes","Couts internes","Couts internes","Couts internes","Couts internes","Couts internes","Couts internes","Couts internes","Couts internes","Couts internes","Couts internes","Couts internes","Couts internes","Couts internes","Couts internes","Couts internes","Couts internes","Couts internes","Couts internes","Couts internes","Couts internes","Couts internes","Couts internes","Couts internes","Couts internes","Couts internes","Couts internes","Couts internes","Couts internes","Couts internes","Couts internes","Couts internes","Couts internes","Couts internes","Couts internes","Couts internes","Couts internes","Couts internes","Couts internes","Couts internes","Couts internes","Couts internes","Couts internes","Couts internes","Couts internes","Couts internes","Couts internes","Couts internes","Couts internes","Couts internes","Couts internes","Couts internes","Couts internes","Couts internes","Couts internes","Couts internes","Couts internes","Couts internes","Couts internes","Couts internes","Couts internes","Couts internes","Couts internes","Couts internes","Couts internes","Couts internes","Couts internes","Couts internes","Couts internes","Couts internes","Couts internes","Couts internes","Couts internes","Couts internes","Couts internes","Couts internes","Couts internes","Couts internes","Couts internes","Couts internes","Couts internes","Couts internes","Couts internes","Couts internes","Couts internes","Couts internes","Couts internes","Couts internes","Couts internes","Couts internes","Couts internes","Couts internes","Couts internes","Couts internes","Couts internes","Couts internes","Couts internes","Couts internes","Couts internes","Couts internes","Couts internes","Couts internes","Couts internes","Couts internes","Couts internes","Couts internes","Couts internes","Couts internes","Couts internes","Couts internes","Couts internes","Couts internes","Couts internes","Couts internes","Couts internes","Couts internes","Couts internes","Couts internes","Couts internes","Couts internes","Couts internes","Couts internes","Couts internes","Couts internes","Couts internes","Couts internes","Couts internes","Couts internes","Couts internes","Couts internes","Couts internes","Couts internes","Couts internes","Couts internes","Couts internes","Couts internes","Couts internes","Couts internes","Couts internes","Couts internes","Couts internes","Couts internes","Couts internes","Couts internes","Couts internes","Couts internes","Couts internes","Couts internes","Couts internes","Couts internes","Couts internes","Couts internes","Couts internes","Couts internes","Couts internes","Couts internes","Couts internes","Couts internes","Couts internes","Couts internes","Couts internes","Couts internes","Couts internes","Couts internes","Couts internes","Couts internes","Couts internes","Couts internes","Couts internes","Couts internes","Couts internes","Couts internes","Couts internes","Couts internes","Couts internes","Couts internes","Couts internes","Couts internes","Couts internes","Couts internes","Couts internes","Couts internes","Couts internes","Couts internes","Couts internes","Couts internes","Couts internes","Couts internes","Couts internes","Couts internes","Couts internes","Couts internes","Couts internes","Couts internes","Couts internes","Couts internes","Couts internes","Couts internes","Couts internes","Couts internes","Couts internes","Couts internes","Couts internes","Couts internes","Couts internes","Couts internes","Couts internes","Couts internes","Couts internes","Couts internes","Couts internes","Couts internes","Couts internes","Couts internes","Couts internes","Couts internes","Couts internes","Couts internes","Couts internes","Couts internes","Couts internes","Couts internes","Couts internes","Couts internes","Couts internes","Couts internes","Couts internes","Couts internes","Couts internes","Couts internes","Couts internes","Couts internes","Couts internes","Couts internes","Couts internes","Couts internes","Couts internes","Couts internes","Couts internes","Couts internes","Couts internes","Couts internes","Couts internes","Couts internes","Couts internes","Couts internes","Couts internes","Couts internes","Couts internes","Couts internes","Couts internes","Couts internes","Couts internes","Couts internes","Couts internes","Couts internes","Couts internes","Couts internes","Couts internes","Couts internes","Couts internes","Couts internes","Couts internes","Couts internes","Couts internes","Couts internes","Couts internes","Couts internes","Couts internes","Couts internes","Couts internes","Couts internes","Couts internes","Couts internes","Couts internes","Couts internes","Couts internes","Couts internes","Couts internes","Couts internes","Couts internes","Couts internes","Couts internes","Couts internes","Couts internes","Couts internes","Couts internes","Couts internes","Couts internes","Couts internes","Couts internes","Couts internes","Couts internes","Couts internes","Couts internes","Couts internes","Couts internes","Couts internes","Couts internes","Couts internes","Couts internes","Couts internes","Couts internes","Couts internes","Couts internes","Couts internes","Couts internes","Couts internes","Couts internes","Couts internes","Couts internes","Couts internes","Couts internes","Couts internes","Couts internes","Couts internes","Couts internes","Couts internes","Couts internes","Couts internes","Couts internes","Couts internes","Couts internes","Couts internes","Couts internes","Couts internes","Couts internes","Couts internes","Couts internes","Couts internes","Couts internes","Couts internes","Couts internes","Couts internes","Couts internes","Couts internes","Couts internes","Couts internes","Couts internes","Couts internes","Couts internes","Couts internes","Couts internes","Couts internes","Couts internes","Couts internes","Couts internes","Couts internes","Couts internes","Couts internes","Couts internes","Couts internes","Couts internes","Couts internes","Couts internes","Couts internes","Couts internes","Couts internes","Couts internes","Couts internes","Couts internes","Couts internes","Couts internes","Couts internes","Couts internes","Couts internes","Couts internes","Couts internes","Couts internes","Couts internes","Couts internes","Couts internes","Couts internes","Couts internes","Couts internes","Couts internes","Couts internes","Couts internes","Couts internes","Couts internes","Couts internes","Couts internes","Couts internes","Couts internes","Couts internes","Couts internes","Couts internes","Couts internes","Couts internes","Couts internes","Couts internes","Couts internes","Couts internes","Couts internes","Couts internes","Couts internes","Couts internes","Couts internes","Couts internes","Couts internes","Couts internes","Couts internes","Couts internes","Couts internes","Couts internes","Couts internes","Couts internes","Couts internes","Couts internes","Couts internes","Couts internes","Couts internes","Couts internes","Couts internes","Couts internes","Couts internes","Couts internes","Couts internes","Couts internes","Couts internes","Couts internes","Couts internes","Couts internes","Couts internes","Couts internes","Couts internes","Couts internes","Couts internes","Couts internes","Couts internes","Couts internes","Couts internes","Couts internes","Couts internes","Couts internes","Couts internes","Couts internes","Couts internes","Couts internes","Couts internes","Couts internes","Couts internes","Couts internes","Couts internes","Couts internes","Couts internes","Couts internes","Couts internes","Couts internes","Couts internes","Couts internes","Couts internes","Couts internes","Couts internes","Couts internes","Couts internes","Couts internes","Couts internes","Couts internes","Couts internes","Couts internes","Couts internes","Couts internes","Couts internes","Couts internes","Couts internes","Couts internes","Couts internes","Couts internes","Couts internes","Couts internes","Couts internes","Couts internes","Couts internes","Couts internes","Couts internes","Couts internes","Couts internes","Couts internes","Couts internes","Couts internes","Couts internes","Couts internes","Couts internes","Couts internes","Couts internes","Couts internes","Couts internes","Couts internes","Couts internes","Couts internes","Couts internes","Couts internes","Couts internes","Couts internes","Couts internes","Couts internes","Couts internes","Couts internes","Couts internes","Couts internes","Couts internes","Couts internes","Couts internes","Couts internes","Couts internes","Couts internes","Couts internes","Couts internes","Couts internes","Couts internes","Couts internes","Couts internes","Couts internes","Couts internes","Couts internes","Couts internes","Couts internes","Couts internes","Couts internes","Couts internes","Couts internes","Couts internes","Couts internes","Couts internes","Couts internes","Couts internes","Couts internes","Couts internes","Couts internes","Couts internes","Couts internes","Couts internes","Couts internes","Couts internes","Couts internes","Couts internes","Couts internes","Couts internes","Couts internes","Couts internes","Couts internes","Couts internes","Couts internes","Couts internes","Couts internes","Couts internes","Couts internes","Couts internes","Couts internes","Couts internes","Couts internes","Couts internes","Couts internes","Couts internes","Couts internes","Couts internes","Couts internes","Couts internes","Couts internes","Couts internes","Couts internes","Couts internes","Couts internes","Couts internes","Couts internes","Couts internes","Couts internes","Couts internes","Couts internes","Couts internes","Couts internes","Couts internes","Couts internes","Couts internes","Couts internes","Couts internes","Couts internes","Couts internes","Couts internes","Couts internes","Couts internes","Couts internes","Couts internes","Couts internes","Couts internes","Couts internes","Couts internes","Couts internes","Couts internes","Couts internes","Couts internes","Couts internes","Couts internes","Couts internes","Couts internes","Couts internes","Couts internes","Couts internes","Couts internes","Couts internes","Couts internes","Couts internes","Couts internes","Couts internes","Couts internes","Couts internes","Couts internes","Couts internes","Couts internes","Couts internes","Couts internes","Couts internes","Couts internes","Couts internes","Couts internes","Couts internes","Couts internes","Couts internes","Couts internes","Couts internes","Couts internes","Couts internes","Couts internes","Couts internes","Couts internes","Couts internes","Couts internes","Couts internes","Couts internes","Couts internes","Couts internes","Couts internes","Couts internes","Couts internes","Couts internes","Couts internes","Couts internes","Couts internes","Couts internes","Couts internes","Couts internes","Couts internes","Couts internes","Couts internes","Couts internes","Couts internes","Couts internes","Couts internes","Couts internes","Couts internes","Couts internes","Couts internes","Couts internes","Couts internes","Couts internes","Couts internes","Couts internes","Couts internes","Couts internes","Couts internes","Couts internes","Couts internes","Couts internes","Couts internes","Couts internes","Couts internes","Couts internes","Couts internes","Couts internes","Couts internes","Couts internes","Couts internes","Couts internes","Couts internes","Couts internes","Couts internes","Couts internes","Couts internes","Couts internes","Couts internes","Couts internes","Couts internes","Couts internes","Couts internes","Couts internes","Couts internes","Couts internes","Couts internes","Couts internes","Couts internes","Couts internes","Couts internes","Couts internes","Couts internes","Couts internes","Couts internes","Couts internes","Couts internes","Couts internes","Couts internes","Couts internes","Couts internes","Couts internes","Couts internes","Couts internes","Couts internes","Couts internes","Couts internes","Couts internes","Couts internes","Couts internes","Couts internes","Couts internes","Couts internes","Couts internes","Couts internes","Couts internes","Couts internes","Couts internes","Couts internes","Couts internes","Couts internes","Couts internes","Couts internes","Couts internes","Couts internes","Couts internes","Couts internes","Couts internes","Couts internes","Couts internes","Couts internes","Couts internes","Couts internes","Couts internes","Couts internes","Couts internes","Couts internes","Couts internes","Couts internes","Couts internes","Couts internes","Couts internes","Couts internes","Couts internes","Couts internes","Couts internes","Couts internes","Couts internes","Couts internes","Couts internes","Couts internes","Couts internes","Couts internes","Couts internes","Couts internes","Couts internes","Couts internes","Couts internes","Couts internes","Couts internes","Couts internes","Couts internes","Couts internes","Couts internes","Couts internes","Couts internes","Couts internes","Couts internes","Couts internes","Couts internes","Couts internes","Couts internes","Couts internes","Couts internes","Couts internes","Couts internes","Couts internes","Couts internes","Couts internes","Couts internes","Couts internes","Couts internes","Couts internes","Couts internes","Couts internes","Couts internes","Couts internes","Couts internes","Couts internes","Couts internes","Couts internes","Couts internes","Couts internes","Couts internes","Couts internes","Couts internes","Couts internes","Couts internes","Couts internes","Couts internes","Couts internes","Couts internes","Couts internes","Couts internes","Couts internes","Couts internes","Couts internes","Couts internes","Couts internes","Couts internes","Couts internes","Couts internes","Couts internes","Couts internes","Couts internes","Couts internes","Couts internes","Couts internes","Couts internes","Couts internes","Couts internes","Couts internes","Couts internes","Couts internes","Couts internes","Couts internes","Couts internes","Couts internes","Couts internes","Couts internes","Couts internes","Couts internes","Couts internes","Couts internes","Couts internes","Couts internes","Couts internes","Couts internes","Couts internes","Couts internes","Couts internes","Couts internes","Couts internes","Couts internes","Couts internes","Couts internes","Couts internes","Couts internes","Couts internes","Couts internes","Couts internes","Couts internes","Couts internes","Couts internes","Couts internes","Couts internes","Couts internes","Couts internes","Couts internes","Couts internes","Couts internes","Couts internes","Couts internes","Couts internes","Couts internes","Couts internes","Couts internes","Couts internes","Couts internes","Couts internes","Couts internes","Couts internes","Couts internes","Couts internes","Couts internes","Couts internes","Couts internes","Couts internes","Couts internes","Couts internes","Couts internes","Couts internes","Couts internes","Couts internes","Couts internes","Couts internes","Couts internes","Couts internes","Couts internes","Couts internes","Couts internes","Couts internes","Couts internes","Couts internes","Couts internes","Couts internes","Couts internes","Couts internes","Couts internes","Couts internes","Couts internes","Couts internes","Couts internes","Couts internes","Couts internes","Couts internes","Couts internes","Couts internes","Couts internes","Couts internes","Couts internes","Couts internes","Couts internes","Couts internes","Couts internes","Couts internes","Couts internes","Couts internes","Couts internes","Couts internes","Couts internes","Couts internes","Couts internes","Couts internes","Couts internes","Couts internes","Couts internes","Couts internes","Couts internes","Couts internes","Couts internes","Couts internes","Couts internes","Couts internes","Couts internes","Couts internes","Couts internes","Couts internes","Couts internes","Couts internes","Couts internes","Couts internes","Couts internes","Couts internes","Couts internes","Couts internes","Couts internes","Couts internes","Couts internes","Couts internes","Couts internes","Couts internes","Couts internes","Couts internes","Couts internes","Couts internes","Couts internes","Couts internes","Couts internes","Couts internes","Couts internes","Couts internes","Couts internes","Couts internes","Couts internes","Couts internes","Couts internes","Couts internes","Couts internes","Couts internes","Couts internes","Couts internes","Couts internes","Couts internes","Couts internes","Couts internes","Couts internes","Couts internes","Couts internes","Couts internes","Couts internes","Couts internes","Couts internes","Couts internes","Couts internes","Couts internes","Couts internes","Couts internes","Couts internes","Couts internes","Couts internes","Couts internes","Couts internes","Couts internes","Couts internes","Couts internes","Couts internes","Couts internes","Couts internes","Couts internes","Couts internes","Couts internes","Couts internes","Couts internes","Couts internes","Couts internes","Couts internes","Couts internes","Couts internes","Couts internes","Couts internes","Couts internes","Couts internes","Couts internes","Couts internes","Couts internes","Couts internes","Couts internes","Couts internes","Couts internes","Couts internes","Couts internes","Couts internes","Couts internes","Couts internes","Couts internes","Couts internes","Couts internes","Couts internes","Couts internes","Couts internes","Couts internes","Couts internes","Couts internes","Couts internes","Couts internes","Couts internes","Couts internes","Couts internes","Couts internes","Couts internes","Couts internes","Couts internes","Couts internes","Couts internes","Couts internes","Couts internes","Couts internes","Couts internes","Couts internes","Couts internes","Couts internes","Couts internes","Couts internes","Couts internes","Couts internes","Couts internes","Couts internes","Couts internes","Couts internes","Couts internes","Couts internes","Couts internes","Couts internes","Couts internes","Couts internes","Couts internes","Couts internes","Couts internes","Couts internes","Couts internes","Couts internes","Couts internes","Couts internes","Couts internes","Couts internes","Couts internes","Couts internes","Couts internes","Couts internes","Couts internes","Couts internes","Couts internes","Couts internes","Couts internes","Couts internes","Couts internes","Couts internes","Couts internes","Couts internes","Couts internes","Couts internes","Couts internes","Couts internes","Couts internes","Couts internes","Couts internes","Couts internes","Couts internes","Couts internes","Couts internes","Couts internes","Couts internes","Couts internes","Couts internes","Couts internes","Couts internes","Couts internes","Couts internes","Couts internes","Couts internes","Couts internes","Couts internes","Couts internes","Couts internes","Couts internes","Couts internes","Couts internes","Couts internes","Couts internes","Couts internes","Couts internes","Couts internes","Couts internes","Couts internes","Couts internes","Couts internes","Couts internes","Couts internes","Couts internes","Couts internes","Couts internes","Couts internes","Couts internes","Couts internes","Couts internes","Couts internes","Couts internes","Couts internes","Couts internes","Couts internes","Couts internes","Couts internes","Couts internes","Couts internes","Couts internes","Couts internes","Couts internes","Couts internes","Couts internes","Couts internes","Couts internes","Couts internes","Couts internes","Couts internes","Couts internes","Couts internes","Couts internes","Couts internes","Couts internes","Couts internes","Couts internes","Couts internes","Couts internes","Couts internes","Couts internes","Couts internes","Couts internes","Couts internes","Couts internes","Couts internes","Couts internes","Couts internes","Couts internes","Couts internes","Couts internes","Couts internes","Couts internes","Couts internes","Couts internes","Couts internes","Couts internes","Couts internes","Couts internes","Couts internes","Couts internes","Couts internes","Couts internes","Couts internes","Couts internes","Couts internes","Couts internes","Couts internes","Couts internes","Couts internes","Couts internes","Couts internes","Couts internes","Couts internes","Couts internes","Couts internes","Couts internes","Couts internes","Couts internes","Couts internes","Couts internes","Couts internes","Couts internes","Couts internes","Couts internes","Couts internes","Couts internes","Couts internes","Couts internes","Couts internes","Couts internes","Couts internes","Couts internes","Couts internes","Couts internes","Couts internes","Couts internes","Couts internes","Couts internes","Couts internes","Couts internes","Couts internes","Couts internes","Couts internes","Couts internes","Couts internes","Couts internes","Couts internes","Couts internes","Couts internes","Couts internes","Couts internes","Couts internes","Couts internes","Couts internes","Couts internes","Couts internes","Couts internes","Couts internes","Couts internes","Couts internes","Couts internes","Couts internes","Couts internes","Couts internes","Couts internes","Couts internes","Couts internes","Couts internes","Couts internes","Couts internes","Couts internes","Couts internes","Couts internes","Couts internes","Couts internes","Couts internes","Couts internes","Couts internes","Couts internes","Couts internes","Couts internes","Couts internes","Couts internes","Couts internes","Couts internes","Couts internes","Couts internes","Couts internes","Couts internes","Couts internes","Couts internes","Couts internes","Couts internes","Couts internes","Couts internes","Couts internes","Couts internes","Couts internes","Couts internes","Couts internes","Couts internes","Couts internes","Couts internes","Couts internes","Couts internes","Couts internes","Couts internes","Couts internes","Couts internes","Couts internes","Couts internes","Couts internes","Couts internes","Couts internes","Couts internes","Couts internes","Couts internes","Couts internes","Couts internes","Couts internes","Couts internes","Couts internes","Couts internes","Couts internes","Couts internes","Couts internes","Couts internes","Couts internes","Couts internes","Couts internes","Couts internes","Couts internes","Couts internes","Couts internes","Couts internes","Couts internes","Couts internes","Couts internes","Couts internes","Couts internes","Couts internes","Couts internes","Couts internes","Couts internes","Couts internes","Couts internes","Couts internes","Couts internes","Couts internes","Couts internes","Couts internes","Couts internes","Couts internes","Couts internes","Couts internes","Couts internes","Couts internes","Couts internes","Couts internes","Couts internes","Couts internes","Couts internes","Couts internes","Couts internes","Couts internes","Couts internes","Couts internes","Couts internes","Couts internes","Couts internes","Couts internes","Couts internes","Couts internes","Couts internes","Couts internes","Couts internes","Couts internes","Couts internes","Couts internes","Couts internes","Couts internes","Couts internes","Couts internes","Couts internes","Couts internes","Couts internes","Couts internes","Couts internes","Couts internes","Couts internes","Couts internes","Couts internes","Couts internes","Couts internes","Couts internes","Couts internes","Couts internes","Couts internes","Couts internes","Couts internes","Couts internes","Couts internes","Couts internes","Couts internes","Couts internes","Couts internes","Couts internes","Couts internes","Couts internes","Couts internes","Couts internes","Couts internes","Couts internes","Couts internes","Couts internes","Couts internes","Couts internes","Couts internes","Couts internes","Couts internes","Couts internes","Couts internes","Couts internes","Couts internes","Couts internes","Couts internes","Couts internes","Couts internes","Couts internes","Couts internes","Couts internes","Couts internes","Couts internes","Couts internes","Couts internes","Couts internes","Couts internes","Couts internes","Couts internes","Couts internes","Couts internes","Couts internes","Couts internes","Couts internes","Couts internes","Couts internes","Couts internes","Couts internes","Couts internes","Couts internes","Couts internes","Couts internes","Couts internes","Couts internes","Couts internes","Couts internes","Couts internes","Couts internes","Couts internes","Couts internes","Couts internes","Couts internes","Couts internes","Couts internes","Couts internes","Couts internes","Couts internes","Couts internes","Couts internes","Couts internes","Couts internes","Couts internes","Couts internes","Couts internes","Couts internes","Couts internes","Couts internes","Couts internes","Couts internes","Couts internes","Couts internes","Couts internes","Couts internes","Couts internes","Couts internes","Couts internes","Couts internes","Couts internes","Couts internes","Couts internes","Couts internes","Couts internes","Couts internes","Couts internes","Couts internes","Couts internes","Couts internes","Couts internes","Couts internes","Couts internes","Couts internes","Couts internes","Couts internes","Couts internes","Couts internes","Couts internes","Couts internes","Couts internes","Couts internes","Couts internes","Couts internes","Couts internes","Couts internes","Couts internes","Couts internes","Couts internes","Couts internes","Couts internes","Couts internes","Couts internes","Couts internes","Couts internes","Couts internes","Couts internes","Couts internes","Couts internes","Couts internes","Couts internes","Couts internes","Couts internes","Couts internes","Couts internes","Couts internes","Couts internes","Couts internes","Couts internes","Couts internes","Couts internes","Couts internes","Couts internes","Couts internes","Couts internes","Couts internes","Couts internes","Couts internes","Couts internes","Couts internes","Couts internes","Couts internes","Couts internes","Couts internes","Couts internes","Couts internes","Couts internes","Couts internes","Couts internes","Couts internes","Couts internes","Couts internes","Couts internes","Couts internes","Couts internes","Couts internes","Couts internes","Couts internes","Couts internes","Couts internes","Couts internes","Couts internes","Couts internes","Couts internes","Couts internes","Couts internes","Couts internes","Couts internes","Couts internes","Couts internes","Couts internes","Couts internes","Couts internes","Couts internes","Couts internes","Couts internes","Couts internes","Couts internes","Couts internes","Couts internes","Couts internes","Couts internes","Couts internes","Couts internes","Couts internes","Couts internes","Couts internes","Couts internes","Couts internes","Couts internes","Couts internes","Couts internes","Couts internes","Couts internes","Couts internes","Couts internes","Couts internes","Couts internes","Couts internes","Couts internes","Couts internes","Couts internes","Couts internes","Couts internes","Couts internes","Couts internes","Couts internes","Couts internes","Couts internes","Couts internes","Couts internes","Couts internes","Couts internes","Couts internes","Couts internes","Couts internes","Couts internes","Couts internes","Couts internes","Couts internes","Couts internes","Couts internes","Couts internes","Couts internes","Couts internes","Couts internes","Couts internes","Couts internes","Couts internes","Couts internes","Couts internes","Couts internes","Couts internes","Couts internes","Couts internes","Couts internes","Couts internes","Couts internes","Couts internes","Couts internes","Couts internes","Couts internes","Couts internes","Couts internes","Couts internes","Couts internes","Couts internes","Couts internes","Couts internes","Couts internes","Couts internes","Couts internes","Couts internes","Couts internes","Couts internes","Couts internes","Couts internes","Couts internes","Couts internes","Couts internes","Couts internes","Couts internes","Couts internes","Couts internes","Couts internes","Couts internes","Couts internes","Couts internes","Couts internes","Couts internes","Couts internes","Couts internes","Couts internes","Couts internes","Couts internes","Couts internes","Couts internes","Couts internes","Couts internes","Couts internes","Couts internes","Couts internes","Couts internes","Couts internes","Couts internes","Couts internes","Couts internes","Couts internes","Couts internes","Couts internes","Couts internes","Couts internes","Couts internes","Couts internes","Couts internes","Couts internes","Couts internes","Couts internes","Couts internes","Couts internes","Couts internes","Couts internes","Couts internes","Couts internes","Couts internes","Couts internes","Couts internes","Couts internes","Couts internes","Couts internes","Couts internes","Couts internes","Couts internes","Couts internes","Couts internes","Couts internes","Couts internes","Couts internes","Couts internes","Couts internes","Couts internes","Couts internes","Couts internes","Couts internes","Couts internes","Couts internes","Couts internes","Couts internes","Couts internes","Couts internes","Couts internes","Couts internes","Couts internes","Couts internes","Couts internes","Couts internes","Couts internes","Couts internes","Couts internes","Couts internes","Couts internes","Couts internes","Couts internes","Couts internes","Couts internes","Couts internes","Couts internes","Couts internes","Couts internes","Couts internes","Couts internes","Couts internes","Couts internes","Couts internes","Couts internes","Couts internes","Couts internes","Couts internes","Couts internes","Couts internes","Couts internes","Couts internes","Couts internes","Couts internes","Couts internes","Couts internes","Couts internes","Couts internes","Couts internes","Couts internes","Couts internes","Couts internes","Couts internes","Couts internes","Couts internes","Couts internes","Couts internes","Couts internes","Couts internes","Couts internes","Couts internes","Couts internes","Couts internes","Couts internes","Couts internes","Couts internes","Couts internes","Couts internes","Couts internes","Couts internes","Couts internes","Couts internes","Couts internes","Couts internes","Couts internes","Couts internes","Couts internes","Couts internes","Couts internes","Couts internes","Couts internes","Couts internes","Couts internes","Couts internes","Couts internes","Couts internes","Couts internes","Couts internes","Couts internes","Couts internes","Couts internes","Couts internes","Couts internes","Couts internes","Couts internes","Couts internes","Couts internes","Couts internes","Couts internes","Couts internes","Couts internes","Couts internes","Couts internes","Couts internes","Couts internes","Couts internes","Couts internes","Couts internes","Couts internes","Couts internes","Couts internes","Couts internes","Couts internes","Couts internes","Couts internes","Couts internes","Couts internes","Couts internes","Couts internes","Couts internes","Couts internes","Couts internes","Couts internes","Couts internes","Couts internes","Couts internes","Couts internes","Couts internes","Couts internes","Couts internes","Couts internes","Couts internes","Couts internes","Couts internes","Couts internes","Couts internes","Couts internes","Couts internes","Couts internes","Couts internes","Couts internes","Couts internes","Couts internes","Couts internes","Couts internes","Couts internes","Couts internes","Couts internes","Couts internes","Couts internes","Couts internes","Couts internes","Couts internes","Couts internes","Couts internes","Couts internes","Couts internes","Couts internes","Couts internes","Couts internes","Couts internes","Couts internes","Couts internes","Couts internes","Couts internes","Couts internes","Couts internes","Couts internes","Couts internes","Couts internes","Couts internes","Couts internes","Couts internes","Couts internes","Couts internes","Couts internes","Couts internes","Couts internes","Couts internes","Couts internes","Couts internes","Couts internes","Couts internes","Couts internes","Couts internes","Couts internes","Couts internes","Couts internes","Couts internes","Couts internes","Couts internes","Couts internes","Couts internes","Couts internes","Couts internes","Couts internes","Couts internes","Couts internes","Couts internes","Couts internes","Couts internes","Couts internes","Couts internes","Couts internes","Couts internes","Couts internes","Couts internes","Couts internes","Couts internes","Couts internes","Couts internes","Couts internes","Couts internes","Couts internes","Couts internes","Couts internes","Couts internes","Couts internes","Couts internes","Couts internes","Couts internes","Couts internes","Couts internes","Couts internes","Couts internes","Couts internes","Couts internes","Couts internes","Couts internes","Couts internes","Couts internes","Couts internes","Couts internes","Couts internes","Couts internes","Couts internes","Couts internes","Couts internes","Couts internes","Couts internes","Couts internes","Couts internes","Couts internes","Couts internes","Couts internes","Couts internes","Couts internes","Couts internes","Couts internes","Couts internes","Couts internes","Couts internes","Couts internes","Couts internes","Couts internes","Couts internes","Couts internes","Couts internes","Couts internes","Couts internes","Couts internes","Couts internes","Couts internes","Couts internes","Couts internes","Couts internes","Couts internes","Couts internes","Couts internes","Couts internes","Couts internes","Couts internes","Couts internes","Couts internes","Couts internes","Couts internes","Couts internes","Couts internes","Couts internes","Couts internes","Couts internes","Couts internes","Couts internes","Couts internes","Couts internes","Couts internes","Couts internes","Couts internes","Couts internes","Couts internes","Couts internes","Couts internes","Couts internes","Couts internes","Couts internes","Couts internes","Couts internes","Couts internes","Couts internes","Couts internes","Couts internes","Couts internes","Couts internes","Couts internes","Couts internes","Couts internes","Couts internes","Couts internes","Couts internes","Couts internes","Couts internes","Couts internes","Couts internes","Couts internes","Couts internes","Couts internes","Couts internes","Couts internes","Couts internes","Couts internes","Couts internes","Couts internes","Couts internes","Couts internes","Couts internes","Couts internes","Couts internes","Couts internes","Couts internes","Couts internes","Couts internes","Couts internes","Couts internes","Couts internes","Couts internes","Couts internes","Couts internes","Couts internes","Couts internes","Couts internes","Couts internes","Couts internes","Couts internes","Couts internes","Couts internes","Couts internes","Couts internes","Couts internes","Couts internes","Couts internes","Couts internes","Couts internes","Couts internes","Couts internes","Couts internes","Couts internes","Couts internes","Couts internes","Couts internes","Couts internes","Couts internes","Couts internes","Couts internes","Couts internes","Couts internes","Couts internes","Couts internes","Couts internes","Couts internes","Couts internes","Couts internes","Couts internes","Couts internes","Couts internes","Couts internes","Couts internes","Couts internes","Couts internes","Couts internes","Couts internes","Couts internes","Couts internes","Couts internes","Couts internes","Couts internes","Couts internes","Couts internes","Couts internes","Couts internes","Couts internes","Couts internes","Couts internes","Couts internes","Couts internes","Couts internes","Couts internes","Couts internes","Couts internes","Couts internes","Couts internes","Couts internes","Couts internes","Couts internes","Couts internes","Couts internes","Couts internes","Couts internes","Couts internes","Couts internes","Couts internes","Couts internes","Couts internes","Couts internes","Couts internes","Couts internes","Couts internes","Couts internes","Couts internes","Couts internes","Couts internes","Couts internes","Couts internes","Couts internes","Couts internes","Couts internes","Couts internes","Couts internes","Couts internes","Couts internes","Couts internes","Couts internes","Couts internes","Couts internes","Couts internes","Couts internes","Couts internes","Couts internes","Couts internes","Couts internes","Couts internes","Couts internes","Couts internes","Couts internes","Couts internes","Couts internes","Couts internes","Couts internes","Couts internes","Couts internes","Couts internes","Couts internes","Couts internes","Couts internes","Couts internes","Couts internes","Couts internes","Couts internes","Couts internes","Couts internes","Couts internes","Couts internes","Couts internes","Couts internes","Couts internes","Couts internes","Couts internes","Couts internes","Couts internes","Couts internes","Couts internes","Couts internes","Couts internes","Couts internes","Couts internes","Couts internes","Couts internes","Couts internes","Couts internes","Couts internes","Couts internes","Couts internes","Couts internes","Couts internes","Couts internes","Couts internes","Couts internes","Couts internes","Couts internes","Couts internes","Couts internes","Couts internes","Couts internes","Couts internes","Couts internes","Couts internes","Couts internes","Couts internes","Couts internes","Couts internes","Couts internes","Couts internes","Couts internes","Couts internes","Couts internes","Couts internes","Couts internes","Couts internes","Couts internes","Couts internes","Couts internes","Couts internes","Couts internes","Couts internes","Couts internes","Couts internes","Couts internes","Couts internes","Couts internes","Couts internes","Couts internes","Couts internes","Couts internes","Couts internes","Couts internes","Couts internes","Couts internes","Couts internes","Couts internes","Couts internes","Couts internes","Couts internes","Couts internes","Couts internes","Couts internes","Couts internes","Couts internes","Couts internes","Couts internes","Couts internes","Couts internes","Couts internes","Couts internes","Couts internes","Couts internes","Couts internes","Couts internes","Couts internes","Couts internes","Couts internes","Couts internes","Couts internes","Couts internes","Couts internes","Couts internes","Couts internes","Couts internes","Couts internes","Couts internes","Couts internes","Couts internes","Couts internes","Couts internes","Couts internes","Couts internes","Couts internes","Couts internes","Couts internes","Couts internes","Couts internes","Couts internes","Couts internes","Couts internes","Couts internes","Couts internes","Couts internes","Couts internes","Couts internes","Couts internes","Couts internes","Couts internes","Couts internes","Couts internes","Couts internes","Couts internes","Couts internes","Couts internes","Couts internes","Couts internes","Couts internes","Couts internes","Couts internes","Couts internes","Couts internes","Couts internes","Couts internes","Couts internes","Couts internes","Couts internes","Couts internes","Couts internes","Couts internes","Couts internes","Couts internes","Couts internes","Couts internes","Couts internes","Couts internes","Couts internes","Couts internes","Couts internes","Couts internes","Couts internes","Couts internes","Couts internes","Couts internes","Couts internes","Couts internes","Couts internes","Couts internes","Couts internes","Couts internes","Couts internes","Couts internes","Couts internes","Couts internes","Couts internes","Couts internes","Couts internes","Couts internes","Couts internes","Couts internes","Couts internes","Couts internes","Couts internes","Couts internes","Couts internes","Couts internes","Couts internes","Couts internes","Couts internes","Couts internes","Couts internes","Couts internes","Couts internes","Couts internes","Couts internes","Couts internes","Couts internes","Couts internes","Couts internes","Couts internes","Couts internes","Couts internes","Couts internes","Couts internes","Couts internes","Couts internes","Couts internes","Couts internes","Couts internes","Couts internes","Couts internes","Couts internes","Couts internes","Couts internes","Couts internes","Couts internes","Couts internes","Couts internes","Couts internes","Couts internes","Couts internes","Couts internes","Couts internes","Couts internes","Couts internes","Couts internes","Couts internes","Couts internes","Couts internes","Couts internes","Couts internes","Couts internes","Couts internes","Couts internes","Couts internes","Couts internes","Couts internes","Couts internes","Couts internes","Couts internes","Couts internes","Couts internes","Couts internes","Couts internes","Couts internes","Couts internes","Couts internes","Couts internes","Couts internes","Couts internes","Couts internes","Couts internes","Couts internes","Couts internes","Couts internes","Couts internes","Couts internes","Couts internes","Couts internes","Couts internes","Couts internes","Couts internes","Couts internes","Couts internes","Couts internes","Couts internes","Couts internes","Couts internes","Couts internes","Couts internes","Couts internes","Couts internes","Couts internes","Couts internes","Couts internes","Couts internes","Couts internes","Couts internes","Couts internes","Couts internes","Couts internes","Couts internes","Couts internes","Couts internes","Couts internes","Couts internes","Couts internes","Couts internes","Couts internes","Couts internes","Couts internes","Couts internes","Couts internes","Couts internes","Couts internes","Couts internes","Couts internes","Couts internes","Couts internes","Couts internes","Couts internes","Couts internes","Couts internes","Couts internes","Couts internes","Couts internes","Couts internes","Couts internes","Couts internes","Couts internes","Couts internes","Couts internes","Couts internes","Couts internes","Couts internes","Couts internes","Couts internes","Couts internes","Couts internes","Couts internes","Couts internes","Couts internes","Couts internes","Couts internes","Couts internes","Couts internes","Couts internes","Couts internes","Couts internes","Couts internes","Couts internes","Couts internes","Couts internes","Couts internes","Couts internes","Couts internes","Couts internes","Couts internes","Couts internes","Couts internes","Couts internes","Couts internes","Couts internes","Couts internes","Couts internes","Couts internes","Couts internes","Couts internes","Couts internes","Couts internes","Couts internes","Couts internes","Couts internes","Couts internes","Couts internes","Couts internes","Couts internes","Couts internes","Couts internes","Couts internes","Couts internes","Couts internes","Couts internes","Couts internes","Couts internes","Couts internes","Couts internes","Couts internes","Couts internes","Couts internes","Couts internes","Couts internes","Couts internes","Couts internes","Couts internes","Couts internes","Couts internes","Couts internes","Couts internes","Couts internes","Couts internes","Couts internes","Couts internes","Couts internes","Couts internes","Couts internes","Couts internes","Couts internes","Couts internes","Couts internes","Couts internes","Couts internes","Couts internes","Couts internes","Couts internes","Couts internes","Couts internes","Couts internes","Couts internes","Couts internes","Couts internes","Couts internes","Couts internes","Couts internes","Couts internes","Couts internes","Couts internes","Couts internes","Couts internes","Couts internes","Couts internes","Couts internes","Couts internes","Couts internes","Couts internes","Couts internes","Couts internes","Couts internes","Couts internes","Couts internes","Couts internes","Couts internes","Couts internes","Couts internes","Couts internes","Couts internes","Couts internes","Couts internes","Couts internes","Couts internes","Couts internes","Couts internes","Couts internes","Couts internes","Couts internes","Couts internes","Couts internes","Couts internes","Couts internes","Couts internes","Couts internes","Couts internes","Couts internes","Couts internes","Couts internes","Couts internes","Couts internes","Couts internes","Couts internes","Couts internes","Couts internes","Couts internes","Couts internes","Couts internes","Couts internes","Couts internes","Couts internes","Couts internes","Couts internes","Couts internes","Couts internes","Couts internes","Couts internes","Couts internes","Couts internes","Couts internes","Couts internes","Couts internes","Couts internes","Couts internes","Couts internes","Couts internes","Couts internes","Couts internes","Couts internes","Couts internes","Couts internes","Couts internes","Couts internes","Couts internes","Couts internes","Couts internes","Couts internes","Couts internes","Couts internes","Couts internes","Couts internes","Couts internes","Couts internes","Couts internes","Couts internes","Couts internes","Couts internes","Couts internes","Couts internes","Couts internes","Couts internes","Couts internes","Couts internes","Couts internes","Couts internes","Couts internes","Couts internes","Couts internes","Couts internes","Couts internes","Couts internes","Couts internes","Couts internes","Couts internes","Couts internes","Couts internes","Couts internes","Couts internes","Couts internes","Couts internes","Couts internes","Couts internes","Couts internes","Couts internes","Couts internes","Couts internes","Couts internes","Couts internes","Couts internes","Couts internes","Couts internes","Couts internes","Couts internes","Couts internes","Couts internes","Couts internes","Couts internes","Couts internes","Couts internes","Couts internes","Couts internes","Couts internes","Couts internes","Couts internes","Couts internes","Couts internes","Couts internes","Couts internes","Couts internes","Couts internes","Couts internes","Couts internes","Couts internes","Couts internes","Couts internes","Couts internes","Couts internes","Couts internes","Couts internes","Couts internes","Couts internes","Couts internes","Couts internes","Couts internes","Couts internes","Couts internes","Couts internes","Couts internes","Couts internes","Couts internes","Couts internes","Couts internes","Couts internes","Couts internes","Couts internes","Couts internes","Couts internes","Couts internes","Couts internes","Couts internes","Couts internes","Couts internes","Couts internes","Couts internes","Couts internes","Couts internes","Couts internes","Couts internes","Couts internes","Couts internes","Couts internes","Couts internes","Couts internes","Couts internes","Couts internes","Couts internes","Couts internes","Couts internes","Couts internes","Couts internes","Couts internes","Couts internes","Couts internes","Couts internes","Couts internes","Couts internes","Couts internes","Couts internes","Couts internes","Couts internes","Couts internes","Couts internes","Couts internes","Couts internes","Couts internes","Couts internes","Couts internes","Couts internes","Couts internes","Couts internes","Couts internes","Couts internes","Couts internes","Couts internes","Couts internes","Couts internes","Couts internes","Couts internes","Couts internes","Couts internes","Couts internes","Couts internes","Couts internes","Couts internes","Couts internes","Couts internes","Couts internes","Couts internes","Couts internes","Couts internes","Couts internes","Couts internes","Couts internes","Couts internes","Couts internes","Couts internes","Couts internes","Couts internes","Couts internes","Couts internes","Couts internes","Couts internes","Couts internes","Couts internes","Couts internes","Couts internes","Couts internes","Couts internes","Couts internes","Couts internes","Couts internes","Couts internes","Couts internes","Couts internes","Couts internes","Couts internes","Couts internes","Couts internes","Couts internes","Couts internes","Couts internes","Couts internes","Couts internes","Couts internes","Couts internes","Couts internes","Couts internes","Couts internes","Couts internes","Couts internes","Couts internes","Couts internes","Couts internes","Couts internes","Couts internes","Couts internes","Couts internes","Couts internes","Couts internes","Couts internes","Couts internes","Couts internes","Couts internes","Couts internes","Couts internes","Couts internes","Couts internes","Couts internes","Couts internes","Couts internes","Couts internes","Couts internes","Couts internes","Couts internes","Couts internes","Couts internes","Couts internes","Couts internes","Couts internes","Couts internes","Couts internes","Couts internes","Couts internes","Couts internes","Couts internes","Couts internes","Couts internes","Couts internes","Couts internes","Couts internes","Couts internes","Couts internes","Couts internes","Couts internes","Couts internes","Couts internes","Couts internes","Couts internes","Couts internes","Couts internes","Couts internes","Couts internes","Couts internes","Couts internes","Couts internes","Couts internes","Couts internes","Couts internes","Couts internes","Couts internes","Couts internes","Couts internes","Couts internes","Couts internes","Couts internes","Couts internes","Couts internes","Couts internes","Couts internes","Couts internes","Couts internes","Couts internes","Couts internes","Couts internes","Couts internes","Couts internes","Couts internes","Couts internes","Couts internes","Couts internes","Couts internes","Couts internes","Couts internes","Couts internes","Couts internes","Couts internes","Couts internes","Couts internes","Couts internes","Couts internes","Couts internes","Couts internes","Couts internes","Couts internes","Couts internes","Couts internes","Couts internes","Couts internes","Couts internes","Couts internes","Couts internes","Couts internes","Couts internes","Couts internes","Couts internes","Couts internes","Couts internes","Couts internes","Couts internes","Couts internes","Couts internes","Couts internes","Couts internes","Couts internes","Couts internes","Couts internes","Couts internes","Couts internes","Couts internes","Couts internes","Couts internes","Couts internes","Couts internes","Couts internes","Couts internes","Couts internes","Couts internes","Couts internes","Couts internes","Couts internes","Couts internes","Couts internes","Couts internes","Couts internes","Couts internes","Couts internes","Couts internes","Couts internes","Couts internes","Couts internes","Couts internes","Couts internes","Couts internes","Couts internes","Couts internes","Couts internes","Couts internes","Couts internes","Couts internes","Couts internes","Couts internes","Couts internes","Couts internes","Couts internes","Couts internes","Couts internes","Couts internes","Couts internes","Couts internes","Couts internes","Couts internes","Couts internes","Couts internes","Couts internes","Couts internes","Couts internes","Couts internes","Couts internes","Couts internes","Couts internes","Couts internes","Couts internes","Couts internes","Couts internes","Couts internes","Couts internes","Couts internes","Couts internes","Couts internes","Couts internes","Couts internes","Couts internes","Couts internes","Couts internes","Couts internes","Couts internes","Couts internes","Couts internes","Couts internes","Couts internes","Couts internes","Couts internes","Couts internes","Couts internes","Couts internes","Couts internes","Couts internes","Couts internes","Couts internes","Couts internes","Couts internes","Couts internes","Couts internes","Couts internes","Couts internes","Couts internes","Couts internes","Couts internes","Couts internes","Couts internes","Couts internes","Couts internes","Couts internes","Couts internes","Couts internes","Couts internes","Couts internes","Couts internes","Couts internes","Couts internes","Couts internes","Couts internes","Couts internes","Couts internes","Couts internes","Couts internes","Couts internes","Couts internes","Couts internes","Couts internes","Couts internes","Couts internes","Couts internes","Couts internes","Couts internes","Couts internes","Couts internes","Couts internes","Couts internes","Couts internes","Couts internes","Couts internes","Couts internes","Couts internes","Couts internes","Couts internes","Couts internes","Couts internes","Couts internes","Couts internes","Couts internes","Couts internes","Couts internes","Couts internes","Couts internes","Couts internes","Couts internes","Couts internes","Couts internes","Couts internes","Couts internes","Couts internes","Couts internes","Couts internes","Couts internes","Couts internes","Couts internes","Couts internes","Couts internes","Couts internes","Couts internes","Couts internes","Couts internes","Couts internes","Couts internes","Couts internes","Couts internes","Couts internes","Couts internes","Couts internes","Couts internes","Couts internes","Couts internes","Couts internes","Couts internes","Couts internes","Couts internes","Couts internes","Couts internes","Couts internes","Couts internes","Couts internes","Couts internes","Couts internes","Couts internes","Couts internes","Couts internes","Couts internes","Couts internes","Couts internes","Couts internes","Couts internes","Couts internes","Couts internes","Couts internes","Couts internes","Couts internes","Couts internes","Couts internes","Couts internes","Couts internes","Couts internes","Couts internes","Couts internes","Couts internes","Couts internes","Couts internes","Couts internes","Couts internes","Couts internes","Couts internes","Couts internes","Couts internes","Couts internes","Couts internes","Couts internes","Couts internes","Couts internes","Couts internes","Couts internes","Couts internes","Couts internes","Couts internes","Couts internes","Couts internes","Couts internes","Couts internes","Couts internes","Couts internes","Couts internes","Couts internes","Couts internes","Couts internes","Couts internes","Couts internes","Couts internes","Couts internes","Couts internes","Couts internes","Couts internes","Couts internes","Couts internes","Couts internes","Couts internes","Couts internes","Couts internes","Couts internes","Couts internes","Couts internes","Couts internes","Couts internes","Couts internes","Couts internes","Couts internes","Couts internes","Couts internes","Couts internes","Couts internes","Couts internes","Couts internes","Couts internes","Couts internes","Couts internes","Couts internes","Couts internes","Couts internes","Couts internes","Couts internes","Couts internes","Couts internes","Couts internes","Couts internes","Couts internes","Couts internes","Couts internes","Couts internes","Couts internes","Couts internes","Couts internes","Couts internes","Couts internes","Couts internes","Couts internes","Couts internes","Couts internes","Couts internes","Couts internes","Couts internes","Couts internes","Couts internes","Couts internes","Couts internes","Couts internes","Couts internes","Couts internes","Couts internes","Couts internes","Couts internes","Couts internes","Couts internes","Couts internes","Couts internes","Couts internes","Couts internes","Couts internes","Couts internes","Couts internes","Couts internes","Couts internes","Couts internes","Couts internes","Couts internes","Couts internes","Couts internes","Couts internes","Couts internes","Couts internes","Couts internes","Couts internes","Couts internes","Couts internes","Couts internes","Couts internes","Couts internes","Couts internes","Couts internes","Couts internes","Couts internes","Couts internes","Couts internes","Couts internes","Couts internes","Couts internes","Couts internes","Couts internes","Couts internes","Couts internes","Couts internes","Couts internes","Couts internes","Couts internes","Couts internes","Couts internes","Couts internes","Couts internes","Couts internes","Couts internes","Couts internes","Couts internes","Couts internes","Couts internes","Couts internes","Couts internes","Couts internes","Couts internes","Couts internes","Couts internes","Couts internes","Couts internes","Couts internes","Couts internes","Couts internes","Couts internes","Couts internes","Couts internes","Couts internes","Couts internes","Couts internes","Couts internes","Couts internes","Couts internes","Couts internes","Couts internes","Couts internes","Couts internes","Couts internes","Couts internes","Couts internes","Couts internes","Couts internes","Couts internes","Couts internes","Couts internes","Couts internes","Couts internes","Couts internes","Couts internes","Couts internes","Couts internes","Couts internes","Couts internes","Couts internes","Couts internes","Couts internes","Couts internes","Couts internes","Couts internes","Couts internes","Couts internes","Couts internes","Couts internes","Couts internes","Couts internes","Couts internes","Couts internes","Couts internes","Couts internes","Couts internes","Couts internes","Couts internes","Couts internes","Couts internes","Couts internes","Couts internes","Couts internes","Couts internes","Couts internes","Couts internes","Couts internes","Couts internes","Couts internes","Couts internes","Couts internes","Couts internes","Couts internes","Couts internes","Couts internes","Couts internes","Couts internes","Couts internes","Couts internes","Couts internes","Couts internes","Couts internes","Couts internes","Couts internes","Couts internes","Couts internes","Couts internes","Couts internes","Couts internes","Couts internes","Couts internes","Couts internes","Couts internes","Couts internes","Couts internes","Couts internes","Couts internes","Couts internes","Couts internes","Couts internes","Couts internes","Couts internes","Couts internes","Couts internes","Couts internes","Couts internes","Couts internes","Couts internes","Couts internes","Couts internes","Couts internes","Couts internes","Couts internes","Couts internes","Couts internes","Couts internes","Couts internes","Couts internes","Couts internes","Couts internes","Couts internes","Couts internes","Couts internes","Couts internes","Couts internes","Couts internes","Couts internes","Couts internes","Couts internes","Couts internes","Couts internes","Couts internes","Couts internes","Couts internes","Couts internes","Couts internes","Couts internes","Couts internes","Couts internes","Couts internes","Couts internes","Couts internes","Couts internes","Couts internes","Couts internes","Couts internes","Couts internes","Couts internes","Couts internes","Couts internes","Couts internes","Couts internes","Couts internes","Couts internes","Couts internes","Couts internes","Couts internes","Couts internes","Couts internes","Couts internes","Couts internes","Couts internes","Couts internes","Couts internes","Couts internes","Couts internes","Couts internes","Couts internes","Couts internes","Couts internes","Couts internes","Couts internes","Couts internes","Couts internes","Couts internes","Couts internes","Couts internes","Couts internes","Couts internes","Couts internes","Couts internes","Couts internes","Couts internes","Couts internes","Couts internes","Couts internes","Couts internes","Couts internes","Couts internes","Couts internes","Couts internes","Couts internes","Couts internes","Couts internes","Couts internes","Couts internes","Couts internes","Couts internes","Couts internes","Couts internes","Couts internes","Couts internes","Couts internes","Couts internes","Couts internes","Couts internes","Couts internes","Couts internes","Couts internes","Couts internes","Couts internes","Couts internes","Couts internes","Couts internes","Couts internes","Couts internes","Couts internes","Couts internes","Couts internes","Couts internes","Couts internes","Couts internes","Couts internes","Couts internes","Couts internes","Couts internes","Couts internes","Couts internes","Couts internes","Couts internes","Couts internes","Couts internes","Couts internes","Couts internes","Couts internes","Couts internes","Couts internes","Couts internes","Couts internes","Couts internes","Couts internes","Couts internes","Couts internes","Couts internes","Couts internes","Couts internes","Couts internes","Couts internes","Couts internes","Couts internes","Couts internes","Couts internes","Couts internes","Couts internes","Couts internes","Couts internes","Couts internes","Couts internes","Couts internes","Couts internes","Couts internes","Couts internes","Couts internes","Couts internes","Couts internes","Couts internes","Couts internes","Couts internes","Couts internes","Couts internes","Couts internes","Couts internes","Couts internes","Couts internes","Couts internes","Couts internes","Couts internes","Couts internes","Couts internes","Couts internes","Couts internes","Couts internes","Couts internes","Couts internes","Couts internes","Couts internes","Couts internes","Couts internes","Couts internes","Couts internes","Couts internes","Couts internes","Couts internes","Couts internes","Couts internes","Couts internes","Couts internes","Couts internes","Couts internes","Couts internes","Couts internes","Couts internes","Couts internes","Couts internes","Couts internes","Couts internes","Couts internes","Couts internes","Couts internes","Couts internes","Couts internes","Couts internes","Couts internes","Couts internes","Couts internes","Couts internes","Couts internes","Couts internes","Couts internes","Couts internes","Couts internes","Couts internes","Couts internes","Couts internes","Couts internes","Couts internes","Couts internes","Couts internes","Couts internes","Couts internes","Couts internes","Couts internes","Couts internes","Couts internes","Couts internes","Couts internes","Couts internes","Couts internes","Couts internes","Couts internes","Couts internes","Couts internes","Couts internes","Couts internes","Couts internes","Couts internes","Couts internes","Couts internes","Couts internes","Couts internes","Couts internes","Couts internes","Couts internes","Couts internes","Couts internes","Couts internes","Couts internes","Couts internes","Couts internes","Couts internes","Couts internes","Couts internes","Couts internes","Couts internes","Couts internes","Couts internes","Couts internes","Couts internes","Couts internes","Couts internes","Couts internes","Couts internes","Couts internes","Couts internes","Couts internes","Couts internes","Couts internes","Couts internes","Couts internes","Couts internes","Couts internes","Couts internes","Couts internes","Couts internes","Couts internes","Couts internes","Couts internes","Couts internes","Couts internes","Couts internes","Couts internes","Couts internes","Couts internes","Couts internes","Couts internes","Couts internes","Couts internes","Couts internes","Couts internes","Couts internes","Couts internes","Couts internes","Couts internes","Couts internes","Couts internes","Couts internes","Couts internes","Couts internes","Couts internes","Couts internes","Couts internes","Couts internes","Couts internes","Couts internes","Couts internes","Couts internes","Couts internes","Couts internes","Couts internes","Couts internes","Couts internes","Couts internes","Couts internes","Couts internes","Couts internes","Couts internes","Couts internes","Couts internes","Couts internes","Couts internes","Couts internes","Couts internes","Couts internes","Couts internes","Couts internes","Couts internes","Couts internes","Couts internes","Couts internes","Couts internes","Couts internes","Couts internes","Couts internes","Couts internes","Couts internes","Couts internes","Couts internes","Couts internes","Couts internes","Couts internes","Couts internes","Couts internes","Couts internes","Couts internes","Couts internes","Couts internes","Couts internes","Couts internes","Couts internes","Couts internes","Couts internes","Couts internes","Couts internes","Couts internes","Couts internes","Couts internes","Couts internes","Couts internes","Couts internes","Couts internes","Couts internes","Couts internes","Couts internes","Couts internes","Couts internes","Couts internes","Couts internes","Couts internes","Couts internes","Couts internes","Couts internes","Couts internes","Couts internes","Couts internes","Couts internes","Couts internes","Couts internes","Couts internes","Couts internes","Couts internes","Couts internes","Couts internes","Couts internes","Couts internes","Couts internes","Couts internes","Couts internes","Couts internes","Couts internes","Couts internes","Couts internes","Couts internes","Couts internes","Couts internes","Couts internes","Couts internes","Couts internes","Couts internes","Couts internes","Couts internes","Couts internes","Couts internes","Couts internes","Couts internes","Couts internes","Couts internes","Couts internes","Couts internes","Couts internes","Couts internes","Couts internes","Couts internes","Couts internes","Couts internes","Couts internes","Couts internes","Couts internes","Couts internes","Couts internes","Couts internes","Couts internes","Couts internes","Couts internes","Couts internes","Couts internes","Couts internes","Couts internes","Couts internes","Couts internes","Couts internes","Couts internes","Couts internes","Couts internes","Couts internes","Couts internes","Couts internes","Couts internes","Couts internes","Couts internes","Couts internes","Couts internes","Couts internes","Couts internes","Couts internes","Couts internes","Couts internes","Couts internes","Couts internes","Couts internes","Couts internes","Couts internes","Couts internes","Couts internes","Couts internes","Couts internes","Couts internes","Couts internes","Couts internes","Couts internes","Couts internes","Couts internes","Couts internes","Couts internes","Couts internes","Couts internes","Couts internes","Couts internes","Couts internes","Couts internes","Couts internes","Couts internes","Couts internes","Couts internes","Couts internes","Couts internes","Couts internes","Couts internes","Couts internes","Couts internes","Couts internes","Couts internes","Couts internes","Couts internes","Couts internes","Couts internes","Couts internes","Couts internes","Couts internes","Couts internes","Couts internes","Couts internes","Couts internes","Couts internes","Couts internes","Couts internes","Couts internes","Couts internes","Couts internes","Couts internes","Couts internes","Couts internes","Couts internes","Couts internes","Couts internes","Couts internes","Couts internes","Couts internes","Couts internes","Couts internes","Couts internes","Couts internes","Couts internes","Couts internes","Couts internes","Couts internes","Couts internes","Couts internes","Couts internes","Couts internes","Couts internes","Couts internes","Couts internes","Couts internes","Couts internes","Couts internes","Couts internes","Couts internes","Couts internes","Couts internes","Couts internes","Couts internes","Couts internes","Couts internes","Couts internes","Couts internes","Couts internes","Couts internes","Couts internes","Couts internes","Couts internes","Couts internes","Couts internes","Couts internes","Couts internes","Couts internes","Couts internes","Couts internes","Couts internes","Couts internes","Couts internes","Couts internes","Couts internes","Couts internes","Couts internes","Couts internes","Couts internes","Couts internes","Couts internes","Couts internes","Couts internes","Couts internes","Couts internes","Couts internes","Couts internes","Couts internes","Couts internes","Couts internes","Couts internes","Couts internes","Couts internes","Couts internes","Couts internes","Couts internes","Couts internes","Couts internes","Couts internes","Couts internes","Couts internes","Couts internes","Couts internes","Couts internes","Couts internes","Couts internes","Couts internes","Couts internes","Couts internes","Couts internes","Couts internes","Couts internes","Couts internes","Couts internes","Couts internes","Couts internes","Couts internes","Couts internes","Couts internes","Couts internes","Couts internes","Couts internes","Couts internes","Couts internes","Couts internes","Couts internes","Couts internes","Couts internes","Couts internes","Couts internes","Couts internes","Couts internes","Couts internes","Couts internes","Couts internes","Couts internes","Couts internes","Couts internes","Couts internes","Couts internes","Couts internes","Couts internes","Couts internes","Couts internes","Couts internes","Couts internes","Couts internes","Couts internes","Couts internes","Couts internes","Couts internes","Couts internes","Couts internes","Couts internes","Couts internes","Couts internes","Couts internes","Couts internes","Couts internes","Couts internes","Couts internes","Couts internes","Couts internes","Couts internes","Couts internes","Couts internes","Couts internes","Couts internes","Couts internes","Couts internes","Couts internes","Couts internes","Couts internes","Couts internes","Couts internes","Couts internes","Couts internes","Couts internes","Couts internes","Couts internes","Couts internes","Couts internes","Couts internes","Couts internes","Couts internes","Couts internes","Couts internes","Couts internes","Couts internes","Couts internes","Couts internes","Couts internes","Couts internes","Couts internes","Couts internes","Couts internes","Couts internes","Couts internes","Couts internes","Couts internes","Couts internes","Couts internes","Couts internes","Couts internes","Couts internes","Couts internes","Couts internes","Couts internes","Couts internes","Couts internes","Couts internes","Couts internes","Couts internes","Couts internes","Couts internes","Couts internes","Couts internes","Couts internes","Couts internes","Couts internes","Couts internes","Couts internes","Couts internes","Couts internes","Couts internes","Couts internes","Couts internes","Couts internes","Couts internes","Couts internes","Couts internes","Couts internes","Couts internes","Couts internes","Couts internes","Couts internes","Couts internes","Couts internes","Couts internes","Couts internes","Couts internes","Couts internes","Couts internes","Couts internes","Couts internes","Couts internes","Couts internes","Couts internes","Couts internes","Couts internes","Couts internes","Couts internes","Couts internes","Couts internes","Couts internes","Couts internes","Couts internes","Couts internes","Couts internes","Couts internes","Couts internes","Couts internes","Couts internes","Couts internes","Couts internes","Couts internes","Couts internes","Couts internes","Couts internes","Couts internes","Couts internes","Couts internes","Couts internes","Couts internes","Couts internes","Couts internes","Couts internes","Couts internes","Couts internes","Couts internes","Couts internes","Couts internes","Couts internes","Couts internes","Couts internes","Couts internes","Couts internes","Couts internes","Couts internes","Couts internes","Couts internes","Couts internes","Couts internes","Couts internes","Couts internes","Couts internes","Couts internes","Couts internes","Couts internes","Couts internes","Couts internes","Couts internes","Couts internes","Couts internes","Couts internes","Couts internes","Couts internes","Couts internes","Couts internes","Couts internes","Couts internes","Couts internes","Couts internes","Couts internes","Couts internes","Couts internes","Couts internes","Couts internes","Couts internes","Couts internes","Couts internes","Couts internes","Couts internes","Couts internes","Couts internes","Couts internes","Couts internes","Couts internes","Couts internes","Couts internes","Couts internes","Couts internes","Couts internes","Couts internes","Couts internes","Couts internes","Couts internes","Couts internes","Couts internes","Couts internes","Couts internes","Couts internes","Couts internes","Couts internes","Couts internes","Couts internes","Couts internes","Couts internes","Couts internes","Couts internes","Couts internes","Couts internes","Couts internes","Couts internes","Couts internes","Couts internes","Couts internes","Couts internes","Couts internes","Couts internes","Couts internes","Couts internes","Couts internes","Couts internes","Couts internes","Couts internes","Couts internes","Couts internes","Couts internes","Couts internes","Couts internes","Couts internes","Couts internes","Couts internes","Couts internes","Couts internes","Couts internes","Couts internes","Couts internes","Couts internes","Couts internes","Couts internes","Couts internes","Couts internes","Couts internes","Couts internes","Couts internes","Couts internes","Couts internes","Couts internes","Couts internes","Couts internes","Couts internes","Couts internes","Couts internes","Couts internes","Couts internes","Couts internes","Couts internes","Couts internes","Couts internes","Couts internes","Couts internes","Couts internes","Couts internes","Couts internes","Couts internes","Couts internes","Couts internes","Couts internes","Couts internes","Couts internes","Couts internes","Couts internes","Couts internes","Couts internes","Couts internes","Couts internes","Couts internes","Couts internes","Couts internes","Couts internes","Couts internes","Couts internes","Couts internes","Couts internes","Couts internes","Couts internes","Couts internes","Couts internes","Couts internes","Couts internes","Couts internes","Couts internes","Couts internes","Couts internes","Couts internes","Couts internes","Couts internes","Couts internes","Couts internes","Couts internes","Couts internes","Couts internes","Couts internes","Couts internes","Couts internes","Couts internes","Couts internes","Couts internes","Couts internes","Couts internes","Couts internes","Couts internes","Couts internes","Couts internes","Couts internes","Couts internes","Couts internes","Couts internes","Couts internes","Couts internes","Couts internes","Couts internes","Couts internes","Couts internes","Couts internes","Couts internes","Couts internes","Couts internes","Couts internes","Couts internes","Couts internes","Couts internes","Couts internes","Couts internes","Couts internes","Couts internes","Couts internes","Couts internes","Couts internes","Couts internes","Couts internes","Couts internes","Couts internes","Couts internes","Couts internes","Couts internes","Couts internes","Couts internes","Couts internes","Couts internes","Couts internes","Couts internes","Couts internes","Couts internes","Couts internes","Couts internes","Couts internes","Couts internes","Couts internes","Couts internes","Couts internes","Couts internes","Couts internes","Couts internes","Couts internes","Couts internes","Couts internes","Couts internes","Couts internes","Couts internes","Couts internes","Couts internes","Couts internes","Couts internes","Couts internes","Couts internes","Couts internes","Couts internes","Couts internes","Couts internes","Couts internes","Couts internes","Couts internes","Couts internes","Couts internes","Couts internes","Couts internes","Couts internes","Couts internes","Couts internes","Couts internes","Couts internes","Couts internes","Couts internes","Couts internes","Couts internes","Couts internes","Couts internes","Couts internes","Couts internes","Couts internes","Couts internes","Couts internes","Couts internes","Couts internes","Couts internes","Couts internes","Couts internes","Couts internes","Couts internes","Couts internes","Couts internes","Couts internes","Couts internes","Couts internes","Couts internes","Couts internes","Couts internes","Couts internes","Couts internes","Couts internes","Couts internes","Couts internes","Couts internes","Couts internes","Couts internes","Couts internes","Couts internes","Couts internes","Couts internes","Couts internes","Couts internes","Couts internes","Couts internes","Couts internes","Couts internes","Couts internes","Couts internes","Couts internes","Couts internes","Couts internes","Couts internes","Couts internes","Couts internes","Couts internes","Couts internes","Couts internes","Couts internes","Couts internes","Couts internes","Couts internes","Couts internes","Couts internes","Couts internes","Couts internes","Couts internes","Couts internes","Couts internes","Couts internes","Couts internes","Couts internes","Couts internes","Couts internes","Couts internes","Couts internes","Couts internes","Couts internes","Couts internes","Couts internes","Couts internes","Couts internes","Couts internes","Couts internes","Couts internes","Couts internes","Couts internes","Couts internes","Couts internes","Couts internes","Couts internes","Couts internes","Couts internes","Couts internes","Couts internes","Couts internes","Couts internes","Couts internes","Couts internes","Couts internes","Couts internes","Couts internes","Couts internes","Couts internes","Couts internes","Couts internes","Couts internes","Couts internes","Couts internes","Couts internes","Couts internes","Couts internes","Couts internes","Couts internes","Couts internes","Couts internes","Couts internes","Couts internes","Couts internes","Couts internes","Couts internes","Couts internes","Couts internes","Couts internes","Couts internes","Couts internes","Couts internes","Couts internes","Couts internes","Couts internes","Couts internes","Couts internes","Couts internes","Couts internes","Couts internes","Couts internes","Couts internes","Couts internes","Couts internes","Couts internes","Couts internes","Couts internes","Couts internes","Couts internes","Couts internes","Couts internes","Couts internes","Couts internes","Couts internes","Couts internes","Couts internes","Couts internes","Couts internes","Couts internes","Couts internes","Couts internes","Couts internes","Couts internes","Couts internes","Couts internes","Couts internes","Couts internes","Couts internes","Couts internes","Couts internes","Couts internes","Couts internes","Couts internes","Couts internes","Couts internes","Couts internes","Couts internes","Couts internes","Couts internes","Couts internes","Couts internes","Couts internes","Couts internes","Couts internes","Couts internes","Couts internes","Couts internes","Couts internes","Couts internes","Couts internes","Couts internes","Couts internes","Couts internes","Couts internes","Couts internes","Couts internes","Couts internes","Couts internes","Couts internes","Couts internes","Couts internes","Couts internes","Couts internes","Couts internes","Couts internes","Couts internes","Couts internes","Couts internes","Couts internes","Couts internes","Couts internes","Couts internes","Couts internes","Couts internes","Couts internes","Couts internes","Couts internes","Couts internes","Couts internes","Couts internes","Couts internes","Couts internes","Couts internes","Couts internes","Couts internes","Couts internes","Couts internes","Couts internes","Couts internes","Couts internes","Couts internes","Couts internes","Couts internes","Couts internes","Couts internes","Couts internes","Couts internes","Couts internes","Couts internes","Couts internes","Couts internes","Couts internes","Couts internes","Couts internes","Couts internes","Couts internes","Couts internes","Couts internes","Couts internes","Couts internes","Couts internes","Couts internes","Couts internes","Couts internes","Couts internes","Couts internes","Couts internes","Couts internes","Couts internes","Couts internes","Couts internes","Couts internes","Couts internes","Couts internes","Couts internes","Couts internes","Couts internes","Couts internes","Couts internes","Couts internes","Couts internes","Couts internes","Couts internes","Couts internes","Couts internes","Couts internes","Couts internes","Couts internes","Couts internes","Couts internes","Couts internes","Couts internes","Couts internes","Couts internes","Couts internes","Couts internes","Couts internes","Couts internes","Couts internes","Couts internes","Couts internes","Couts internes","Couts internes","Couts internes","Couts internes","Couts internes","Couts internes","Couts internes","Couts internes","Couts internes","Couts internes","Couts internes","Couts internes","Couts internes","Couts internes","Couts internes","Couts internes","Couts internes","Couts internes","Couts internes","Couts internes","Couts internes","Couts internes","Couts internes","Couts internes","Couts internes","Couts internes","Couts internes","Couts internes","Couts internes","Couts internes","Couts internes","Couts internes","Couts internes","Couts internes","Couts internes","Couts internes","Couts internes","Couts internes","Couts internes","Couts internes","Couts internes","Couts internes","Couts internes","Couts internes","Couts internes","Couts internes","Couts internes","Couts internes","Couts internes","Couts internes","Couts internes","Couts internes","Couts internes","Couts internes","Couts internes","Couts internes","Couts internes","Couts internes","Couts internes","Couts internes","Couts internes","Couts internes","Couts internes","Couts internes","Couts internes","Couts internes","Couts internes","Couts internes","Couts internes","Couts internes","Couts internes","Couts internes","Couts internes","Couts internes","Couts internes","Couts internes","Couts internes","Couts internes","Couts internes","Couts internes","Couts internes","Couts internes","Couts internes","Couts internes","Couts internes","Couts internes","Couts internes","Couts internes","Couts internes","Couts internes","Couts internes","Couts internes","Couts internes","Couts internes","Couts internes","Couts internes","Couts internes","Couts internes","Couts internes","Couts internes","Couts internes","Couts internes","Couts internes","Couts internes","Couts internes","Couts internes","Couts internes","Couts internes","Couts internes","Couts internes","Couts internes","Couts internes","Couts internes","Couts internes","Couts internes","Couts internes","Couts internes","Couts internes","Couts internes","Couts internes","Couts internes","Couts internes","Couts internes","Couts internes","Couts internes","Couts internes","Couts internes","Couts internes","Couts internes","Couts internes","Couts internes","Couts internes","Couts internes","Couts internes","Couts internes","Couts internes","Couts internes","Couts internes","Couts internes","Couts internes","Couts internes","Couts internes","Couts internes","Couts internes","Couts internes","Couts internes","Couts internes","Couts internes","Couts internes","Couts internes","Couts internes","Couts internes","Couts internes","Couts internes","Couts internes","Couts internes","Couts internes","Couts internes","Couts internes","Couts internes","Couts internes","Couts internes","Couts internes","Couts internes","Couts internes","Couts internes","Couts internes","Couts internes","Couts internes","Couts internes","Couts internes","Couts internes","Couts internes","Couts internes","Couts internes","Couts internes","Couts internes","Couts internes","Couts internes","Couts internes","Couts internes","Couts internes","Couts internes","Couts internes","Couts internes","Couts internes","Couts internes","Couts internes","Couts internes","Couts internes","Couts internes","Couts internes","Couts internes","Couts internes","Couts internes","Couts internes","Couts internes","Couts internes","Couts internes","Couts internes","Couts internes","Couts internes","Couts internes","Couts internes","Couts internes","Couts internes","Couts internes","Couts internes","Couts internes","Couts internes","Couts internes","Couts internes","Couts internes","Couts internes","Couts internes","Couts internes","Couts internes","Couts internes","Couts internes","Couts internes","Couts internes","Couts internes","Couts internes","Couts internes","Couts internes","Couts internes","Couts internes","Couts internes","Couts internes","Couts internes","Couts internes","Couts internes","Couts internes","Couts internes","Couts internes","Couts internes","Couts internes","Couts internes","Couts internes","Couts internes","Couts internes","Couts internes","Couts internes","Couts internes","Couts internes","Couts internes","Couts internes","Couts internes","Couts internes","Couts internes","Couts internes","Couts internes","Couts internes","Couts internes","Couts internes","Couts internes","Couts internes","Couts internes","Couts internes","Couts internes","Couts internes","Couts internes","Couts internes","Couts internes","Couts internes","Couts internes","Couts internes","Couts internes","Couts internes","Couts internes","Couts internes","Couts internes","Couts internes","Couts internes","Couts internes","Couts internes","Couts internes","Couts internes","Couts internes","Couts internes","Couts internes","Couts internes","Couts internes","Couts internes","Couts internes","Couts internes","Couts internes","Couts internes","Couts internes","Couts internes","Couts internes","Couts internes","Couts internes","Couts internes","Couts internes","Couts internes","Couts internes","Couts internes","Couts internes","Couts internes","Couts internes","Couts internes","Couts internes","Couts internes","Couts internes","Couts internes","Couts internes","Couts internes","Couts internes","Couts internes","Couts internes","Couts internes","Couts internes","Couts internes","Couts internes","Couts internes","Couts internes","Couts internes","Couts internes","Couts internes","Couts internes","Couts internes","Couts internes","Couts internes","Couts internes","Couts internes","Couts internes","Couts internes","Couts internes","Couts internes","Couts internes","Couts internes","Couts internes","Couts internes","Couts internes","Couts internes","Couts internes","Couts internes","Couts internes","Couts internes","Couts internes","Couts internes","Couts internes","Couts internes","Couts internes","Couts internes","Couts internes","Couts internes","Couts internes","Couts internes","Couts internes","Couts internes","Couts internes","Couts internes","Couts internes","Couts internes","Couts internes","Couts internes","Couts internes","Couts internes","Couts internes","Couts internes","Couts internes","Couts internes","Couts internes","Couts internes","Couts internes","Couts internes","Couts internes","Couts internes","Couts internes","Couts internes","Couts internes","Couts internes","Couts internes","Couts internes","Couts internes","Couts internes","Couts internes","Couts internes","Couts internes","Couts internes","Couts internes","Couts internes","Couts internes","Couts internes","Couts internes","Couts internes","Couts internes","Couts internes","Couts internes","Couts internes","Couts internes","Couts internes","Couts internes","Couts internes","Couts internes","Couts internes","Couts internes","Couts internes","Couts internes","Couts internes","Couts internes","Couts internes","Couts internes","Couts internes","Couts internes","Couts internes","Couts internes","Couts internes","Couts internes","Couts internes","Couts internes","Couts internes","Couts internes","Couts internes","Couts internes","Couts internes","Couts internes","Couts internes","Couts internes","Couts internes","Couts internes","Couts internes","Couts internes","Couts internes","Couts internes","Couts internes","Couts internes","Couts internes","Couts internes","Couts internes","Couts internes","Couts internes","Couts internes","Couts internes","Couts internes","Couts internes","Couts internes","Couts internes","Couts internes","Couts internes","Couts internes","Couts internes","Couts internes","Couts internes","Couts internes","Couts internes","Couts internes","Couts internes","Couts internes","Couts internes","Couts internes","Couts internes","Couts internes","Couts internes","Couts internes","Couts internes","Couts internes","Couts internes","Couts internes","Couts internes","Couts internes","Couts internes","Couts internes","Couts internes","Couts internes","Couts internes","Couts internes","Couts internes","Couts internes","Couts internes","Couts internes","Couts internes","Couts internes","Couts internes","Couts internes","Couts internes","Couts internes","Couts internes","Couts internes","Couts internes","Couts internes","Couts internes","Couts internes","Couts internes","Couts internes","Couts internes","Couts internes","Couts internes","Couts internes","Couts internes","Couts internes","Couts internes","Couts internes","Couts internes","Couts internes","Couts internes","Couts internes","Couts internes","Couts internes","Couts internes","Couts internes","Couts internes","Couts internes","Couts internes","Couts internes","Couts internes","Couts internes","Couts internes","Couts internes","Couts internes","Couts internes","Couts internes","Couts internes","Couts internes","Couts internes","Couts internes","Couts internes","Couts internes","Couts internes","Couts internes","Couts internes","Couts internes","Couts internes","Couts internes","Couts internes","Couts internes","Couts internes","Couts internes","Couts internes","Couts internes","Couts internes","Couts internes","Couts internes","Couts internes","Couts internes","Couts internes","Couts internes","Couts internes","Couts internes","Couts internes","Couts internes","Couts internes","Couts internes","Couts internes","Couts internes","Couts internes","Couts internes","Couts internes","Couts internes","Couts internes","Couts internes","Couts internes","Couts internes","Couts internes","Couts internes","Couts internes","Couts internes","Couts internes","Couts internes","Couts internes","Couts internes","Couts internes","Couts internes","Couts internes","Couts internes","Couts internes","Couts internes","Couts internes","Couts internes","Couts internes","Couts internes","Couts internes","Couts internes","Couts internes","Couts internes","Couts internes","Couts internes","Couts internes","Couts internes","Couts internes","Couts internes","Couts internes","Couts internes","Couts internes","Couts internes","Couts internes","Couts internes","Couts internes","Couts internes","Couts internes","Couts internes","Couts internes","Couts internes","Couts internes","Couts internes","Couts internes","Couts internes","Couts internes","Couts internes","Couts internes","Couts internes","Couts internes","Couts internes","Couts internes","Couts internes","Couts internes","Couts internes","Couts internes","Couts internes","Couts internes","Couts internes","Couts internes","Couts internes","Couts internes","Couts internes","Couts internes","Couts internes","Couts internes","Couts internes","Couts internes","Couts internes","Couts internes","Couts internes","Couts internes","Couts internes","Couts internes","Couts internes","Couts internes","Couts internes","Couts internes","Couts internes","Couts internes","Couts internes","Couts internes","Couts internes","Couts internes","Couts internes","Couts internes","Couts internes","Couts internes","Couts internes","Couts internes","Couts internes","Couts internes","Couts internes","Couts internes","Couts internes","Couts internes","Couts internes","Couts internes","Couts internes","Couts internes","Couts internes","Couts internes","Couts internes","Couts internes","Couts internes","Couts internes","Couts internes","Couts internes","Couts internes","Couts internes","Couts internes","Couts internes","Couts internes","Couts internes","Couts internes","Couts internes","Couts internes","Couts internes","Couts internes","Couts internes","Couts internes","Couts internes","Couts internes","Couts internes","Couts internes","Couts internes","Couts internes","Couts internes","Couts internes","Couts internes","Couts internes","Couts internes","Couts internes","Couts internes","Couts internes","Couts internes","Couts internes","Couts internes","Couts internes","Couts internes","Couts internes","Couts internes","Couts internes","Couts internes","Couts internes","Couts internes","Couts internes","Couts internes","Couts internes","Couts internes","Couts internes","Couts internes","Couts internes","Couts internes","Couts internes","Couts internes","Couts internes","Couts internes","Couts internes","Couts internes","Couts internes","Couts internes","Couts internes","Couts internes","Couts internes","Couts internes","Couts internes","Couts internes","Couts internes","Couts internes","Couts internes","Couts internes","Couts internes","Couts internes","Couts internes","Couts internes","Couts internes","Couts internes","Couts internes","Couts internes","Couts internes","Couts internes","Couts internes","Couts internes","Couts internes","Couts internes","Couts internes","Couts internes","Couts internes","Couts internes","Couts internes","Couts internes","Couts internes","Couts internes","Couts internes","Couts internes","Couts internes","Couts internes","Couts internes","Couts internes","Couts internes","Couts internes","Couts internes","Couts internes","Couts internes","Couts internes","Couts internes","Couts internes","Couts internes","Couts internes","Couts internes","Couts internes","Couts internes","Couts internes","Couts internes","Couts internes","Couts internes","Couts internes","Couts internes","Couts internes","Couts internes","Couts internes","Couts internes","Couts internes","Couts internes","Couts internes","Couts internes","Couts internes","Couts internes","Couts internes","Couts internes","Couts internes","Couts internes","Couts internes","Couts internes","Couts internes","Couts internes","Couts internes","Couts internes","Couts internes","Couts internes","Couts internes","Couts internes","Couts internes","Couts internes","Couts internes","Couts internes","Couts internes","Couts internes","Couts internes","Couts internes","Couts internes","Couts internes","Couts internes","Couts internes","Couts internes","Couts internes","Couts internes","Couts internes","Couts internes","Couts internes","Couts internes","Couts internes","Couts internes","Couts internes","Couts internes","Couts internes","Couts internes","Couts internes","Couts internes","Couts internes","Couts internes","Couts internes","Couts internes","Couts internes","Couts internes","Couts internes","Couts internes","Couts internes","Couts internes","Couts internes","Couts internes","Couts internes","Couts internes","Couts internes","Couts internes","Couts internes","Couts internes","Couts internes","Couts internes","Couts internes","Couts internes","Couts internes","Couts internes","Couts internes","Couts internes","Couts internes","Couts internes","Couts internes","Couts internes","Couts internes","Couts internes","Couts internes","Couts internes","Couts internes","Couts internes","Couts internes","Couts internes","Couts internes","Couts internes","Couts internes","Couts internes","Couts internes","Couts internes","Couts internes","Couts internes","Couts internes","Couts internes","Couts internes","Couts internes","Couts internes","Couts internes","Couts internes","Couts internes","Couts internes","Couts internes","Couts internes","Couts internes","Couts internes","Couts internes","Couts internes","Couts internes","Couts internes","Couts internes","Couts internes","Couts internes","Couts internes","Couts internes","Couts internes","Couts internes","Couts internes","Couts internes","Couts internes","Couts internes","Couts internes","Couts internes","Couts internes","Couts internes","Couts internes","Couts internes","Couts internes","Couts internes","Couts internes","Couts internes","Couts internes","Couts internes","Couts internes","Couts internes","Couts internes","Couts internes","Couts internes","Couts internes","Couts internes","Couts internes","Couts internes","Couts internes","Couts internes","Couts internes","Couts internes","Couts internes","Couts internes","Couts internes","Couts internes","Couts internes","Couts internes","Couts internes","Couts internes","Couts internes","Couts internes","Couts internes","Couts internes","Couts internes","Couts internes","Couts internes","Couts internes","Couts internes","Couts internes","Couts internes","Couts internes","Couts internes","Couts internes","Couts internes","Couts internes","Couts internes","Couts internes","Couts internes","Couts internes","Couts internes","Couts internes","Couts internes","Couts internes","Couts internes","Couts internes","Couts internes","Couts internes","Couts internes","Couts internes","Couts internes","Couts internes","Couts internes","Couts internes","Couts internes","Couts internes","Couts internes","Couts internes","Couts internes","Couts internes","Couts internes","Couts internes","Couts internes","Couts internes","Couts internes","Couts internes","Couts internes","Couts internes","Couts internes","Couts internes","Couts internes","Couts internes","Couts internes","Couts internes","Couts internes","Couts internes","Couts internes","Couts internes","Couts internes","Couts internes","Couts internes","Couts internes","Couts internes","Couts internes","Couts internes","Couts internes","Couts internes","Couts internes","Couts internes","Couts internes","Couts internes","Couts internes","Couts internes","Couts internes","Couts internes","Couts internes","Couts internes","Couts internes","Couts internes","Couts internes","Couts internes","Couts internes","Couts internes","Couts internes","Couts internes","Couts internes","Couts internes","Couts internes","Couts internes","Couts internes","Couts internes","Couts internes","Couts internes","Couts internes","Couts internes","Couts internes","Couts internes","Couts internes","Couts internes","Couts internes","Couts internes","Couts internes","Couts internes","Couts internes","Couts internes","Couts internes","Couts internes","Couts internes","Couts internes","Couts internes","Couts internes","Couts internes","Couts internes","Couts internes","Couts internes","Couts internes","Couts internes","Couts internes","Couts internes","Couts internes","Couts internes","Couts internes","Couts internes","Couts internes","Couts internes","Couts internes","Couts internes","Couts internes","Couts internes","Couts internes","Couts internes","Couts internes","Couts internes","Couts internes","Couts internes","Couts internes","Couts internes","Couts internes","Couts internes","Couts internes","Couts internes","Couts internes","Couts internes","Couts internes","Couts internes","Couts internes","Couts internes","Couts internes","Couts internes","Couts internes","Couts internes","Couts internes","Couts internes","Couts internes","Couts internes","Couts internes","Couts internes","Couts internes","Couts internes","Couts internes","Couts internes","Couts internes","Couts internes","Couts internes","Couts internes","Couts internes","Couts internes","Couts internes","Couts internes","Couts internes","Couts internes","Couts internes","Couts internes","Couts internes","Couts internes","Couts internes","Couts internes","Couts internes","Couts internes","Couts internes","Couts internes","Couts internes","Couts internes","Couts internes","Couts internes","Couts internes","Couts internes","Couts internes","Couts internes","Couts internes","Couts internes","Couts internes","Couts internes","Couts internes","Couts internes","Couts internes","Couts internes","Couts internes","Couts internes","Couts internes","Couts internes","Couts internes","Couts internes","Couts internes","Couts internes","Couts internes","Couts internes","Couts internes","Couts internes","Couts internes","Couts internes","Couts internes","Couts internes","Couts internes","Couts internes","Couts internes","Couts internes","Couts internes","Couts internes","Couts internes","Couts internes","Couts internes","Couts internes","Couts internes","Couts internes","Couts internes","Couts internes","Couts internes","Couts internes","Couts internes","Couts internes","Couts internes","Couts internes","Couts internes","Couts internes","Couts internes","Couts internes","Couts internes","Couts internes","Couts internes","Couts internes","Couts internes","Couts internes","Couts internes","Couts internes","Couts internes","Couts internes","Couts internes","Couts internes","Couts internes","Couts internes","Couts internes","Couts internes","Couts internes","Couts internes","Couts internes","Couts internes","Couts internes","Couts internes","Couts internes","Couts internes","Couts internes","Couts internes","Couts internes","Couts internes","Couts internes","Couts internes","Couts internes","Couts internes","Couts internes","Couts internes","Couts internes","Couts internes","Couts internes","Couts internes","Couts internes","Couts internes","Couts internes","Couts internes","Couts internes","Couts internes","Couts internes","Couts internes","Couts internes","Couts internes","Couts internes","Couts internes","Couts internes","Couts internes","Couts internes","Couts internes","Couts internes","Couts internes","Couts internes","Couts internes","Couts internes","Couts internes","Couts internes","Couts internes","Couts internes","Couts internes","Couts internes","Couts internes","Couts internes","Couts internes","Couts internes","Couts internes","Couts internes","Couts internes","Couts internes","Couts internes","Couts internes","Couts internes","Couts internes","Couts internes","Couts internes","Couts internes","Couts internes","Couts internes","Couts internes","Couts internes","Couts internes","Couts internes","Couts internes","Couts internes","Couts internes","Couts internes","Couts internes","Couts internes","Couts internes","Couts internes","Couts internes","Couts internes","Couts internes","Couts internes","Couts internes","Couts internes","Couts internes","Couts internes","Couts internes","Couts internes","Couts internes","Couts internes","Couts internes","Couts internes","Couts internes","Couts internes","Couts internes","Couts internes","Couts internes","Couts internes","Couts internes","Couts internes","Couts internes","Couts internes","Couts internes","Couts internes","Couts internes","Couts internes","Couts internes","Couts internes","Couts internes","Couts internes","Couts internes","Couts internes","Couts internes","Couts internes","Couts internes","Couts internes","Couts internes","Couts internes","Couts internes","Couts internes","Couts internes","Couts internes","Couts internes","Couts internes","Couts internes","Couts internes","Couts internes","Couts internes","Couts internes","Couts internes","Couts internes","Couts internes","Couts internes","Couts internes","Couts internes","Couts internes","Couts internes","Couts internes","Couts internes","Couts internes","Couts internes","Couts internes","Couts internes","Couts internes","Couts internes","Couts internes","Couts internes","Couts internes","Couts internes","Couts internes","Couts internes","Couts internes","Couts internes","Couts internes","Couts internes","Couts internes","Couts internes","Couts internes","Couts internes","Couts internes","Couts internes","Couts internes","Couts internes","Couts internes","Couts internes","Couts internes","Couts internes","Couts internes","Couts internes","Couts internes","Couts internes","Couts internes","Couts internes","Couts internes","Couts internes","Couts internes","Couts internes","Couts internes","Couts internes","Couts internes","Couts internes","Couts internes","Couts internes","Couts internes","Couts internes","Couts internes","Couts internes","Couts internes","Couts internes","Couts internes","Couts internes","Couts internes","Couts internes","Couts internes","Couts internes","Couts internes","Couts internes","Couts internes","Couts internes","Couts internes","Couts internes","Couts internes","Couts internes","Couts internes","Couts internes","Couts internes","Couts internes","Couts internes","Couts internes","Couts internes","Couts internes","Couts internes","Couts internes","Couts internes","Couts internes","Couts internes","Couts internes","Couts internes","Couts internes","Couts internes","Couts internes","Couts internes","Couts internes","Couts internes","Couts internes","Couts internes","Couts internes","Couts internes","Couts internes","Couts internes","Couts internes","Couts internes","Couts internes","Couts internes","Couts internes","Couts internes","Couts internes","Couts internes","Couts internes","Couts internes","Couts internes","Couts internes","Couts internes","Couts internes","Couts internes","Couts internes","Couts internes","Couts internes","Couts internes","Couts internes","Couts internes","Couts internes","Couts internes","Couts internes","Couts internes","Couts internes","Couts internes","Couts internes","Couts internes","Couts internes","Couts internes","Couts internes","Couts internes","Couts internes","Couts internes","Couts internes","Couts internes","Couts internes","Couts internes","Couts internes","Couts internes","Couts internes","Couts internes","Couts internes","Couts internes","Couts internes","Couts internes","Couts internes","Couts internes","Couts internes","Couts internes","Couts internes","Couts internes","Couts internes","Couts internes","Couts internes","Couts internes","Couts internes","Couts internes","Couts internes","Couts internes","Couts internes","Couts internes","Couts internes","Couts internes","Couts internes","Couts internes","Couts internes","Couts internes","Couts internes","Couts internes","Couts internes","Couts internes","Couts internes","Couts internes","Couts internes","Couts internes","Couts internes","Couts internes","Couts internes","Couts internes","Couts internes","Couts internes","Couts internes","Couts internes","Couts internes","Couts internes","Couts internes","Couts internes","Couts internes","Couts internes","Couts internes","Couts internes","Couts internes","Couts internes","Couts internes","Couts internes","Couts internes","Couts internes","Couts internes","Couts internes","Couts internes","Couts internes","Couts internes","Couts internes","Couts internes","Couts internes","Couts internes","Couts internes","Couts internes","Couts internes","Couts internes","Couts internes","Couts internes","Couts internes","Couts internes","Couts internes","Couts internes","Couts internes","Couts internes","Couts internes","Couts internes","Couts internes","Couts internes","Couts internes","Couts internes","Couts internes","Couts internes","Couts internes","Couts internes","Couts internes","Couts internes","Couts internes","Couts internes","Couts internes","Couts internes","Couts internes","Couts internes","Couts internes","Couts internes","Couts internes","Couts internes","Couts internes","Couts internes","Couts internes","Couts internes","Couts internes","Couts internes","Couts internes","Couts internes","Couts internes","Couts internes","Couts internes","Couts internes","Couts internes","Couts internes","Couts internes","Couts internes","Couts internes","Couts internes","Couts internes","Couts internes","Couts internes","Couts internes","Couts internes","Couts internes","Couts internes","Couts internes","Couts internes","Couts internes","Couts internes","Couts internes","Couts internes","Couts internes","Couts internes","Couts internes","Couts internes","Couts internes","Couts internes","Couts internes","Couts internes","Couts internes","Couts internes","Couts internes","Couts internes","Couts internes","Couts internes","Couts internes","Couts internes","Couts internes","Couts internes","Couts internes","Couts internes","Couts internes","Couts internes","Couts internes","Couts internes","Couts internes","Couts internes","Couts internes","Couts internes","Couts internes","Couts internes","Couts internes","Couts internes","Couts internes","Couts internes","Couts internes","Couts internes","Couts internes","Couts internes","Couts internes","Couts internes","Couts internes","Couts internes","Couts internes","Couts internes","Couts internes","Couts internes","Couts internes","Couts internes","Couts internes","Couts internes","Couts internes","Couts internes","Couts internes","Couts internes","Couts internes","Couts internes","Couts internes","Couts internes","Couts internes","Couts internes","Couts internes","Couts internes","Couts internes","Couts internes","Couts internes","Couts internes","Couts internes","Couts internes","Couts internes","Couts internes","Couts internes","Couts internes","Couts internes","Couts internes","Couts internes","Couts internes","Couts internes","Couts internes","Couts internes","Couts internes","Couts internes","Couts internes","Couts internes","Couts internes","Couts internes","Couts internes","Couts internes","Couts internes","Couts internes","Couts internes","Couts internes","Couts internes","Couts internes","Couts internes","Couts internes","Couts internes","Couts internes","Couts internes","Couts internes","Couts internes","Couts internes","Couts internes","Couts internes","Couts internes","Couts internes","Couts internes","Couts internes","Couts internes","Couts internes","Couts internes","Couts internes","Couts internes","Couts internes","Couts internes","Couts internes","Couts internes","Couts internes","Couts internes","Couts internes","Couts internes","Couts internes","Couts internes","Couts internes","Couts internes","Couts internes","Couts internes","Couts internes","Couts internes","Couts internes","Couts internes","Couts internes","Couts internes","Couts internes","Couts internes","Couts internes","Couts internes","Couts internes","Couts internes","Couts internes","Couts internes","Couts internes","Couts internes","Couts internes","Couts internes","Couts internes","Couts internes","Couts internes","Couts internes","Couts internes","Couts internes","Couts internes","Couts internes","Couts internes","Couts internes","Couts internes","Couts internes","Couts internes","Couts internes","Couts internes","Couts internes","Couts internes","Couts internes","Couts internes","Couts internes","Couts internes","Couts internes","Couts internes","Couts internes","Couts internes","Couts internes","Couts internes","Couts internes","Couts internes","Couts internes","Couts internes","Couts internes","Couts internes","Couts internes","Couts internes","Couts internes","Couts internes","Couts internes","Couts internes","Couts internes","Couts internes","Couts internes","Couts internes","Couts internes","Couts internes","Couts internes","Couts internes","Couts internes","Couts internes","Couts internes","Couts internes","Couts internes","Couts internes","Couts internes","Couts internes","Couts internes","Couts internes","Couts internes","Couts internes","Couts internes","Couts internes","Couts internes","Couts internes","Couts internes","Couts internes","Couts internes","Couts internes","Couts internes","Couts internes","Couts internes","Couts internes","Couts internes","Couts internes","Couts internes","Couts internes","Couts internes","Couts internes","Couts internes","Couts internes","Couts internes","Couts internes","Couts internes","Couts internes","Couts internes","Couts internes","Couts internes","Couts internes","Couts internes","Couts internes","Couts internes","Couts internes","Couts internes","Couts internes","Couts internes","Couts internes","Couts internes","Couts internes","Couts internes","Couts internes","Couts internes","Couts internes","Couts internes","Couts internes","Couts internes","Couts internes","Couts internes","Couts internes","Couts internes","Couts internes","Couts internes","Couts internes","Couts internes","Couts internes","Couts internes","Couts internes","Couts internes","Couts internes","Couts internes","Couts internes","Couts internes","Couts internes","Couts internes","Couts internes","Couts internes","Couts internes","Couts internes","Couts internes","Couts internes","Couts internes","Couts internes","Couts internes","Couts internes","Couts internes","Couts internes","Couts internes","Couts internes","Couts internes","Couts internes","Couts internes","Couts internes","Couts internes","Couts internes","Couts internes","Couts internes","Couts internes","Couts internes","Couts internes","Couts internes","Couts internes","Couts internes","Couts internes","Couts internes","Couts internes","Couts internes","Couts internes","Couts internes","Couts internes","Couts internes","Couts internes","Couts internes","Couts internes","Couts internes","Couts internes","Couts internes","Couts internes","Couts internes","Couts internes","Couts internes","Couts internes","Couts internes","Couts internes","Couts internes","Couts internes","Couts internes","Couts internes","Couts internes","Couts internes","Couts internes","Couts internes","Couts internes","Couts internes","Couts internes","Couts internes","Couts internes","Couts internes","Couts internes","Couts internes","Couts internes","Couts internes","Couts internes","Couts internes","Couts internes","Couts internes","Couts internes","Couts internes","Couts internes","Couts internes","Couts internes","Couts internes","Couts internes","Couts internes","Couts internes","Couts internes","Couts internes","Couts internes","Couts internes","Couts internes","Couts internes","Couts internes","Couts internes","Couts internes","Couts internes","Couts internes","Couts internes","Couts internes","Couts internes","Couts internes","Couts internes","Couts internes","Couts internes","Couts internes","Couts internes","Couts internes","Couts internes","Couts internes","Couts internes","Couts internes","Couts internes","Couts internes","Couts internes","Couts internes","Couts internes","Couts internes","Couts internes","Couts internes","Couts internes","Couts internes","Couts internes","Couts internes","Couts internes","Couts internes","Couts internes","Couts internes","Couts internes","Couts internes","Couts internes","Couts internes","Couts internes","Couts internes","Couts internes","Couts internes","Couts internes","Couts internes","Couts internes","Couts internes","Couts internes","Couts internes","Couts internes","Couts internes","Couts internes","Couts internes","Couts internes","Couts internes","Couts internes","Couts internes","Couts internes","Couts internes","Couts internes","Couts internes","Couts internes","Couts internes","Couts internes","Couts internes","Couts internes","Couts internes","Couts internes","Couts internes","Couts internes","Couts internes","Couts internes","Couts internes","Couts internes","Couts internes","Couts internes","Couts internes","Couts internes","Couts internes","Couts internes","Couts internes","Couts internes","Couts internes","Couts internes","Couts internes","Couts internes","Couts internes","Couts internes","Couts internes","Couts internes","Couts internes","Couts internes","Couts internes","Couts internes","Couts internes","Couts internes","Couts internes","Couts internes","Couts internes","Couts internes","Couts internes","Couts internes","Couts internes","Couts internes","Couts internes","Couts internes","Couts internes","Couts internes","Couts internes","Couts internes","Couts internes","Couts internes","Couts internes","Couts internes","Couts internes","Couts internes","Couts internes","Couts internes","Couts internes","Couts internes","Couts internes","Couts internes","Couts internes","Couts internes","Couts internes","Couts internes","Couts internes","Couts internes","Couts internes","Couts internes","Couts internes","Couts internes","Couts internes","Couts internes","Couts internes","Couts internes","Couts internes","Couts internes","Couts internes","Couts internes","Couts internes","Couts internes","Couts internes","Couts internes","Couts internes","Couts internes","Couts internes","Couts internes","Couts internes","Couts internes","Couts internes","Couts internes","Couts internes","Couts internes","Couts internes","Couts internes","Couts internes","Couts internes","Couts internes","Couts internes","Couts internes","Couts internes","Couts internes","Couts internes","Couts internes","Couts internes","Couts internes","Couts internes","Couts internes","Couts internes","Couts internes","Couts internes","Couts internes","Couts internes","Couts internes","Couts internes","Couts internes","Couts internes","Couts internes","Couts internes","Couts internes","Couts internes","Couts internes","Couts internes","Couts internes","Couts internes","Couts internes","Couts internes","Couts internes","Couts internes","Couts internes","Couts internes","Couts internes","Couts internes","Couts internes","Couts internes","Couts internes","Couts internes","Couts internes","Couts internes","Couts internes","Couts internes","Couts internes","Couts internes","Couts internes","Couts internes","Couts internes","Couts internes","Couts internes","Couts internes","Couts internes","Couts internes","Couts internes","Couts internes","Couts internes","Couts internes","Couts internes","Couts internes","Couts internes","Couts internes","Couts internes","Couts internes","Couts internes","Couts internes","Couts internes","Couts internes","Couts internes","Couts internes","Couts internes","Couts internes","Couts internes","Couts internes","Couts internes","Couts internes","Couts internes","Couts internes","Couts internes","Couts internes","Couts internes","Couts internes","Couts internes","Couts internes","Couts internes","Couts internes","Couts internes","Couts internes","Couts internes","Couts internes","Couts internes","Couts internes","Couts internes","Couts internes","Couts internes","Couts internes","Couts internes","Couts internes","Couts internes","Couts internes","Couts internes","Couts internes","Couts internes","Couts internes","Couts internes","Couts internes","Couts internes","Couts internes","Couts internes","Couts internes","Couts internes","Couts internes","Couts internes","Couts internes","Couts internes","Couts internes","Couts internes","Couts internes","Couts internes","Couts internes","Couts internes","Couts internes","Couts internes","Couts internes","Couts internes","Couts internes","Couts internes","Couts internes","Couts internes","Couts internes","Couts internes","Couts internes","Couts internes","Couts internes","Couts internes","Couts internes","Couts internes","Couts internes","Couts internes","Couts internes","Couts internes","Couts internes","Couts internes","Couts internes","Couts internes","Couts internes","Couts internes","Couts internes","Couts internes","Couts internes","Couts internes","Couts internes","Couts internes","Couts internes","Couts internes","Couts internes","Couts internes","Couts internes","Couts internes","Couts internes","Couts internes","Couts internes","Couts internes","Couts internes","Couts internes","Couts internes","Couts internes","Couts internes","Couts internes","Couts internes","Couts internes","Couts internes","Couts internes","Couts internes","Couts internes","Couts internes","Couts internes","Couts internes","Couts internes","Couts internes","Couts internes","Couts internes","Couts internes","Couts internes","Couts internes","Couts internes","Couts internes","Couts internes","Couts internes","Couts internes","Couts internes","Couts internes","Couts internes","Couts internes","Couts internes","Couts internes","Couts internes","Couts internes","Couts internes","Couts internes","Couts internes","Couts internes","Couts internes","Couts internes","Couts internes","Couts internes","Couts internes","Couts internes","Couts internes","Couts internes","Couts internes","Couts internes","Couts internes","Couts internes","Couts internes","Couts internes","Couts internes","Couts internes","Couts internes","Couts internes","Couts internes","Couts internes","Couts internes","Couts internes","Couts internes","Couts internes","Couts internes","Couts internes","Couts internes","Couts internes","Couts internes","Couts internes","Couts internes","Couts internes","Couts internes","Couts internes","Couts internes","Couts internes","Couts internes","Couts internes","Couts internes","Couts internes","Couts internes","Couts internes","Couts internes","Couts internes","Couts internes","Couts internes","Couts internes","Couts internes","Couts internes","Couts internes","Couts internes","Couts internes","Couts internes","Couts internes","Couts internes","Couts internes","Couts internes","Couts internes","Couts internes","Couts internes","Couts internes","Couts internes","Couts internes","Couts internes","Couts internes","Couts internes","Couts internes","Couts internes","Couts internes","Couts internes","Couts internes","Couts internes","Couts internes","Couts internes","Couts internes","Couts internes","Couts internes","Couts internes","Couts internes","Couts internes","Couts internes","Couts internes","Couts internes","Couts internes","Couts internes","Couts internes","Couts internes","Couts internes","Couts internes","Couts internes","Couts internes","Couts internes","Couts internes","Couts internes","Couts internes","Couts internes","Couts internes","Couts internes","Couts internes","Couts internes","Couts internes","Couts internes","Couts internes","Couts internes","Couts internes","Couts internes","Couts internes","Couts internes","Couts internes","Couts internes","Couts internes","Couts internes","Couts internes","Couts internes","Couts internes","Couts internes","Couts internes","Couts internes","Couts internes","Couts internes","Couts internes","Couts internes","Couts internes","Couts internes","Couts internes","Couts internes","Couts internes","Couts internes","Couts internes","Couts internes","Couts internes","Couts internes","Couts internes","Couts internes","Couts internes","Couts internes","Couts internes","Couts internes","Couts internes","Couts internes","Couts internes","Couts internes","Couts internes","Couts internes","Couts internes","Couts internes","Couts internes","Couts internes","Couts internes","Couts internes","Couts internes","Couts internes","Couts internes","Couts internes","Couts internes","Couts internes","Couts internes","Couts internes","Couts internes","Couts internes","Couts internes","Couts internes","Couts internes","Couts internes","Couts internes","Couts internes","Couts internes","Couts internes","Couts internes","Couts internes","Couts internes","Couts internes","Couts internes","Couts internes","Couts internes","Couts internes","Couts internes","Couts internes","Couts internes","Couts internes","Couts internes","Couts internes","Couts internes","Couts internes","Couts internes","Couts internes","Couts internes","Couts internes","Couts internes","Couts internes","Couts internes","Couts internes","Couts internes","Couts internes","Couts internes","Couts internes","Couts internes","Couts internes","Couts internes","Couts internes","Couts internes","Couts internes","Couts internes","Couts internes","Couts internes","Couts internes","Couts internes","Couts internes","Couts internes","Couts internes","Couts internes","Couts internes","Couts internes","Couts internes","Couts internes","Couts internes","Couts internes","Couts internes","Couts internes","Couts internes","Couts internes","Couts internes","Couts internes","Couts internes","Couts internes","Couts internes","Couts internes","Couts internes","Couts internes","Couts internes","Couts internes","Couts internes","Couts internes","Couts internes","Couts internes","Couts internes","Couts internes","Couts internes","Couts internes","Couts internes","Couts internes","Couts internes","Couts internes","Couts internes","Couts internes","Couts internes","Couts internes","Couts internes","Couts internes","Couts internes","Couts internes","Couts internes","Couts internes","Couts internes","Couts internes","Couts internes","Couts internes","Couts internes","Couts internes","Couts internes","Couts internes","Couts internes","Couts internes","Couts internes","Couts internes","Couts internes","Couts internes","Couts internes","Couts internes","Couts internes","Couts internes","Couts internes","Couts internes","Couts internes","Couts internes","Couts internes","Couts internes","Couts internes","Couts internes","Couts internes","Couts internes","Couts internes","Couts internes","Couts internes","Couts internes","Couts internes","Couts internes","Couts internes","Couts internes","Couts internes","Couts internes","Couts internes","Couts internes","Couts internes","Couts internes","Couts internes","Couts internes","Couts internes","Couts internes","Couts internes","Couts internes","Couts internes","Couts internes","Couts internes","Couts internes","Couts internes","Couts internes","Couts internes","Couts internes","Couts internes","Couts internes","Couts internes","Couts internes","Couts internes","Couts internes","Couts internes","Couts internes","Couts internes","Couts internes","Couts internes","Couts internes","Couts internes","Couts internes","Couts internes","Couts internes","Couts internes","Couts internes","Couts internes","Couts internes","Couts internes","Couts internes","Couts internes","Couts internes","Couts internes","Couts internes","Couts internes","Couts internes","Couts internes","Couts internes","Couts internes","Couts internes","Couts internes","Couts internes","Couts internes","Couts internes","Couts internes","Couts internes","Couts internes","Couts internes","Couts internes","Couts internes","Couts internes","Couts internes","Couts internes","Couts internes","Couts internes","Couts internes","Couts internes","Couts internes","Couts internes","Couts internes","Couts internes","Couts internes","Couts internes","Couts internes","Couts internes","Couts internes","Couts internes","Couts internes","Couts internes","Couts internes","Couts internes","Couts internes","Couts internes","Couts internes","Couts internes","Couts internes","Couts internes","Couts internes","Couts internes","Couts internes","Couts internes","Couts internes","Couts internes","Couts internes","Couts internes","Couts internes","Couts internes","Couts internes","Couts internes","Couts internes","Couts internes","Couts internes","Couts internes","Couts internes","Couts internes","Couts internes","Couts internes","Couts internes","Couts internes","Couts internes","Couts internes","Couts internes","Couts internes","Couts internes","Couts internes","Couts internes","Couts internes","Couts internes","Couts internes","Couts internes","Couts internes","Couts internes","Couts internes","Couts internes","Couts internes","Couts internes","Couts internes","Couts internes","Couts internes","Couts internes","Couts internes","Couts internes","Couts internes","Couts internes","Couts internes","Couts internes","Couts internes","Couts internes","Couts internes","Couts internes","Couts internes","Couts internes","Couts internes","Couts internes","Couts internes","Couts internes","Couts internes","Couts internes","Couts internes","Couts internes","Couts internes","Couts internes","Couts internes","Couts internes","Couts internes","Couts internes","Couts internes","Couts internes","Couts internes","Couts internes","Couts internes","Couts internes","Couts internes","Couts internes","Couts internes","Couts internes","Couts internes","Couts internes","Couts internes","Couts internes","Couts internes","Couts internes","Couts internes","Couts internes","Couts internes","Couts internes","Couts internes","Couts internes","Couts internes","Couts internes","Couts internes","Couts internes","Couts internes","Couts internes","Couts internes","Couts internes","Couts internes","Couts internes","Couts internes","Couts internes","Couts internes","Couts internes","Couts internes","Couts internes","Couts internes","Couts internes","Couts internes","Couts internes","Couts internes","Couts internes","Couts internes","Couts internes","Couts internes","Couts internes","Couts internes","Couts internes","Couts internes","Couts internes","Couts internes","Couts internes","Couts internes","Couts internes","Couts internes","Couts internes","Couts internes","Couts internes","Couts internes","Couts internes","Couts internes","Couts internes","Couts internes","Couts internes","Couts internes","Couts internes","Couts internes","Couts internes","Couts internes","Couts internes","Couts internes","Couts internes","Couts internes","Couts internes","Couts internes","Couts internes","Couts internes","Couts internes","Couts internes","Couts internes","Couts internes","Couts internes","Couts internes","Couts internes","Couts internes","Couts internes","Couts internes","Couts internes","Couts internes","Couts internes","Couts internes","Couts internes","Couts internes","Couts internes","Couts internes","Couts internes","Couts internes","Couts internes","Couts internes","Couts internes","Couts internes","Couts internes","Couts internes","Couts internes","Couts internes","Couts internes","Couts internes","Couts internes","Couts internes","Couts internes","Couts internes","Couts internes","Couts internes","Couts internes","Couts internes","Couts internes","Couts internes","Couts internes","Couts internes","Couts internes","Couts internes","Couts internes","Couts internes","Couts internes","Couts internes","Couts internes","Couts internes","Couts internes","Couts internes","Couts internes","Couts internes","Couts internes","Couts internes","Couts internes","Couts internes","Couts internes","Couts internes","Couts internes","Couts internes","Couts internes","Couts internes","Couts internes","Couts internes","Couts internes","Couts internes","Couts internes","Couts internes","Couts internes","Couts internes","Couts internes","Couts internes","Couts internes","Couts internes","Couts internes","Couts internes","Couts internes","Couts internes","Couts internes","Couts internes","Couts internes","Couts internes","Couts internes","Couts internes","Couts internes","Couts internes","Couts internes","Couts internes","Couts internes","Couts internes","Couts internes","Couts internes","Couts internes","Couts internes","Couts internes","Couts internes","Couts internes","Couts internes","Couts internes","Couts internes","Couts internes","Couts internes","Couts internes","Couts internes","Couts internes","Couts internes","Couts internes","Couts internes","Couts internes","Couts internes","Couts internes","Couts internes","Couts internes","Couts internes","Couts internes","Couts internes","Couts internes","Couts internes","Couts internes","Couts internes","Couts internes","Couts internes","Couts internes","Couts internes","Couts internes","Couts internes","Couts internes","Couts internes","Couts internes","Couts internes","Couts internes","Couts internes","Couts internes","Couts internes","Couts internes","Couts internes","Couts internes","Couts internes","Couts internes","Couts internes","Couts internes","Couts internes","Couts internes","Couts internes","Couts internes","Couts internes","Couts internes","Couts internes","Couts internes","Couts internes","Couts internes","Couts internes","Couts internes","Couts internes","Couts internes","Couts internes","Couts internes","Couts internes","Couts internes","Couts internes","Couts internes","Couts internes","Couts internes","Couts internes","Couts internes","Couts internes","Couts internes","Couts internes","Couts internes","Couts internes","Couts internes","Couts internes","Couts internes","Couts internes","Couts internes","Couts internes","Couts internes","Couts internes","Couts internes","Couts internes","Couts internes","Couts internes","Couts internes","Couts internes","Couts internes","Couts internes","Couts internes","Couts internes","Couts internes","Couts internes","Couts internes","Couts internes","Couts internes","Couts internes","Couts internes","Couts internes","Couts internes","Couts internes","Couts internes","Couts internes","Couts internes","Couts internes","Couts internes","Couts internes","Couts internes","Couts internes","Couts internes","Couts internes","Couts internes","Couts internes","Couts internes","Couts internes","Couts internes","Couts internes","Couts internes","Couts internes","Couts internes","Couts internes","Couts internes","Couts internes","Couts internes","Couts internes","Couts internes","Couts internes","Couts internes","Couts internes","Couts internes","Couts internes","Couts internes","Couts internes","Couts internes","Couts internes","Couts internes","Couts internes","Couts internes","Couts internes","Couts internes","Couts internes","Couts internes","Couts internes","Couts internes","Couts internes","Couts internes","Couts internes","Couts internes","Couts internes","Couts internes","Couts internes","Couts internes","Couts internes","Couts internes","Couts internes","Couts internes","Couts internes","Couts internes","Couts internes","Couts internes","Couts internes","Couts internes","Couts internes","Couts internes","Couts internes","Couts internes","Couts internes","Couts internes","Couts internes","Couts internes","Couts internes","Couts internes","Couts internes","Couts internes","Couts internes","Couts internes","Couts internes","Couts internes","Couts internes","Couts internes","Couts internes","Couts internes","Couts internes","Couts internes","Couts internes","Couts internes","Couts internes","Couts internes","Couts internes","Couts internes","Couts internes","Couts internes","Couts internes","Couts internes","Couts internes","Couts internes","Couts internes","Couts internes","Couts internes","Couts internes","Couts internes","Couts internes","Couts internes","Couts internes","Couts internes","Couts internes","Couts internes","Couts internes","Couts internes","Couts internes","Couts internes","Couts internes","Couts internes","Couts internes","Couts internes","Couts internes","Couts internes","Couts internes","Couts internes","Couts internes","Couts internes","Couts internes","Couts internes","Couts internes","Couts internes","Couts internes","Couts internes","Couts internes","Couts internes","Couts internes","Couts internes","Couts internes","Couts internes","Couts internes","Couts internes","Couts internes","Couts internes","Couts internes","Couts internes","Couts internes","Couts internes","Couts internes","Couts internes","Couts internes","Couts internes","Couts internes","Couts internes","Couts internes","Couts internes","Couts internes","Couts internes","Couts internes","Couts internes","Couts internes","Couts internes","Couts internes","Couts internes","Couts internes","Couts internes","Couts internes","Couts internes","Couts internes","Couts internes","Couts internes","Couts internes","Couts internes","Couts internes","Couts internes","Couts internes","Couts internes","Couts internes","Couts internes","Couts internes","Couts internes","Couts internes","Couts internes","Couts internes","Couts internes","Couts internes","Couts internes","Couts internes","Couts internes","Couts internes","Couts internes","Couts internes","Couts internes","Couts internes","Couts internes","Couts internes","Couts internes","Couts internes","Couts internes","Couts internes","Couts internes","Couts internes","Couts internes","Couts internes","Couts internes","Couts internes","Couts internes","Couts internes","Couts internes","Couts internes","Couts internes","Couts internes","Couts internes","Couts internes","Couts internes","Couts internes","Couts internes","Couts internes","Couts internes","Couts internes","Couts internes","Couts internes","Couts internes","Couts internes","Couts internes","Couts internes","Couts internes","Couts internes","Couts internes","Couts internes","Couts internes","Couts internes","Couts internes","Couts internes","Couts internes","Couts internes","Couts internes","Couts internes","Couts internes","Couts internes","Couts internes","Couts internes","Couts internes","Couts internes","Couts internes","Couts internes","Couts internes","Couts internes","Couts internes","Couts internes","Couts internes","Couts internes","Couts internes","Couts internes","Couts internes","Couts internes","Couts internes","Couts internes","Couts internes","Couts internes","Couts internes","Couts internes","Couts internes","Couts internes","Couts internes","Couts internes","Couts internes","Couts internes","Couts internes","Couts internes","Couts internes","Couts internes","Couts internes","Couts internes","Couts internes","Couts internes","Couts internes","Couts internes","Couts internes","Couts internes","Couts internes","Couts internes","Couts internes","Couts internes","Couts internes","Couts internes","Couts internes","Couts internes","Couts internes","Couts internes","Couts internes","Couts internes","Couts internes","Couts internes","Couts internes","Couts internes","Couts internes","Couts internes","Couts internes","Couts internes","Couts internes","Couts internes","Couts internes","Couts internes","Couts internes","Couts internes","Couts internes","Couts internes","Couts internes","Couts internes","Couts internes","Couts internes","Couts internes","Couts internes","Couts internes","Couts internes","Couts internes","Couts internes","Couts internes","Couts internes","Couts internes","Couts internes","Couts internes","Couts internes","Couts internes","Couts internes","Couts internes","Couts internes","Couts internes","Couts internes","Couts internes","Couts internes","Couts internes","Couts internes","Couts internes","Couts internes","Couts internes","Couts internes","Couts internes","Couts internes","Couts internes","Couts internes","Couts internes","Couts internes","Couts internes","Couts internes","Couts internes","Couts internes","Couts internes","Couts internes","Couts internes","Couts internes","Couts internes","Couts internes","Couts internes","Couts internes","Couts internes","Couts internes","Couts internes","Couts internes","Couts internes","Couts internes","Couts internes","Couts internes","Couts internes","Couts internes","Couts internes","Couts internes","Couts internes","Couts internes","Couts internes","Couts internes","Couts internes","Couts internes","Couts internes","Couts internes","Couts internes","Couts internes","Couts internes","Couts internes","Couts internes","Couts internes","Couts internes","Couts internes","Couts internes","Couts internes","Couts internes","Couts internes","Couts internes","Couts internes","Couts internes","Couts internes","Couts internes","Couts internes","Couts internes","Couts internes","Couts internes","Couts internes","Couts internes","Couts internes","Couts internes","Couts internes","Couts internes","Couts internes","Couts internes","Couts internes","Couts internes","Couts internes","Couts internes","Couts internes","Couts internes","Couts internes","Couts internes","Couts internes","Couts internes","Couts internes","Couts internes","Couts internes","Couts internes","Couts internes","Couts internes","Couts internes","Couts internes","Couts internes","Couts internes","Couts internes","Couts internes","Couts internes","Couts internes","Couts internes","Couts internes","Couts internes","Couts internes","Couts internes","Couts internes","Couts internes","Couts internes","Couts internes","Couts internes","Couts internes","Couts internes","Couts internes","Couts internes","Couts internes","Couts internes","Couts internes","Couts internes","Couts internes","Couts internes","Couts internes","Couts internes","Couts internes","Couts internes","Couts internes","Couts internes","Couts internes","Couts internes","Couts internes","Couts internes","Couts internes","Couts internes","Couts internes","Couts internes","Couts internes","Couts internes","Couts internes","Couts internes","Couts internes","Couts internes","Couts internes","Couts internes","Couts internes","Couts internes","Couts internes","Couts internes","Couts internes","Couts internes","Couts internes","Couts internes","Couts internes","Couts internes","Couts internes","Couts internes","Couts internes","Couts internes","Couts internes","Couts internes","Couts internes","Couts internes","Couts internes","Couts internes","Couts internes","Couts internes","Couts internes","Couts internes","Couts internes","Couts internes","Couts internes","Couts internes","Couts internes","Couts internes","Couts internes","Couts internes","Couts internes","Couts internes","Couts internes","Couts internes","Couts internes","Couts internes","Couts internes","Couts internes","Couts internes","Couts internes","Couts internes","Couts internes","Couts internes","Couts internes","Couts internes","Couts internes","Couts internes","Couts internes","Couts internes","Couts internes","Couts internes","Couts internes","Couts internes","Couts internes","Couts internes","Couts internes","Couts internes","Couts internes","Couts internes","Couts internes","Couts internes","Couts internes","Couts internes","Couts internes","Couts internes","Couts internes","Couts internes","Couts internes","Couts internes","Couts internes","Couts internes","Couts internes","Couts internes","Couts internes","Couts internes","Couts internes","Couts internes","Couts internes","Couts internes","Couts internes","Couts internes","Couts internes","Couts internes","Couts internes","Couts internes","Couts internes","Couts internes","Couts internes","Couts internes","Couts internes","Couts internes","Couts internes","Couts internes","Couts internes","Couts internes","Couts internes","Couts internes","Couts internes","Couts internes","Couts internes","Couts internes","Couts internes","Couts internes","Couts internes","Couts internes","Couts internes","Couts internes","Couts internes","Couts internes","Couts internes","Couts internes","Couts internes","Couts internes","Couts internes","Couts internes","Couts internes","Couts internes","Couts internes","Couts internes","Couts internes","Couts internes","Couts internes","Couts internes","Couts internes","Couts internes","Couts internes","Couts internes","Couts internes","Couts internes","Couts internes","Couts internes","Couts internes","Couts internes","Couts internes","Couts internes","Couts internes","Couts internes","Couts internes","Couts internes","Couts internes","Couts internes","Couts internes","Couts internes","Couts internes","Couts internes","Couts internes","Couts internes","Couts internes","Couts internes","Couts internes","Couts internes","Couts internes","Couts internes","Couts internes","Couts internes","Couts internes","Couts internes","Couts internes","Couts internes","Couts internes","Couts internes","Couts internes","Couts internes","Couts internes","Couts internes","Couts internes","Couts internes","Couts internes","Couts internes","Couts internes","Couts internes","Couts internes","Couts internes","Couts internes","Couts internes","Couts internes","Couts internes","Couts internes","Couts internes","Couts internes","Couts internes","Couts internes","Couts internes","Couts internes","Couts internes","Couts internes","Couts internes","Couts internes","Couts internes","Couts internes","Couts internes","Couts internes","Couts internes","Couts internes","Couts internes","Couts internes","Couts internes","Couts internes","Couts internes","Couts internes","Couts internes","Couts internes","Couts internes","Couts internes","Couts internes","Couts internes","Couts internes","Couts internes","Couts internes","Couts internes","Couts internes","Couts internes","Couts internes","Couts internes","Couts internes","Couts internes","Couts internes","Couts internes","Couts internes","Couts internes","Couts internes","Couts internes","Couts internes","Couts internes","Couts internes","Couts internes","Couts internes","Couts internes","Couts internes","Couts internes","Couts internes","Couts internes","Couts internes","Couts internes","Couts internes","Couts internes","Couts internes","Couts internes","Couts internes","Couts internes","Couts internes","Couts internes","Couts internes","Couts internes","Couts internes","Couts internes","Couts internes","Couts internes","Couts internes","Couts internes","Couts internes","Couts internes","Couts internes","Couts internes","Couts internes","Couts internes","Couts internes","Couts internes","Couts internes","Couts internes","Couts internes","Couts internes","Couts internes","Couts internes","Couts internes","Couts internes","Couts internes","Couts internes","Couts internes","Couts internes","Couts internes","Couts internes","Couts internes","Couts internes","Couts internes","Couts internes","Couts internes","Couts internes","Couts internes","Couts internes","Couts internes","Couts internes","Couts internes","Couts internes","Couts internes","Couts internes","Couts internes","Couts internes","Couts internes","Couts internes","Couts internes","Couts internes","Couts internes","Couts internes","Couts internes","Couts internes","Couts internes","Couts internes","Couts internes","Couts internes","Couts internes","Couts internes","Couts internes","Couts internes","Couts internes","Couts internes","Couts internes","Couts internes","Couts internes","Couts internes","Couts internes","Couts internes","Couts internes","Couts internes","Couts internes","Couts internes","Couts internes","Couts internes","Couts internes","Couts internes","Couts internes","Couts internes","Couts internes","Couts internes","Couts internes","Couts internes","Couts internes","Couts internes","Couts internes","Couts internes","Couts internes","Couts internes","Couts internes","Couts internes","Couts internes","Couts internes","Couts internes","Couts internes","Couts internes","Couts internes","Couts internes","Couts internes","Couts internes","Couts internes","Couts internes","Couts internes","Couts internes","Couts internes","Couts internes","Couts internes","Couts internes","Couts internes","Couts internes","Couts internes","Couts internes","Couts internes","Couts internes","Couts internes","Couts internes","Couts internes","Couts internes","Couts internes","Couts internes","Couts internes","Couts internes","Couts internes","Couts internes","Couts internes","Couts internes","Couts internes","Couts internes","Couts internes","Couts internes","Couts internes","Couts internes","Couts internes","Couts internes","Couts internes","Couts internes","Couts internes","Couts internes","Couts internes","Couts internes","Couts internes","Couts internes","Couts internes","Couts internes","Couts internes","Couts internes","Couts internes","Couts internes","Couts internes","Couts internes","Couts internes","Couts internes","Couts internes","Couts internes","Couts internes","Couts internes","Couts internes","Couts internes","Couts internes","Couts internes","Couts internes","Couts internes","Couts internes","Couts internes","Couts internes","Couts internes","Couts internes","Couts internes","Couts internes","Couts internes","Couts internes","Couts internes","Couts internes","Couts internes","Couts internes","Couts internes","Couts internes","Couts internes","Couts internes","Couts internes","Couts internes","Couts internes","Couts internes","Couts internes","Couts internes","Couts internes","Couts internes","Couts internes","Couts internes","Couts internes","Couts internes","Couts internes","Couts internes","Couts internes","Couts internes","Couts internes","Couts internes","Couts internes","Couts internes","Couts internes","Couts internes","Couts internes","Couts internes","Couts internes","Couts internes","Couts internes","Couts internes","Couts internes","Couts internes","Couts internes","Couts internes","Couts internes","Couts internes","Couts internes","Couts internes","Couts internes","Couts internes","Couts internes","Couts internes","Couts internes","Couts internes","Couts internes","Couts internes","Couts internes","Couts internes","Couts internes","Couts internes","Couts internes","Couts internes","Couts internes","Couts internes","Couts internes","Couts internes","Couts internes","Couts internes","Couts internes","Couts internes","Couts internes","Couts internes","Couts internes","Couts internes","Couts internes","Couts internes","Couts internes","Couts internes","Couts internes","Couts internes","Couts internes","Couts internes","Couts internes","Couts internes","Couts internes","Couts internes","Couts internes","Couts internes","Couts internes","Couts internes","Couts internes","Couts internes","Couts internes","Couts internes","Couts internes","Couts internes","Couts internes","Couts internes","Couts internes","Couts internes","Couts internes","Couts internes","Couts internes","Couts internes","Couts internes","Couts internes","Couts internes","Couts internes","Couts internes","Couts internes","Couts internes","Couts internes","Couts internes","Couts internes","Couts internes","Couts internes","Couts internes","Couts internes","Couts internes","Couts internes","Couts internes","Couts internes","Couts internes","Couts internes","Couts internes","Couts internes","Couts internes","Couts internes","Couts internes","Couts internes","Couts internes","Couts internes","Couts internes","Couts internes","Couts internes","Couts internes","Couts internes","Couts internes","Couts internes","Couts internes","Couts internes","Couts internes","Couts internes","Couts internes","Couts internes","Couts internes","Couts internes","Couts internes","Couts internes","Couts internes","Couts internes","Couts internes","Couts internes","Couts internes","Couts internes","Couts internes","Couts internes","Couts internes","Couts internes","Couts internes","Couts internes","Couts internes","Couts internes","Couts internes","Couts internes","Couts internes","Couts internes","Couts internes","Couts internes","Couts internes","Couts internes","Couts internes","Couts internes","Couts internes","Couts internes","Couts internes","Couts internes","Couts internes","Couts internes","Couts internes","Couts internes","Couts internes","Couts internes","Couts internes","Couts internes","Couts internes","Couts internes","Couts internes","Couts internes","Couts internes","Couts internes","Couts internes","Couts internes","Couts internes","Couts internes","Couts internes","Couts internes","Couts internes","Couts internes","Couts internes","Couts internes","Couts internes","Couts internes","Couts internes","Couts internes","Couts internes","Couts internes","Couts internes","Couts internes","Couts internes","Couts internes","Couts internes","Couts internes","Couts internes","Couts internes","Couts internes","Couts internes","Couts internes","Couts internes","Couts internes","Couts internes","Couts internes","Couts internes","Couts internes","Couts internes","Couts internes","Couts internes","Couts internes","Couts internes","Couts internes","Couts internes","Couts internes","Couts internes","Couts internes","Couts internes","Couts internes","Couts internes","Couts internes","Couts internes","Couts internes","Couts internes","Couts internes","Couts internes","Couts internes","Couts internes","Couts internes","Couts internes","Couts internes","Couts internes","Couts internes","Couts internes","Couts internes","Couts internes","Couts internes","Couts internes","Couts internes","Couts internes","Couts internes","Couts internes","Couts internes","Couts internes","Couts internes","Couts internes","Couts internes","Couts internes","Couts internes","Couts internes","Couts internes","Couts internes","Couts internes","Couts internes","Couts internes","Couts internes","Couts internes","Couts internes","Couts internes","Couts internes","Couts internes","Couts internes","Couts internes","Couts internes","Couts internes","Couts internes","Couts internes","Couts internes","Couts internes","Couts internes","Couts internes","Couts internes","Couts internes","Couts internes","Couts internes","Couts internes","Couts internes","Couts internes","Couts internes","Couts internes","Couts internes","Couts internes","Couts internes","Couts internes","Couts internes","Couts internes","Couts internes","Couts internes","Couts internes","Couts internes","Couts internes","Couts internes","Couts internes","Couts internes","Couts internes","Couts internes","Couts internes","Couts internes","Couts internes","Couts internes","Couts internes","Couts internes","Couts internes","Couts internes","Couts internes","Couts internes","Couts internes","Couts internes","Couts internes","Couts internes","Couts internes","Couts internes","Couts internes","Couts internes","Couts internes","Couts internes","Couts internes","Couts internes","Couts internes","Couts internes","Couts internes","Couts internes","Couts internes","Couts internes","Couts internes","Couts internes","Couts internes","Couts internes","Couts internes","Couts internes","Couts internes","Couts internes","Couts internes","Couts internes","Couts internes","Couts internes","Couts internes","Couts internes","Couts internes","Couts internes","Couts internes","Couts internes","Couts internes","Couts internes","Couts internes","Couts internes","Couts internes","Couts internes","Couts internes","Couts internes","Couts internes","Couts internes","Couts internes","Couts internes","Couts internes","Couts internes","Couts internes","Couts internes","Couts internes","Couts internes","Couts internes","Couts internes","Couts internes","Couts internes","Couts internes","Couts internes","Couts internes","Couts internes","Couts internes","Couts internes","Couts internes","Couts internes","Couts internes","Couts internes","Couts internes","Couts internes","Couts internes","Couts internes","Couts internes","Couts internes","Couts internes","Couts internes","Couts internes","Couts internes","Couts internes","Couts internes","Couts internes","Couts internes","Couts internes","Couts internes","Couts internes","Couts internes","Couts internes","Couts internes","Couts internes","Couts internes","Couts internes","Couts internes","Couts internes","Couts internes","Couts internes","Couts internes","Couts internes","Couts internes","Couts internes","Couts internes","Couts internes","Couts internes","Couts internes","Couts internes","Couts internes","Couts internes","Couts internes","Couts internes","Couts internes","Couts internes","Couts internes","Couts internes","Couts internes","Couts internes","Couts internes","Couts internes","Couts internes","Couts internes","Couts internes","Couts internes","Couts internes","Couts internes","Couts internes","Couts internes","Couts internes","Couts internes","Couts internes","Couts internes","Couts internes","Couts internes","Couts internes","Couts internes","Couts internes","Couts internes","Couts internes","Couts internes","Couts internes","Couts internes","Couts internes","Couts internes","Couts internes","Couts internes","Couts internes","Couts internes","Couts internes","Couts internes","Couts internes","Couts internes","Couts internes","Couts internes","Couts internes","Couts internes","Couts internes","Couts internes","Couts internes","Couts internes","Couts internes","Couts internes","Couts internes","Couts internes","Couts internes","Couts internes","Couts internes","Couts internes","Couts internes","Couts internes","Couts internes","Couts internes","Couts internes","Couts internes","Couts internes","Couts internes","Couts internes","Couts internes","Couts internes","Couts internes","Couts internes","Couts internes","Couts internes","Couts internes","Couts internes","Couts internes","Couts internes","Couts internes","Couts internes","Couts internes","Couts internes","Couts internes","Couts internes","Couts internes","Couts internes","Couts internes","Couts internes","Couts internes","Couts internes","Couts internes","Couts internes","Couts internes","Couts internes","Couts internes","Couts internes","Couts internes","Couts internes","Couts internes","Couts internes","Couts internes","Couts internes","Couts internes","Couts internes","Couts internes","Couts internes","Couts internes","Couts internes","Couts internes","Couts internes","Couts internes","Couts internes","Couts internes","Couts internes","Couts internes","Couts internes","Couts internes","Couts internes","Couts internes","Couts internes","Couts internes","Couts internes","Couts internes","Couts internes","Couts internes","Couts internes","Couts internes","Couts internes","Couts internes","Couts internes","Couts internes","Couts internes","Couts internes","Couts internes","Couts internes","Couts internes","Couts internes","Couts internes","Couts internes","Couts internes","Couts internes","Couts internes","Couts internes","Couts internes","Couts internes","Couts internes","Couts internes","Couts internes","Couts internes","Couts internes","Couts internes","Couts internes","Couts internes","Couts internes","Couts internes","Couts internes","Couts internes","Couts internes","Couts internes","Couts internes","Couts internes","Couts internes","Couts internes","Couts internes","Couts internes","Couts internes","Couts internes","Couts internes","Couts internes","Couts internes","Couts internes","Couts internes","Couts internes","Couts internes","Couts internes","Couts internes","Couts internes","Couts internes","Couts internes","Couts internes","Couts internes","Couts internes","Couts internes","Couts internes","Couts internes","Couts internes","Couts internes","Couts internes","Couts internes","Couts internes","Couts internes","Couts internes","Couts internes","Couts internes","Couts internes","Couts internes","Couts internes","Couts internes","Couts internes","Couts internes","Couts internes","Couts internes","Couts internes","Couts internes","Couts internes","Couts internes","Couts internes","Couts internes","Couts internes","Couts internes","Couts internes","Couts internes","Couts internes","Couts internes","Couts internes","Couts internes","Couts internes","Couts internes","Couts internes","Couts internes","Couts internes","Couts internes","Couts internes","Couts internes","Couts internes","Couts internes","Couts internes","Couts internes","Couts internes","Couts internes","Couts internes","Couts internes","Couts internes","Couts internes","Couts internes","Couts internes","Couts internes","Couts internes","Couts internes","Couts internes","Couts internes","Couts internes","Couts internes","Couts internes","Couts internes","Couts internes","Couts internes","Couts internes","Couts internes","Couts internes","Couts internes","Couts internes","Couts internes","Couts internes","Couts internes","Couts internes","Couts internes","Couts internes","Couts internes","Couts internes","Couts internes","Couts internes","Couts internes","Couts internes","Couts internes","Couts internes","Couts internes","Couts internes","Couts internes","Couts internes","Couts internes","Couts internes","Couts internes","Couts internes","Couts internes","Couts internes","Couts internes","Couts internes","Couts internes","Couts internes","Couts internes","Couts internes","Couts internes","Couts internes","Couts internes","Couts internes","Couts internes","Couts internes","Couts internes","Couts internes","Couts internes","Couts internes","Couts internes","Couts internes","Couts internes","Couts internes","Couts internes","Couts internes","Couts internes","Couts internes","Couts internes","Couts internes","Couts internes","Couts internes","Couts internes","Couts internes","Couts internes","Couts internes","Couts internes","Couts internes","Couts internes","Couts internes","Couts internes","Couts internes","Couts internes","Couts internes","Couts internes","Couts internes","Couts internes","Couts internes","Couts internes","Couts internes","Couts internes","Couts internes","Couts internes","Couts internes","Couts internes","Couts internes","Couts internes","Couts internes","Couts internes","Couts internes","Couts internes","Couts internes","Couts internes","Couts internes","Couts internes","Couts internes","Couts internes","Couts internes","Couts internes","Couts internes","Couts internes","Couts internes","Couts internes","Couts internes","Couts internes","Couts internes","Couts internes","Couts internes","Couts internes","Couts internes","Couts internes","Couts internes","Couts internes","Couts internes","Couts internes","Couts internes","Couts internes","Couts internes","Couts internes","Couts internes","Couts internes","Couts internes","Couts internes","Couts internes","Couts internes","Couts internes","Couts internes","Couts internes","Couts internes","Couts internes","Couts internes","Couts internes","Couts internes","Couts internes","Couts internes","Couts internes","Couts internes","Couts internes","Couts internes","Couts internes","Couts internes","Couts internes","Couts internes","Couts internes","Couts internes","Couts internes","Couts internes","Couts internes","Couts internes","Couts internes","Couts internes","Couts internes","Couts internes","Couts internes","Couts internes","Couts internes","Couts internes","Couts internes","Couts internes","Couts internes","Couts internes","Couts internes","Couts internes","Couts internes","Couts internes","Couts internes","Couts internes","Couts internes","Couts internes","Couts internes","Couts internes","Couts internes","Couts internes","Couts internes","Couts internes","Couts internes","Couts internes","Couts internes","Couts internes","Couts internes","Couts internes","Couts internes","Couts internes","Couts internes","Couts internes","Couts internes","Couts internes","Couts internes","Couts internes","Couts internes","Couts internes","Couts internes","Couts internes","Couts internes","Couts internes","Couts internes","Couts internes","Couts internes","Couts internes","Couts internes","Couts internes","Couts internes","Couts internes","Couts internes","Couts internes","Couts internes","Couts internes","Couts internes","Couts internes","Couts internes","Couts internes","Couts internes","Couts internes","Couts internes","Couts internes","Couts internes","Couts internes","Couts internes","Couts internes","Couts internes","Couts internes","Couts internes","Couts internes","Couts internes","Couts internes","Couts internes","Couts internes","Couts internes","Couts internes","Couts internes","Couts internes","Couts internes","Couts internes","Couts internes","Couts internes","Couts internes","Couts internes","Couts internes","Couts internes","Couts internes","Couts internes","Couts internes","Couts internes","Couts internes","Couts internes","Couts internes","Couts internes","Couts internes","Couts internes","Couts internes","Couts internes","Couts internes","Couts internes","Couts internes","Couts internes","Couts internes","Couts internes","Couts internes","Couts internes","Couts internes","Couts internes","Couts internes","Couts internes","Couts internes","Couts internes","Couts internes","Couts internes","Couts internes","Couts internes","Couts internes","Couts internes","Couts internes","Couts internes","Couts internes","Couts internes","Couts internes","Couts internes","Couts internes","Couts internes","Couts internes","Couts internes","Couts internes","Couts internes","Couts internes","Couts internes","Couts internes","Couts internes","Couts internes","Couts internes","Couts internes","Couts internes","Couts internes","Couts internes","Couts internes","Couts internes","Couts internes","Couts internes","Couts internes","Couts internes","Couts internes","Couts internes","Couts internes","Couts internes","Couts internes","Couts internes","Couts internes","Couts internes","Couts internes","Couts internes","Couts internes","Couts internes","Couts internes","Couts internes","Couts internes","Couts internes","Couts internes","Couts internes","Couts internes","Couts internes","Couts internes","Couts internes","Couts internes","Couts internes","Couts internes","Couts internes","Couts internes","Couts internes","Couts internes","Couts internes","Couts internes","Couts internes","Couts internes","Couts internes","Couts internes","Couts internes","Couts internes","Couts internes","Couts internes","Couts internes","Couts internes","Couts internes","Couts internes","Couts internes","Couts internes","Couts internes","Couts internes","Couts internes","Couts internes","Couts internes","Couts internes","Couts internes","Couts internes","Couts internes","Couts internes","Couts internes","Couts internes","Couts internes","Couts internes","Couts internes","Couts internes","Couts internes","Couts internes","Couts internes","Couts internes","Couts internes","Couts internes","Couts internes","Couts internes","Couts internes","Couts internes","Couts internes","Couts internes","Couts internes","Couts internes","Couts internes","Couts internes","Couts internes","Couts internes","Couts internes","Couts internes","Couts internes","Couts internes","Couts internes","Couts internes","Couts internes","Couts internes","Couts internes","Couts internes","Couts internes","Couts internes","Couts internes","Couts internes","Couts internes","Couts internes","Couts internes","Couts internes","Couts internes","Couts internes","Couts internes","Couts internes","Couts internes","Couts internes","Couts internes","Couts internes","Couts internes","Couts internes","Couts internes","Couts internes","Couts internes","Couts internes","Couts internes","Couts internes","Couts internes","Couts internes","Couts internes","Couts internes","Couts internes","Couts internes","Couts internes","Couts internes","Couts internes","Couts internes","Couts internes","Couts internes","Couts internes","Couts internes","Couts internes","Couts internes","Couts internes","Couts internes","Couts internes","Couts internes","Couts internes","Couts internes","Couts internes","Couts internes","Couts internes","Couts internes","Couts internes","Couts internes","Couts internes","Couts internes","Couts internes","Couts internes","Couts internes","Couts internes","Couts internes","Couts internes","Couts internes","Couts internes","Couts internes","Couts internes","Couts internes","Couts internes","Couts internes","Couts internes","Couts internes","Couts internes","Couts internes","Couts internes","Couts internes","Couts internes","Couts internes","Couts internes","Couts internes","Couts internes","Couts internes","Couts internes","Couts internes","Couts internes","Couts internes","Couts internes","Couts internes","Couts internes","Couts internes","Couts internes","Couts internes","Couts internes","Couts internes","Couts internes","Couts internes","Couts internes","Couts internes","Couts internes","Couts internes","Couts internes","Couts internes","Couts internes","Couts internes","Couts internes","Couts internes","Couts internes","Couts internes","Couts internes","Couts internes","Couts internes","Couts internes","Couts internes","Couts internes","Couts internes","Couts internes","Couts internes","Couts internes","Couts internes","Couts internes","Couts internes","Couts internes","Couts internes","Couts internes","Couts internes","Couts internes","Couts internes","Couts internes","Couts internes","Couts internes","Couts internes","Couts internes","Couts internes","Couts internes","Couts internes","Couts internes","Couts internes","Couts internes","Couts internes","Couts internes","Couts internes","Couts internes","Couts internes","Couts internes","Couts internes","Couts internes","Couts internes","Couts internes","Couts internes","Couts internes","Couts internes","Couts internes","Couts internes","Couts internes","Couts internes","Couts internes","Couts internes","Couts internes","Couts internes","Couts internes","Couts internes","Couts internes","Couts internes","Couts internes","Couts internes","Couts internes","Couts internes","Couts internes","Couts internes","Couts internes","Couts internes","Couts internes","Couts internes","Couts internes","Couts internes","Couts internes","Couts internes","Couts internes","Couts internes","Couts internes","Couts internes","Couts internes","Couts internes","Couts internes","Couts internes","Couts internes","Couts internes","Couts internes","Couts internes","Couts internes","Couts internes","Couts internes","Couts internes","Couts internes","Couts internes","Couts internes","Couts internes","Couts internes","Couts internes","Couts internes","Couts internes","Couts internes","Couts internes","Couts internes","Couts internes","Couts internes","Couts internes","Couts internes","Couts internes","Couts internes","Couts internes","Couts internes","Couts internes","Couts internes","Couts internes","Couts internes","Couts internes","Couts internes","Couts internes","Couts internes","Couts internes","Couts internes","Couts internes","Couts internes","Couts internes","Couts internes","Couts internes","Couts internes","Couts internes","Couts internes","Couts internes","Couts internes","Couts internes","Couts internes","Couts internes","Couts internes","Couts internes","Couts internes","Couts internes","Couts internes","Couts internes","Couts internes","Couts internes","Couts internes","Couts internes","Couts internes","Couts internes","Couts internes","Couts internes","Couts internes","Couts internes","Couts internes","Couts internes","Couts internes","Couts internes","Couts internes","Couts internes","Couts internes","Couts internes","Couts internes","Couts internes","Couts internes","Couts internes","Couts internes","Couts internes","Couts internes","Couts internes","Couts internes","Couts internes","Couts internes","Couts internes","Couts internes","Couts internes","Couts internes","Couts internes","Couts internes","Couts internes","Couts internes","Couts internes","Couts internes","Couts internes","Couts internes","Couts internes","Couts internes","Couts internes","Couts internes","Couts internes","Couts internes","Couts internes","Couts internes","Couts internes","Couts internes","Couts internes","Couts internes","Couts internes","Couts internes","Couts internes","Couts internes","Couts internes","Couts internes","Couts internes","Couts internes","Couts internes","Couts internes","Couts internes","Couts internes","Couts internes","Couts internes","Couts internes","Couts internes","Couts internes","Couts internes","Couts internes","Couts internes","Couts internes","Couts internes","Couts internes","Couts internes","Couts internes","Couts internes","Couts internes","Couts internes","Couts internes","Couts internes","Couts internes","Couts internes","Couts internes","Couts internes","Couts internes","Couts internes","Couts internes","Couts internes","Couts internes","Couts internes","Couts internes","Couts internes","Couts internes","Couts internes","Couts internes","Couts internes","Couts internes","Couts internes","Couts internes","Couts internes","Couts internes","Couts internes","Couts internes","Couts internes","Couts internes","Couts internes","Couts internes","Couts internes","Couts internes","Couts internes","Couts internes","Couts internes","Couts internes","Couts internes","Couts internes","Couts internes","Couts internes","Couts internes","Couts internes","Couts internes","Couts internes","Couts internes","Couts internes","Couts internes","Couts internes","Couts internes","Couts internes","Couts internes","Couts internes","Couts internes","Couts internes","Couts internes","Couts internes","Couts internes","Couts internes","Couts internes","Couts internes","Couts internes","Couts internes","Couts internes","Couts internes","Couts internes","Couts internes","Couts internes","Couts internes","Couts internes","Couts internes","Couts internes","Couts internes","Couts internes","Couts internes","Couts internes","Couts internes","Couts internes","Couts internes","Couts internes","Couts internes","Couts internes","Couts internes","Couts internes","Couts internes","Couts internes","Couts internes","Couts internes","Couts internes","Couts internes","Couts internes","Couts internes","Couts internes","Couts internes","Couts internes","Couts internes","Couts internes","Couts internes","Couts internes","Couts internes","Couts internes","Couts internes","Couts internes","Couts internes","Couts internes","Couts internes","Couts internes","Couts internes","Couts internes","Couts internes","Couts internes","Couts internes","Couts internes","Couts internes","Couts internes","Couts internes","Couts internes","Couts internes","Couts internes","Couts internes","Couts internes","Couts internes","Couts internes","Couts internes","Couts internes","Couts internes","Couts internes","Couts internes","Couts internes","Couts internes","Couts internes","Couts internes","Couts internes","Couts internes","Couts internes","Couts internes","Couts internes","Couts internes","Couts internes","Couts internes","Couts internes","Couts internes","Couts internes","Couts internes","Couts internes","Couts internes","Couts internes","Couts internes","Couts internes","Couts internes","Couts internes","Couts internes","Couts internes","Couts internes","Couts internes","Couts internes","Couts internes","Couts internes","Couts internes","Couts internes","Couts internes","Couts internes","Couts internes","Couts internes","Couts internes","Couts internes","Couts internes","Couts internes","Couts internes","Couts internes","Couts internes","Couts internes","Couts internes","Couts internes","Couts internes","Couts internes","Couts internes","Couts internes","Couts internes","Couts internes","Couts internes","Couts internes","Couts internes","Couts internes","Couts internes","Couts internes","Couts internes","Couts internes","Couts internes","Couts internes","Couts internes","Couts internes","Couts internes","Couts internes","Couts internes","Couts internes","Couts internes","Couts internes","Couts internes","Couts internes","Couts internes","Couts internes","Couts internes","Couts internes","Couts internes","Couts internes","Couts internes","Couts internes","Couts internes","Couts internes","Couts internes","Couts internes","Couts internes","Couts internes","Couts internes","Couts internes","Couts internes","Couts internes","Couts internes","Couts internes","Couts internes","Couts internes","Couts internes","Couts internes","Couts internes","Couts internes","Couts internes","Couts internes","Couts internes","Couts internes","Couts internes","Couts internes","Couts internes","Couts internes","Couts internes","Couts internes","Couts internes","Couts internes","Couts internes","Couts internes","Couts internes","Couts internes","Couts internes","Couts internes","Couts internes","Couts internes","Couts internes","Couts internes","Couts internes","Couts internes","Couts internes","Couts internes","Couts internes","Couts internes","Couts internes","Couts internes","Couts internes","Couts internes","Couts internes","Couts internes","Couts internes","Couts internes","Couts internes","Couts internes","Couts internes","Couts internes","Couts internes","Couts internes","Couts internes","Couts internes","Couts internes","Couts internes","Couts internes","Couts internes","Couts internes","Couts internes","Couts internes","Couts internes","Couts internes","Couts internes","Couts internes","Couts internes","Couts internes","Couts internes","Couts internes","Couts internes","Couts internes","Couts internes","Couts internes","Couts internes","Couts internes","Couts internes","Couts internes","Couts internes","Couts internes","Couts internes","Couts internes","Couts internes","Couts internes","Couts internes","Couts internes","Couts internes","Couts internes","Couts internes","Couts internes","Couts internes","Couts internes","Couts internes","Couts internes","Couts internes","Couts internes","Couts internes","Couts internes","Couts internes","Couts internes","Couts internes","Couts internes","Couts internes","Couts internes","Couts internes","Couts internes","Couts internes","Couts internes","Couts internes","Couts internes","Couts internes","Couts internes","Couts internes","Couts internes","Couts internes","Couts internes","Couts internes","Couts internes","Couts internes","Couts internes","Couts internes","Couts internes","Couts internes","Couts internes","Couts internes","Couts internes","Couts internes","Couts internes","Couts internes","Couts internes","Couts internes","Couts internes","Couts internes","Couts internes","Couts internes","Couts internes","Couts internes","Couts internes","Couts internes","Couts internes","Couts internes","Couts internes","Couts internes","Couts internes","Couts internes","Couts internes","Couts internes","Couts internes","Couts internes","Couts internes","Couts internes","Couts internes","Couts internes","Couts internes","Couts internes","Couts internes","Couts internes","Couts internes","Couts internes","Couts internes","Couts internes","Couts internes","Couts internes","Couts internes","Couts internes","Couts internes","Couts internes","Couts internes","Couts internes","Couts internes","Couts internes","Couts internes","Couts internes","Couts internes","Couts internes","Couts internes","Couts internes","Couts internes","Couts internes","Couts internes","Couts internes","Couts internes","Couts internes","Couts internes","Couts internes","Couts internes","Couts internes","Couts internes","Couts internes","Couts internes","Couts internes","Couts internes","Couts internes","Couts internes","Couts internes","Couts internes","Couts internes","Couts internes","Couts internes","Couts internes","Couts internes","Couts internes","Couts internes","Couts internes","Couts internes","Couts internes","Couts internes","Couts internes","Couts internes","Couts internes","Couts internes","Couts internes","Couts internes","Couts internes","Couts internes","Couts internes","Couts internes","Couts internes","Couts internes","Couts internes","Couts internes","Couts internes","Couts internes","Couts internes","Couts internes","Couts internes","Couts internes","Couts internes","Couts internes","Couts internes","Couts internes","Couts internes","Couts internes","Couts internes","Couts internes","Couts internes","Couts internes","Couts internes","Couts internes","Couts internes","Couts internes","Couts internes","Couts internes","Couts internes","Couts internes","Couts internes","Couts internes","Couts internes","Couts internes","Couts internes","Couts internes","Couts internes","Couts internes","Couts internes","Couts internes","Couts internes","Couts internes","Couts internes","Couts internes","Couts internes","Couts internes","Couts internes","Couts internes","Couts internes","Couts internes","Couts internes","Couts internes","Couts internes","Couts internes","Couts internes","Couts internes","Couts internes","Couts internes","Couts internes","Couts internes","Couts internes","Couts internes","Couts internes","Couts internes","Couts internes","Couts internes","Couts internes","Couts internes","Couts internes","Couts internes","Couts internes","Couts internes","Couts internes","Couts internes","Couts internes","Couts internes","Couts internes","Couts internes","Couts internes","Couts internes","Couts internes","Couts internes","Couts internes","Couts internes","Couts internes","Couts internes","Couts internes","Couts internes","Couts internes","Couts internes","Couts internes","Couts internes","Couts internes","Couts internes","Couts internes","Couts internes","Couts internes","Couts internes","Couts internes","Couts internes","Couts internes","Couts internes","Couts internes","Couts internes","Couts internes","Couts internes","Couts internes","Couts internes","Couts internes","Couts internes","Couts internes","Couts internes","Couts internes","Couts internes","Couts internes","Couts internes","Couts internes","Couts internes","Couts internes","Couts internes","Couts internes","Couts internes","Couts internes","Couts internes","Couts internes","Couts internes","Couts internes","Couts internes","Couts internes","Couts internes","Couts internes","Couts internes","Couts internes","Couts internes","Couts internes","Couts internes","Couts internes","Couts internes","Couts internes","Couts internes","Couts internes","Couts internes","Couts internes","Couts internes","Couts internes","Couts internes","Couts internes","Couts internes","Couts internes","Couts internes","Couts internes","Couts internes","Couts internes","Couts internes","Couts internes","Couts internes","Couts internes","Couts internes","Couts internes","Couts internes","Couts internes","Couts internes","Couts internes","Couts internes","Couts internes","Couts internes","Couts internes","Couts internes","Couts internes","Couts internes","Couts internes","Couts internes","Couts internes","Couts internes","Couts internes","Couts internes","Couts internes","Couts internes","Couts internes","Couts internes","Couts internes","Couts internes","Couts internes","Couts internes","Couts internes","Couts internes","Couts internes","Couts internes","Couts internes","Couts internes","Couts internes","Couts internes","Couts internes","Couts internes","Couts internes","Couts internes","Couts internes","Couts internes","Couts internes","Couts internes","Couts internes","Couts internes","Couts internes","Couts internes","Couts internes","Couts internes","Couts internes","Couts internes","Couts internes","Couts internes","Couts internes","Couts internes","Couts internes","Couts internes","Couts internes","Couts internes","Couts internes","Couts internes","Couts internes","Couts internes","Couts internes","Couts internes","Couts internes","Couts internes","Couts internes","Couts internes","Couts internes","Couts internes","Couts internes","Couts internes","Couts internes","Couts internes","Couts internes","Couts internes","Couts internes","Couts internes","Couts internes","Couts internes","Couts internes","Couts internes","Couts internes","Couts internes","Couts internes","Couts internes","Couts internes","Couts internes","Couts internes","Couts internes","Couts internes","Couts internes","Couts internes","Couts internes","Couts internes","Couts internes","Couts internes","Couts internes","Couts internes","Couts internes","Couts internes","Couts internes","Couts internes","Couts internes","Couts internes","Couts internes","Couts internes","Couts internes","Couts internes","Couts internes","Couts internes","Couts internes","Couts internes","Couts internes","Couts internes","Couts internes","Couts internes","Couts internes","Couts internes","Couts internes","Couts internes","Couts internes","Couts internes","Couts internes","Couts internes","Couts internes","Couts internes","Couts internes","Couts internes","Couts internes","Couts internes","Couts internes","Couts internes","Couts internes","Couts internes","Couts internes","Couts internes","Couts internes","Couts internes","Couts internes","Couts internes","Couts internes","Couts internes","Couts internes","Couts internes","Couts internes","Couts internes","Couts internes","Couts internes","Couts internes","Couts internes","Couts internes","Couts internes","Couts internes","Couts internes","Couts internes","Couts internes","Couts internes","Couts internes","Couts internes","Couts internes","Couts internes","Couts internes","Couts internes","Couts internes","Couts internes","Couts internes","Couts internes","Couts internes","Couts internes","Couts internes","Couts internes","Couts internes","Couts internes","Couts internes","Couts internes","Couts internes","Couts internes","Couts internes","Couts internes","Couts internes","Couts internes","Couts internes","Couts internes","Couts internes","Couts internes","Couts internes","Couts internes","Couts internes","Couts internes","Couts internes","Couts internes","Couts internes","Couts internes","Couts internes","Couts internes","Couts internes","Couts internes","Couts internes","Couts internes","Couts internes","Couts internes","Couts internes","Couts internes","Couts internes","Couts internes","Couts internes","Couts internes","Couts internes","Couts internes","Couts internes","Couts internes","Couts internes","Couts internes","Couts internes","Couts internes","Couts internes","Couts internes","Couts internes","Couts internes","Couts internes","Couts internes","Couts internes","Couts internes","Couts internes","Couts internes","Couts internes","Couts internes","Couts internes","Couts internes","Couts internes","Couts internes","Couts internes","Couts internes","Couts internes","Couts internes","Couts internes","Couts internes","Couts internes","Couts internes","Couts internes","Couts internes","Couts internes","Couts internes","Couts internes","Couts internes","Couts internes","Couts internes","Couts internes","Couts internes","Couts internes","Couts internes","Couts internes","Couts internes","Couts internes","Couts internes","Couts internes","Couts internes","Couts internes","Couts internes","Couts internes","Couts internes","Couts internes","Couts internes","Couts internes","Couts internes","Couts internes","Couts internes","Couts internes","Couts internes","Couts internes","Couts internes","Couts internes","Couts internes","Couts internes","Couts internes","Couts internes","Couts internes","Couts internes","Couts internes","Couts internes","Couts internes","Couts internes","Couts internes","Couts internes","Couts internes","Couts internes","Couts internes","Couts internes","Couts internes","Couts internes","Couts internes","Couts internes","Couts internes","Couts internes","Couts internes","Couts internes","Couts internes","Couts internes","Couts internes","Couts internes","Couts internes","Couts internes","Couts internes","Couts internes","Couts internes","Couts internes","Couts internes","Couts internes","Couts internes","Couts internes","Couts internes","Couts internes","Couts internes","Couts internes","Couts internes","Couts internes","Couts internes","Couts internes","Couts internes","Couts internes","Couts internes","Couts internes","Couts internes","Couts internes","Couts internes","Couts internes","Couts internes","Couts internes","Couts internes","Couts internes","Couts internes","Couts internes","Couts internes","Couts internes","Couts internes","Couts internes","Couts internes","Couts internes","Couts internes","Couts internes","Couts internes","Couts internes","Couts internes","Couts internes","Couts internes","Couts internes","Couts internes","Couts internes","Couts internes","Couts internes","Couts internes","Couts internes","Couts internes","Couts internes","Couts internes","Couts internes","Couts internes","Couts internes","Couts internes","Couts internes","Couts internes","Couts internes","Couts internes","Couts internes","Couts internes","Couts internes","Couts internes","Couts internes","Couts internes","Couts internes","Couts internes","Couts internes","Couts internes","Couts internes","Couts internes","Couts internes","Couts internes","Couts internes","Couts internes","Couts internes","Couts internes","Couts internes","Couts internes","Couts internes","Couts internes","Couts internes","Couts internes","Couts internes","Couts internes","Couts internes","Couts internes","Couts internes","Couts internes","Couts internes","Couts internes","Couts internes","Couts internes","Couts internes","Couts internes","Couts internes","Couts internes","Couts internes","Couts internes","Couts internes","Couts internes","Couts internes","Couts internes","Couts internes","Couts internes","Couts internes","Couts internes","Couts internes","Couts internes","Couts internes","Couts internes","Couts internes","Couts internes","Couts internes","Couts internes","Couts internes","Couts internes","Couts internes","Couts internes","Couts internes","Couts internes","Couts internes","Couts internes","Couts internes","Couts internes","Couts internes","Couts internes","Couts internes","Couts internes","Couts internes","Couts internes","Couts internes","Couts internes","Couts internes","Couts internes","Couts internes","Couts internes","Couts internes","Couts internes","Couts internes","Couts internes","Couts internes","Couts internes","Couts internes","Couts internes","Couts internes","Couts internes","Couts internes","Couts internes","Couts internes","Couts internes","Couts internes","Couts internes","Couts internes","Couts internes","Couts internes","Couts internes","Couts internes","Couts internes","Couts internes","Couts internes","Couts internes","Couts internes","Couts internes","Couts internes","Couts internes","Couts internes","Couts internes","Couts internes","Couts internes","Couts internes","Couts internes","Couts internes","Couts internes","Couts internes","Couts internes","Couts internes","Couts internes","Couts internes","Couts internes","Couts internes","Couts internes","Couts internes","Couts internes","Couts internes","Couts internes","Couts internes","Couts internes","Couts internes","Couts internes","Couts internes","Couts internes","Couts internes","Couts internes","Couts internes","Couts internes","Couts internes","Couts internes","Couts internes","Couts internes","Couts internes","Couts internes","Couts internes","Couts internes","Couts internes","Couts internes","Couts internes","Couts internes","Couts internes","Couts internes","Couts internes","Couts internes","Couts internes","Couts internes","Couts internes","Couts internes","Couts internes","Couts internes","Couts internes","Couts internes","Couts internes","Couts internes","Couts internes","Couts internes","Couts internes","Couts internes","Couts internes","Couts internes","Couts internes","Couts internes","Couts internes","Couts internes","Couts internes","Couts internes","Couts internes","Couts internes","Couts internes","Couts internes","Couts internes","Couts internes","Couts internes","Couts internes","Couts internes","Couts internes","Couts internes","Couts internes","Couts internes","Couts internes","Couts internes","Couts internes","Couts internes","Couts internes","Couts internes","Couts internes","Couts internes","Couts internes","Couts internes","Couts internes","Couts internes","Couts internes","Couts internes","Couts internes","Couts internes","Couts internes","Couts internes","Couts internes","Couts internes","Couts internes","Couts internes","Couts internes","Couts internes","Couts internes","Couts internes","Couts internes","Couts internes","Couts internes","Couts internes","Couts internes","Couts internes","Couts internes","Couts internes","Couts internes","Couts internes","Couts internes","Couts internes","Couts internes","Couts internes","Couts internes","Couts internes","Couts internes","Couts internes","Couts internes","Couts internes","Couts internes","Couts internes","Couts internes","Couts internes","Couts internes","Couts internes","Couts internes","Couts internes","Couts internes","Couts internes","Couts internes","Couts internes","Couts internes","Couts internes","Couts internes","Couts internes","Couts internes","Couts internes","Couts internes","Couts internes","Couts internes","Couts internes","Couts internes","Couts internes","Couts internes","Couts internes","Couts internes","Couts internes","Couts internes","Couts internes","Couts internes","Couts internes","Couts internes","Couts internes","Couts internes","Couts internes","Couts internes","Couts internes","Couts internes","Couts internes","Couts internes","Couts internes","Couts internes","Couts internes","Couts internes","Couts internes","Couts internes","Couts internes","Couts internes","Couts internes","Couts internes","Couts internes","Couts internes","Couts internes","Couts internes","Couts internes","Couts internes","Couts internes","Couts internes","Couts internes","Couts internes","Couts internes","Couts internes","Couts internes","Couts internes","Couts internes","Couts internes","Couts internes","Couts internes","Couts internes","Couts internes","Couts internes","Couts internes","Couts internes","Couts internes","Couts internes","Couts internes","Couts internes","Couts internes","Couts internes","Couts internes","Couts internes","Couts internes","Couts internes","Couts internes","Couts internes","Couts internes","Couts internes","Couts internes","Couts internes","Couts internes","Couts internes","Couts internes","Couts internes","Couts internes","Couts internes","Couts internes","Couts internes","Couts internes","Couts internes","Couts internes","Couts internes","Couts internes","Couts internes","Couts internes","Couts internes","Couts internes","Couts internes","Couts internes","Couts internes","Couts internes","Couts internes","Couts internes","Couts internes","Couts internes","Couts internes","Couts internes","Couts internes","Couts internes","Couts internes","Couts internes","Couts internes","Couts internes","Couts internes","Couts internes","Couts internes","Couts internes","Couts internes","Couts internes","Couts internes","Couts internes","Couts internes","Couts internes","Couts internes","Couts internes","Couts internes","Couts internes","Couts internes","Couts internes","Couts internes","Couts internes","Couts internes","Couts internes","Couts internes","Couts internes","Couts internes","Couts internes","Couts internes","Couts internes","Couts internes","Couts internes","Couts internes","Couts internes","Couts internes","Couts internes","Couts internes","Couts internes","Couts internes","Couts internes","Couts internes","Couts internes","Couts internes","Couts internes","Couts internes","Couts internes","Couts internes","Couts internes","Couts internes","Couts internes","Couts internes","Couts internes","Couts internes","Couts internes","Couts internes","Couts internes","Couts internes","Couts internes","Couts internes","Couts internes","Couts internes","Couts internes","Couts internes","Couts internes","Couts internes","Couts internes","Couts internes","Couts internes","Couts internes","Couts internes","Couts internes","Couts internes","Couts internes","Couts internes","Couts internes","Couts internes","Couts internes","Couts internes","Couts internes","Couts internes","Couts internes","Couts internes","Couts internes","Couts internes","Couts internes","Couts internes","Couts internes","Couts internes","Couts internes","Couts internes","Couts internes","Couts internes","Couts internes","Couts internes","Couts internes","Couts internes","Couts internes","Couts internes","Couts internes","Couts internes","Couts internes","Couts internes","Couts internes","Couts internes","Couts internes","Couts internes","Couts internes","Couts internes","Couts internes","Couts internes","Couts internes","Couts internes","Couts internes","Couts internes","Couts internes","Couts internes","Couts internes","Couts internes","Couts internes","Couts internes","Couts internes","Couts internes","Couts internes","Couts internes","Couts internes","Couts internes","Couts internes","Couts internes","Couts internes","Couts internes","Couts internes","Couts internes","Couts internes","Couts internes","Couts internes","Couts internes","Couts internes","Couts internes","Couts internes","Couts internes","Couts internes","Couts internes","Couts internes","Couts internes","Couts internes","Couts internes","Couts internes","Couts internes","Couts internes","Couts internes","Couts internes","Couts internes","Couts internes","Couts internes","Couts internes","Couts internes","Couts internes","Couts internes","Couts internes","Couts internes","Couts internes","Couts internes","Couts internes","Couts internes","Couts internes","Couts internes","Couts internes","Couts internes","Couts internes","Couts internes","Couts internes","Couts internes","Couts internes","Couts internes","Couts internes","Couts internes","Couts internes","Couts internes","Couts internes","Couts internes","Couts internes","Couts internes","Couts internes","Couts internes","Couts internes","Couts internes","Couts internes","Couts internes","Couts internes","Couts internes","Couts internes","Couts internes","Couts internes","Couts internes","Couts internes","Couts internes","Couts internes","Couts internes","Couts internes","Couts internes","Couts internes","Couts internes","Couts internes","Couts internes","Couts internes","Couts internes","Couts internes","Couts internes","Couts internes","Couts internes","Couts internes","Couts internes","Couts internes","Couts internes","Couts internes","Couts internes","Couts internes","Couts internes","Couts internes","Couts internes","Couts internes","Couts internes","Couts internes","Couts internes","Couts internes","Couts internes","Couts internes","Couts internes","Couts internes","Couts internes","Couts internes","Couts internes","Couts internes","Couts internes","Couts internes","Couts internes","Couts internes","Couts internes","Couts internes","Couts internes","Couts internes","Couts internes","Couts internes","Couts internes","Couts internes","Couts internes","Couts internes","Couts internes","Couts internes","Couts internes","Couts internes","Couts internes","Couts internes","Couts internes","Couts internes","Couts internes","Couts internes","Couts internes","Couts internes","Couts internes","Couts internes","Couts internes","Couts internes","Couts internes","Couts internes","Couts internes","Couts internes","Couts internes","Couts internes","Couts internes","Couts internes","Couts internes","Couts internes","Couts internes","Couts internes","Couts internes","Couts internes","Couts internes","Couts internes","Couts internes","Couts internes","Couts internes","Couts internes","Couts internes","Couts internes","Couts internes","Couts internes","Couts internes","Couts internes","Couts internes","Couts internes","Couts internes","Couts internes","Couts internes","Couts internes","Couts internes","Couts internes","Couts internes","Couts internes","Couts internes","Couts internes","Couts internes","Couts internes","Couts internes","Couts internes","Couts internes","Couts internes","Couts internes","Couts internes","Couts internes","Couts internes","Couts internes","Couts internes","Couts internes","Couts internes","Couts internes","Couts internes","Couts internes","Couts internes","Couts internes","Couts internes","Couts internes","Couts internes","Couts internes","Couts internes","Couts internes","Couts internes","Couts internes","Couts internes","Couts internes","Couts internes","Couts internes","Couts internes","Couts internes","Couts internes","Couts internes","Couts internes","Couts internes","Couts internes","Couts internes","Couts internes","Couts internes","Couts internes","Couts internes","Couts internes","Couts internes","Couts internes","Couts internes","Couts internes","Couts internes","Couts internes","Couts internes","Couts internes","Couts internes","Couts internes","Couts internes","Couts internes","Couts internes","Couts internes","Couts internes","Couts internes","Couts internes","Couts internes","Couts internes","Couts internes","Couts internes","Couts internes","Couts internes","Couts internes","Couts internes","Couts internes","Couts internes","Couts internes","Couts internes","Couts internes","Couts internes","Couts internes","Couts internes","Couts internes","Couts internes","Couts internes","Couts internes","Couts internes","Couts internes","Couts internes","Couts internes","Couts internes","Couts internes","Couts internes","Couts internes","Couts internes","Couts internes","Couts internes","Couts internes","Couts internes","Couts internes","Couts internes","Couts internes","Couts internes","Couts internes","Couts internes","Couts internes","Couts internes","Couts internes","Couts internes","Couts internes","Couts internes","Couts internes","Couts internes","Couts internes","Couts internes","Couts internes","Couts internes","Couts internes","Couts internes","Couts internes","Couts internes","Couts internes","Couts internes","Couts internes","Couts internes","Couts internes","Couts internes","Couts internes","Couts internes","Couts internes","Couts internes","Couts internes","Couts internes","Couts internes","Couts internes","Couts internes","Couts internes","Couts internes","Couts internes","Couts internes","Couts internes","Couts internes","Couts internes","Couts internes","Couts internes","Couts internes","Couts internes","Couts internes","Couts internes","Couts internes","Couts internes","Couts internes","Couts internes","Couts internes","Couts internes","Couts internes","Couts internes","Couts internes","Couts internes","Couts internes","Couts internes","Couts internes","Couts internes","Couts internes","Couts internes","Couts internes","Couts internes","Couts internes","Couts internes","Couts internes","Couts internes","Couts internes","Couts internes","Couts internes","Couts internes","Couts internes","Couts internes","Couts internes","Couts internes","Couts internes","Couts internes","Couts internes","Couts internes","Couts internes","Couts internes","Couts internes","Couts internes","Couts internes","Couts internes","Couts internes","Couts internes","Couts internes","Couts internes","Couts internes","Couts internes","Couts internes","Couts internes","Couts internes","Couts internes","Couts internes","Couts internes","Couts internes","Couts internes","Couts internes","Couts internes","Couts internes","Couts internes","Couts internes","Couts internes","Couts internes","Couts internes","Couts internes","Couts internes","Couts internes","Couts internes","Couts internes","Couts internes","Couts internes","Couts internes","Couts internes","Couts internes","Couts internes","Couts internes","Couts internes","Couts internes","Couts internes","Couts internes","Couts internes","Couts internes","Couts internes","Couts internes","Couts internes","Couts internes","Couts internes","Couts internes","Couts internes","Couts internes","Couts internes","Couts internes","Couts internes","Couts internes","Couts internes","Couts internes","Couts internes","Couts internes","Couts internes","Couts internes","Couts internes","Couts internes","Couts internes","Couts internes","Couts internes","Couts internes","Couts internes","Couts internes","Couts internes","Couts internes","Couts internes","Couts internes","Couts internes","Couts internes","Couts internes","Couts internes","Couts internes","Couts internes","Couts internes","Couts internes","Couts internes","Couts internes","Couts internes","Couts internes","Couts internes","Couts internes","Couts internes","Couts internes","Couts internes","Couts internes","Couts internes","Couts internes","Couts internes","Couts internes","Couts internes","Couts internes","Couts internes","Couts internes","Couts internes","Couts internes","Couts internes","Couts internes","Couts internes","Couts internes","Couts internes","Couts internes","Couts internes","Couts internes","Couts internes","Couts internes","Couts internes","Couts internes","Couts internes","Couts internes","Couts internes","Couts internes","Couts internes","Couts internes","Couts internes","Couts internes","Couts internes","Couts internes","Couts internes","Couts internes","Couts internes","Couts internes","Couts internes","Couts internes","Couts internes","Couts internes","Couts internes","Couts internes","Couts internes","Couts internes","Couts internes","Couts internes","Couts internes","Couts internes","Couts internes","Couts internes","Couts internes","Couts internes","Couts internes","Couts internes","Couts internes","Couts internes","Couts internes","Couts internes","Couts internes","Couts internes","Couts internes","Couts internes","Couts internes","Couts internes","Couts internes","Couts internes","Couts internes","Couts internes","Couts internes","Couts internes","Couts internes","Couts internes","Couts internes","Couts internes","Couts internes","Couts internes","Couts internes","Couts internes","Couts internes","Couts internes","Couts internes","Couts internes","Couts internes","Couts internes","Couts internes","Couts internes","Couts internes","Couts internes","Couts internes","Couts internes","Couts internes","Couts internes","Couts internes","Couts internes","Couts internes","Couts internes","Couts internes","Couts internes","Couts internes","Couts internes","Couts internes","Couts internes","Couts internes","Couts internes","Couts internes","Couts internes","Couts internes","Couts internes","Couts internes","Couts internes","Couts internes","Couts internes","Couts internes","Couts internes","Couts internes","Couts internes","Couts internes","Couts internes","Couts internes","Couts internes","Couts internes","Couts internes","Couts internes","Couts internes","Couts internes","Couts internes","Couts internes","Couts internes","Couts internes","Couts internes","Couts internes","Couts internes","Couts internes","Couts internes","Couts internes","Couts internes","Couts internes","Couts internes","Couts internes","Couts internes","Couts internes","Couts internes","Couts internes","Couts internes","Couts internes","Couts internes","Couts internes","Couts internes","Couts internes","Couts internes","Couts internes","Couts internes","Couts internes","Couts internes","Couts internes","Couts internes","Couts internes","Couts internes","Couts internes","Couts internes","Couts internes","Couts internes","Couts internes","Couts internes","Couts internes","Couts internes","Couts internes","Couts internes","Couts internes","Couts internes","Couts internes","Couts internes","Couts internes","Couts internes","Couts internes","Couts internes","Couts internes","Couts internes","Couts internes","Couts internes","Couts internes","Couts internes","Couts internes","Couts internes","Couts internes","Couts internes","Couts internes","Couts internes","Couts internes","Couts internes","Couts internes","Couts internes","Couts internes","Couts internes","Couts internes","Couts internes","Couts internes","Couts internes","Couts internes","Couts internes","Couts internes","Couts internes","Couts internes","Couts internes","Couts internes","Couts internes","Couts internes","Couts internes","Couts internes","Couts internes","Couts internes","Couts internes","Couts internes","Couts internes","Couts internes","Couts internes","Couts internes","Couts internes","Couts internes","Couts internes","Couts internes","Couts internes","Couts internes","Couts internes","Couts internes","Couts internes","Couts internes","Couts internes","Couts internes","Couts internes","Couts internes","Couts internes","Couts internes","Couts internes","Couts internes","Couts internes","Couts internes","Couts internes","Couts internes","Couts internes","Couts internes","Couts internes","Couts internes","Couts internes","Couts internes","Couts internes","Couts internes","Couts internes","Couts internes","Couts internes","Couts internes","Couts internes","Couts internes","Couts internes","Couts internes","Couts internes","Couts internes","Couts internes","Couts internes","Couts internes","Couts internes","Couts internes","Couts internes","Couts internes","Couts internes","Couts internes","Couts internes","Couts internes","Couts internes","Couts internes","Couts internes","Couts internes","Couts internes","Couts internes","Couts internes","Couts internes","Couts internes","Couts internes","Couts internes","Couts internes","Couts internes","Couts internes","Couts internes","Couts internes","Couts internes","Couts internes","Couts internes","Couts internes","Couts internes","Couts internes","Couts internes","Couts internes","Couts internes","Couts internes","Couts internes","Couts internes","Couts internes","Couts internes","Couts internes","Couts internes","Couts internes","Couts internes","Couts internes","Couts internes","Couts internes","Couts internes","Couts internes","Couts internes","Couts internes","Couts internes","Couts internes","Couts internes","Couts internes","Couts internes","Couts internes","Couts internes","Couts internes","Couts internes","Couts internes","Couts internes","Couts internes","Couts internes","Couts internes","Couts internes","Couts internes","Couts internes","Couts internes","Couts internes","Couts internes","Couts internes","Couts internes","Couts internes","Couts internes","Couts internes","Couts internes","Couts internes","Couts internes","Couts internes","Couts internes","Couts internes","Couts internes","Couts internes","Couts internes","Couts internes","Couts internes","Couts internes","Couts internes","Couts internes","Couts internes","Couts internes","Couts internes","Couts internes","Couts internes","Couts internes","Couts internes","Couts internes","Couts internes","Couts internes","Couts internes","Couts internes","Couts internes","Couts internes","Couts internes","Couts internes","Couts internes","Couts internes","Couts internes","Couts internes","Couts internes","Couts internes","Couts internes","Couts internes","Couts internes","Couts internes","Couts internes","Couts internes","Couts internes","Couts internes","Couts internes","Couts internes","Couts internes","Couts internes","Couts internes","Couts internes","Couts internes","Couts internes","Couts internes","Couts internes","Couts internes","Couts internes","Couts internes","Couts internes","Couts internes","Couts internes","Couts internes","Couts internes","Couts internes","Couts internes","Couts internes","Couts internes","Couts internes","Couts internes","Couts internes","Couts internes","Couts internes","Couts internes","Couts internes","Couts internes","Couts internes","Couts internes","Couts internes","Couts internes","Couts internes","Couts internes","Couts internes","Couts internes","Couts internes","Couts internes","Couts internes","Couts internes","Couts internes","Couts internes","Couts internes","Couts internes","Couts internes","Couts internes","Couts internes","Couts internes","Couts internes","Couts internes","Couts internes","Couts internes","Couts internes","Couts internes","Couts internes","Couts internes","Couts internes","Couts internes","Couts internes","Couts internes","Couts internes","Couts internes","Couts internes","Couts internes","Couts internes","Couts internes","Couts internes","Couts internes","Couts internes","Couts internes","Couts internes","Couts internes","Couts internes","Couts internes","Couts internes","Couts internes","Couts internes","Couts internes","Couts internes","Couts internes","Couts internes","Couts internes","Couts internes","Couts internes","Couts internes","Couts internes","Couts internes","Couts internes","Couts internes","Couts internes","Couts internes","Couts internes","Couts internes","Couts internes","Couts internes","Couts internes","Couts internes","Couts internes","Couts internes","Couts internes","Couts internes","Couts internes","Couts internes","Couts internes","Couts internes","Couts internes","Couts internes","Couts internes","Couts internes","Couts internes","Couts internes","Couts internes","Couts internes","Couts internes","Couts internes","Couts internes","Couts internes","Couts internes","Couts internes","Couts internes","Couts internes","Couts internes","Couts internes","Couts internes","Couts internes","Couts internes","Couts internes","Couts internes","Couts internes","Couts internes","Couts internes","Couts internes","Couts internes","Couts internes","Couts internes","Couts internes","Couts internes","Couts internes","Couts internes","Couts internes","Couts internes","Couts internes","Couts internes","Couts internes","Couts internes","Couts internes","Couts internes","Couts internes","Couts internes","Couts internes","Couts internes","Couts internes","Couts internes","Couts internes","Couts internes","Couts internes","Couts internes","Couts internes","Couts internes","Couts internes","Couts internes","Couts internes","Couts internes","Couts internes","Couts internes","Couts internes","Couts internes","Couts internes","Couts internes","Couts internes","Couts internes","Couts internes","Couts internes","Couts internes","Couts internes","Couts internes","Couts internes","Couts internes","Couts internes","Couts internes","Couts internes","Couts internes","Couts internes","Couts internes","Couts internes","Couts internes","Couts internes","Couts internes","Couts internes","Couts internes","Couts internes","Couts internes","Couts internes","Couts internes","Couts internes","Couts internes","Couts internes","Couts internes","Couts internes","Couts internes","Couts internes","Couts internes","Couts internes","Couts internes","Couts internes","Couts internes","Couts internes","Couts internes","Couts internes","Couts internes","Couts internes","Couts internes","Couts internes","Couts internes","Couts internes","Couts internes","Couts internes","Couts internes","Couts internes","Couts internes","Couts internes","Couts internes","Couts internes","Couts internes","Couts internes","Couts internes","Couts internes","Couts internes","Couts internes","Couts internes","Couts internes","Couts internes","Couts internes","Couts internes","Couts internes","Couts internes","Couts internes","Couts internes","Couts internes","Couts internes","Couts internes","Couts internes","Couts internes","Couts internes","Couts internes","Couts internes","Couts internes","Couts internes","Couts internes","Couts internes","Couts internes","Couts internes","Couts internes","Couts internes","Couts internes","Couts internes","Couts internes","Couts internes","Couts internes","Couts internes","Couts internes","Couts internes","Couts internes","Couts internes","Couts internes","Couts internes","Couts internes","Couts internes","Couts internes","Couts internes","Couts internes","Couts internes","Couts internes","Couts internes","Couts internes","Couts internes","Couts internes","Couts internes","Couts internes","Couts internes","Couts internes","Couts internes","Couts internes","Couts internes","Couts internes","Couts internes","Couts internes","Couts internes","Couts internes","Couts internes","Couts internes","Couts internes","Couts internes","Couts internes","Couts internes","Couts internes","Couts internes","Couts internes","Couts internes","Couts internes","Couts internes","Couts internes","Couts internes","Couts internes","Couts internes","Couts internes","Couts internes","Couts internes","Couts internes","Couts internes","Couts internes","Couts internes","Couts internes","Couts internes","Couts internes","Couts internes","Couts internes","Couts internes","Couts internes","Couts internes","Couts internes","Couts internes","Couts internes","Couts internes","Couts internes","Couts internes","Couts internes","Couts internes","Couts internes","Couts internes","Couts internes","Couts internes","Couts internes","Couts internes","Couts internes","Couts internes","Couts internes","Couts internes","Couts internes","Couts internes","Couts internes","Couts internes","Couts internes","Couts internes","Couts internes","Couts internes","Couts internes","Couts internes","Couts internes","Couts internes","Couts internes","Couts internes","Couts internes","Couts internes","Couts internes","Couts internes","Couts internes","Couts internes","Couts internes","Couts internes","Couts internes","Couts internes","Couts internes","Couts internes","Couts internes","Couts internes","Couts internes","Couts internes","Couts internes","Couts internes","Couts internes","Couts internes","Couts internes","Couts internes","Couts internes","Couts internes","Couts internes","Couts internes","Couts internes","Couts internes","Couts internes","Couts internes","Couts internes","Couts internes","Couts internes","Couts internes","Couts internes","Couts internes","Couts internes","Couts internes","Couts internes","Couts internes","Couts internes","Couts internes","Couts internes","Couts internes","Couts internes","Couts internes","Couts internes","Couts internes","Couts internes","Couts internes","Couts internes","Couts internes","Couts internes","Couts internes","Couts internes","Couts internes","Couts internes","Couts internes","Couts internes","Couts internes","Couts internes","Couts internes","Couts internes","Couts internes","Couts internes","Couts internes","Couts internes","Couts internes","Couts internes","Couts internes","Couts internes","Couts internes","Couts internes","Couts internes","Couts internes","Couts internes","Couts internes","Couts internes","Couts internes","Couts internes","Couts internes","Couts internes","Couts internes","Couts internes","Couts internes","Couts internes","Couts internes","Couts internes","Couts internes","Couts internes","Couts internes","Couts internes","Couts internes","Couts internes","Couts internes","Couts internes","Couts internes","Couts internes","Couts internes","Couts internes","Couts internes","Couts internes","Couts internes","Couts internes","Couts internes","Couts internes","Couts internes","Couts internes","Couts internes","Couts internes"]
[]
["Liste d'indicateurs","résultats","unité"]
["Nombre de fractions évacuées par l’hôpital et ses contractants",{"$f":"COUNTIFS(Tableau4[Tri réalisé],\"Oui\")+COUNTIFS(Tableau4[Tri réalisé],\"contractant\")","v":1},"fractions"]
["Nombre de fractions évacuées par l’hôpital",{"$f":"COUNTIFS(Tableau4[Tri réalisé],\"Oui\")","v":1},"fractions"]
["Surface de stockage disponible par fraction évacuée par l’hôpital",{"$f":"IFERROR('Evaluation quantitative'!E37/'tableau de bord'!B5,\"\")","v":0},"m²"]
["Pourcentage de fractions triées parmi celles faisant l’objet d’une obligation de tri",null,"%"]
["Coût total de gestion des déchets",{"$f":"'Evaluation quantitative'!C111","v":0},"€"]
["Coût total par fraction évacuée par l’hôpital",{"$f":"IFERROR(B8/B5,\"\")","v":0},"€ / fraction"]
["Taux de conformité réglementaire",{"$f":"réglementation!B55","v":""},"%"]
["Taux de non-conformité réglementaire",{"$f":"réglementation!B57","v":""},"%"]
["Taux de points d'attention réglementaires",{"$f":"réglementation!B56","v":""},"%"]
["Coût externe par kg évacuée par l’hôpital",{"$f":"IFERROR(('Evaluation quantitative'!C110/'tableau de bord'!B31),\"\")","v":""},"€/kg"]
["Coût interne d’un kg évacué par l’hôpital",{"$f":"IFERROR('Evaluation quantitative'!C109/'tableau de bord'!B31,\"\")","v":""},"€/kg"]
["Coût total d’un kilo évacué par l’hôpital",{"$f":"IFERROR(B8/B31,\"\")","v":""},"€/kg"]
["Coût externe des B2 par rapport au coût externe de l’ensemble des fractions évacuées par l’hôpital ",{"$f":"IFERROR('Evaluation quantitative'!L44/'Evaluation quantitative'!I105,\"\")","v":""},"%"]
["Coût des B2 par rapport au coût des B1+B2",{"$f":"IFERROR('Evaluation quantitative'!I96/('Evaluation quantitative'!I96+'Evaluation quantitative'!L44),\"\")","v":""},"%"]
["Coût externe par lit",{"$f":"IFERROR('Evaluation quantitative'!C110/'Caractérisation implantation'!Q13,\"\")","v":""},"€ /lit"]
["Coût interne par lit",{"$f":"IFERROR('Evaluation quantitative'!C109/'Caractérisation implantation'!Q13,\"\")","v":""},"€ /lit"]
["Coût total par lit",{"$f":"IFERROR('Evaluation quantitative'!C111/'Caractérisation implantation'!Q13,\"\")","v":""},"€ /lit"]
["Coût externe par journée d'hospitalisation",{"$f":"IFERROR('Evaluation quantitative'!C110/'Caractérisation implantation'!Q16,\"\")","v":""},"€ / jour"]
["Coût interne par journée d'hospitalisation",{"$f":"IFERROR('Evaluation quantitative'!C109/'Caractérisation implantation'!Q15,\"\")","v":""},"€ / jour"]
["Coût total par journée d'hospitalisation",{"$f":"IFERROR('Evaluation quantitative'!C111/'Caractérisation implantation'!Q16,\"\")","v":""},"€ / jour"]
["Quantités de B2 par rapport à la quantité totale évacuée",{"$f":"IFERROR(('Evaluation quantitative'!K44/'Evaluation quantitative'!K105)*100,\"\")","v":""},"%"]
["Quantité de B2 évacuée par lit",{"$f":"IFERROR('Evaluation quantitative'!K44/'Caractérisation implantation'!Q13,\"\")","v":""},"kg/lit"]
["Quantité de B2 évacuée par rapport à la quantité de B1 et B2 évacués",{"$f":"IFERROR('Evaluation quantitative'!K96/'Evaluation quantitative'!K44,\"\")","v":""},"%"]
["Quantité totale évacuée par l’hôpital par lit",{"$f":"IFERROR('Evaluation quantitative'!K105/'Caractérisation implantation'!Q13,\"\")","v":""},"kg/lit"]
["Quantité totale évacuée par l’hôpital par consultation",{"$f":"IFERROR('Evaluation quantitative'!K105/'Caractérisation implantation'!Q14,\"\")","v":""},"kg/consultation"]
["Quantité totale évacuée par l’hôpital par journée d’hospitalisation",{"$f":"IFERROR('Evaluation quantitative'!K105/'Caractérisation implantation'!Q16,\"\")","v":""},"kg/jour"]
["Quantité de B2 évacuée par intervention chirurgicale",{"$f":"IFERROR('Evaluation quantitative'!K44/'Caractérisation implantation'!Q15,\"\")","v":""},"kg/intervention"]
["Quantité total évacuée par l'hopital",{"$f":"IFERROR('Evaluation quantitative'!K105,\"\")","v":0},"kg"]

{"sheet":"Fractions et services","index":7,"n_rows":62,"n_cols":46,"rows_kept":62,"cut":false,"hidden":false,"merged":[[2,0,2,1],[0,0,0,1]]}
["Identifier l'étendue du tri au niveau des services"]
["Bon à savoir : "]
["Un service concerné par le tri est un service qui trie la fraction considérée, même si le lieu du premier dépôt de cette fraction est situé à l’extérieur du périmètre de ce service. "]
[]
[null,"Fraction","Médecine cardiovasculaire et thoracique","Médecine dentaire - orthodontie","Médecine endocrino-diabétologie","Médecine générale","Médecine gériatrique","Médecine gynécologique","Médecine hématologie","Médecine interne","Médecine neurologique","Médecine nucléaire","Médecine obstetrique","Médecine oncologique","Médecine orthopédique et traumatologie","Médecine Oto-Rhino-Laryngologique","Médecine pédiatrique","Médecine physique","Médecine psychiatrique","Unité de soins palliatif","Morgue","Unité bloc opératoire","Unité de consultation","Unité de laboratoire","Unité de réveil / anesthésie","Unité de soins généraux","Unité de soins intensifs","Unité du sommeil","Unité de stérilisation","Unité transport des patients","Unité d'examen","Unité d'imagerie médicale","Unité d'urgence","Unité pharmaceutique","Surface commerciale","Service de l'éducation - école","Services religieux","chambre","Accueil","Service administratif","Service informatique","Service de maintenance","Service entretien","Service housekeeping","Service restauration - cuisine","Zone de stockage"]
[null,{"$f":"'Fractions sortantes'!B15","v":"B2 en mélange"},"oui"]
[null,{"$f":"'Fractions sortantes'!B16","v":"Amalgames dentaires"}]
[null,{"$f":"'Fractions sortantes'!B17","v":"Appareils d'éclairages"}]
[null,{"$f":"'Fractions sortantes'!B18","v":"Asbeste ciment"}]
[null,{"$f":"'Fractions sortantes'!B19","v":"Bois contaminé ou dangereux (C)"}]
[null,{"$f":"'Fractions sortantes'!B20","v":"Bois en mélange"},null,"non"]
[null,{"$f":"'Fractions sortantes'!B21","v":"Bois non traité (A)"}]
[null,{"$f":"'Fractions sortantes'!B22","v":"Bois traité (B)"}]
[null,{"$f":"'Fractions sortantes'!B23","v":"Cartons"}]
[null,{"$f":"'Fractions sortantes'!B24","v":"Cartouches d'imprimante"}]
[null,{"$f":"'Fractions sortantes'!B25","v":"Déchets anatomiques"}]
[null,{"$f":"'Fractions sortantes'!B26","v":"Déchets verts"}]
[null,{"$f":"'Fractions sortantes'!B27","v":"DEEE en mélange"}]
[null,{"$f":"'Fractions sortantes'!B28","v":"DMIA"}]
[null,{"$f":"'Fractions sortantes'!B29","v":"Encombrants"}]
[null,{"$f":"'Fractions sortantes'!B30","v":"Extincteurs"}]
[null,{"$f":"'Fractions sortantes'!B31","v":"Frigolite"}]
[null,{"$f":"'Fractions sortantes'!B32","v":"Gros appareils électriques"}]
[null,{"$f":"'Fractions sortantes'!B33","v":"Huiles à usage alimentaire"}]
[null,{"$f":"'Fractions sortantes'!B34","v":"Huiles de moteur"}]
[null,{"$f":"'Fractions sortantes'!B35","v":"Inertes"}]
[null,{"$f":"'Fractions sortantes'!B36","v":"Lampes à décharges"}]
[null,{"$f":"'Fractions sortantes'!B37","v":"Marc de café"}]
[null,{"$f":"'Fractions sortantes'!B38","v":"Matériel informatique"}]
[null,{"$f":"'Fractions sortantes'!B39","v":"Médicaments en mélange"}]
[null,{"$f":"'Fractions sortantes'!B40","v":"Médicaments inusités"}]
[null,{"$f":"'Fractions sortantes'!B41","v":"Médicaments périmés"}]
[null,{"$f":"'Fractions sortantes'!B42","v":"Mégots"}]
[null,{"$f":"'Fractions sortantes'!B43","v":"Mercure"}]
[null,{"$f":"'Fractions sortantes'!B44","v":"Métaux en mélange"}]
[null,{"$f":"'Fractions sortantes'!B45","v":"Papiers"}]
[null,{"$f":"'Fractions sortantes'!B46","v":"Papiers confidentiels"}]
[null,{"$f":"'Fractions sortantes'!B47","v":"Papiers et cartons"}]
[null,{"$f":"'Fractions sortantes'!B48","v":"PCB et PCT"}]
[null,{"$f":"'Fractions sortantes'!B49","v":"Peintures et solvants"}]
[null,{"$f":"'Fractions sortantes'!B50","v":"Petits appareils électriques"}]
[null,{"$f":"'Fractions sortantes'!B51","v":"Pièces anatomiques"}]
[null,{"$f":"'Fractions sortantes'!B52","v":"Piles et accumulateurs"}]
[null,{"$f":"'Fractions sortantes'!B53","v":"Plaques de plâtre"}]
[null,{"$f":"'Fractions sortantes'!B54","v":"Plastiques d'emballage"}]
[null,{"$f":"'Fractions sortantes'!B55","v":"Plastiques rigides"}]
[null,{"$f":"'Fractions sortantes'!B56","v":"Plâtre"}]
[null,{"$f":"'Fractions sortantes'!B57","v":"PMC"}]
[null,{"$f":"'Fractions sortantes'!B58","v":"Pneus usagés"}]
[null,{"$f":"'Fractions sortantes'!B59","v":"Produits dangereux en mélange"}]
[null,{"$f":"'Fractions sortantes'!B60","v":"Produits d'entretien"}]
[null,{"$f":"'Fractions sortantes'!B61","v":"Résiduels (B1_A)"}]
[null,{"$f":"'Fractions sortantes'!B62","v":"Restes alimentaires"}]
[null,{"$f":"'Fractions sortantes'!B63","v":"Textiles non souillés"}]
[null,{"$f":"'Fractions sortantes'!B64","v":"TV et écrans"}]
[null,{"$f":"'Fractions sortantes'!B65","v":"Végétaux "}]
[null,{"$f":"'Fractions sortantes'!B66","v":"Verres d'emballage"}]
[null,{"$f":"'Fractions sortantes'!B67","v":"Verres plats"}]
[null,{"$f":"'Fractions sortantes'!B68","v":"VHU"}]
[null,{"$f":"'Fractions sortantes'!B69","v":"Xylène et formol"}]
[null,{"$f":"'Fractions sortantes'!B70","v":0}]
[null,{"$f":"'Fractions sortantes'!B71","v":0}]

{"sheet":"Evaluation qualitative","index":8,"n_rows":104,"n_cols":5,"rows_kept":104,"cut":false,"hidden":false,"merged":[[98,0,103,0],[1,1,1,4],[8,0,39,0],[40,0,65,0],[66,0,73,0],[74,0,89,0],[90,0,97,0]]}
[]
[null,"Evaluation qualitative"]
[]
["Institution"]
["Date"]
["Nom/ prénom"]
[]
[null,null,null,"OUI/NON/ Non pertinent","Commentaires/remarques"]
["Axe 1 \n Production","A","Pratiques internes"]
[null,"A.1","Pensez-vous qu'une partie du personnel soit sensibilisée à la bonne gestion des déchets ? "]
[null,"A.2","Pensez-vous que la majorité du personnel soit sensibilisée à la bonne gestion des déchets ? "]
[null,"A.3","Au-delà du réglementaire, l'arbitrage sur l'usage unique pour les dispositifs médicaux fait-il l'objet d'une réflexion approfondie ?"]
[null,"A.4","Au-delà du réglementaire, l'arbitrage sur l'usage unique pour les autres produits fait-il l'objet d'une réflexion approfondie ?"]
[null,"A.5","Pour économiser le papier, avez-vous une culture de réduction des impressions de documents ?"]
[null,"A.6","Y a-t-il une culture de lutte contre le \"gaspillage\" au sein de votre établissement ?"]
[null,"A.7","Les protocoles de soins sont-ils rédigés en tenant compte des déchets produits ?"]
[null,"B","Gaspillage alimentaire et emballages des repas"]
[null,"B.1","Des fontaines à eau sont-elles à disposition pour le personnel?"]
[null,"B.2","Des fontaines à eau sont-elles à disposition pour les patients?"]
[null,"B.3","Des fontaines à eau sont-elles à disposition pour les visiteurs?"]
[null,"B.4","Des gobelets en plastique à usage unique sont-ils à disposition pour le personnel?"]
[null,"B.5","Des gobelets en plastique à usage unique sont-ils à disposition pour les patients?"]
[null,"B.6","Des gobelets en plastique à usage unique sont-ils à disposition pour les visiteurs?"]
[null,"B.7","des bouteilles en plastique sont elles distribuées au personnel?"]
[null,"B.8","des bouteilles en plastique sont elles distribuées aux patients?"]
[null,"B.9","Utilisez-vous de la vaisselle réutilisable pour les repas en chambre?"]
[null,"B.10","Utilisez-vous de la vaisselle réutilisable pour les repas pour la caféteria?"]
[null,"B.11","Etes-vous en réflexion pour diminuer le gaspillage alimentaire et les emballages liés aux repas? "]
[null,"B.12","Avez-vous des procédures pour la gestion de la quantité d'assiettes servies en fonction du nombre de patients?"]
[null,"B.13","Adaptez-vous les portions servies en fonction du profil des patients?"]
[null,"C","Buanderie & nettoyage"]
[null,"C.1","le service de buanderie est-il sous-traité?"]
[null,"C.2","Avez-vous une réflexion sur les emballages plastiques du linge propre?"]
[null,"C.3","Menez-vous une réflexion sur les techniques de nettoyage? (par voie sèche sans désinfectant et microfibres, ou encore nettoyeur vapeur...)"]
[null,"D","Politique d'achats"]
[null,"D.1","Pour réduire les références, harmonisez-vous le matériel entre les services ?"]
[null,"D.2","Les achats par service sont-ils calculés en fonction des besoins réels ?"]
[null,"D.3","La notion d'élimination du futur déchet est-elle prise en compte ? Via des clauses d'achats durables dans les marchés publics?"]
[null,"D.4","Menez-vous une réflexion sur la réduction des emballages ?"]
[null,"D.5","Menez-vous une réflexion/avez-vous une procédure d'imposition de reprise des déchets d'emballage par les fournisseurs (cartons, films plastiques, invendus,…)"]
["Axe 2 \n Tri","E","Choix & arbitrages"]
[null,"E.1","Dans les services de soins, distinguez-vous d'autres filières que les B1 & B2?"]
[null,"E.2","Avez-vous formalisé une procédure de tri ? "]
[null,"E.3","Sauf exception justifiée, les procédures de tri sont-elles harmonisées d'un service à l'autre ?"]
[null,"E.4","En cas de doute sur le tri d'un déchet, les professionnels ont-ils un référent à qui s'adresser ?"]
[null,"E.5","Avez-vous une réflexion en cours sur de nouvelles filières que vous pourriez mettre en place ?"]
[null,"E.6","Si oui, cette réflexion a-t-elle conduit à une mise en place ? "]
[null,"E.7","Une gestion des papiers confidentiels est-elle en place ?"]
[null,"E.8","Le tri des PMC est il mis en place?"]
[null,"E.9","Si oui, quels sont les services ou zones concernées?"]
[null,"F","Ergonomie & adéquation du matériel"]
[null,"F.1","Les conteneurs, poubelles et collecteurs à objets Piquant-Coupant-Tranchant dans les services sont-ils ergonomiques?"]
[null,"F.2","Les volumes des conteneurs et poubelles dans les services sont-ils adaptés ?"]
[null,"F.3","Dans la mesure du possible, les conteneurs et poubelles ont-ils été placés de manière pertinente dans les services ? "]
[null,"F.4"," Les équipements sont-ils identiques d'un service à l'autre ? "]
[null,"F.5","Avez-vous un code couleur commun à tout l'établissement pour identifier les conteneurs de chaque filière ? "]
[null,"F.6","Y a-t-il une réflexion pluridisciplinaire sur le choix des équipements ? "]
[null,"G","Formation des producteurs de déchets des services de soin"]
[null,"G.1","Existe-t-il un support simplifié pour la procédure de tri ?"]
[null,"G.2","Ce support est-il affiché ou disponible dans tous les services ?"]
[null,"G.3","Les personnels sont-ils sensibilisés ?"]
[null,"G.4","Evaluez-vous leur niveau de connaissance ?"]
[null,"G.5","Existe-t-il une formation \"déchets\"?"]
[null,"G.6","Si oui, la formation \"déchets\" est-elle adaptée à la fonction de la personne à former ?"]
[null,"G.7","Leurs pratiques sont-elles évaluées ?"]
[null,"G.8","Les patients et visiteurs sont-ils sensibilisés à la démarche de tri ?"]
["Axe 3\nEntreposage intermédiaire","H","Sécurité & accessibilité"]
[null,"H.1","Tous les services ont-ils accès à un local \"déchets\" ?"]
[null,"H.2","Les locaux disposent-ils d'un point d'eau à proximité et sont-ils nettoyés périodiquement ?"]
[null,"H.3","Y a-t-il une signalétique sur la porte extérieure permettant d'identifier les locaux \"déchets\" ?"]
[null,"I"," Optimisation des surfaces"]
[null,"I.1","La surface des locaux déchets est-elle adaptée au volume de déchets produits par les services et au nombre de filières en place ?"]
[null,"I.2","La surface des locaux déchets est-elle suffisante pour envisager de nouvelles filières ?"]
[null,"I.3","Les locaux déchets sont-ils suffisamment vastes et/ou bien agencés pour que l'accès aux conteneurs déchets soit très simple ?"]
["Axe 4\n Collecte interne","J","Intégration aux autres circuits internes"]
[null,"J.1","Lors des tournées de collecte des déchets, les agents collectent-ils seulement des déchets ?"]
[null,"J.2","Les conditionnements de B1 et B2 sont-ils transportés dans des conteneurs séparés lors de la collecte ?"]
[null,"J.3","Le circuit des déchets évite-t-il les zones où l'on rencontre fréquemment des patients ?"]
[null,"J.4","Les collecteurs sont-ils systématiquement fermés pendant le transport ?"]
[null,"J.5","Les déchets transitent-ils préférablement dans des monte-charges plutôt que des ascenseurs ?"]
[null,"J.6","Les points de collecte des étages sont-ils à proximité immédiate d'un monte-charge et/ou ascenseur ?"]
[null,"K","Gestion du flux"]
[null,"K.1","Les heures de collecte sont-elles pertinentes par rapport à l'activité des services ?"]
[null,"K.2","Les heures de collecte sont-elles pertinentes par rapport à l'organisation du travail des agents de collecte ?"]
[null,"K.3","Les heures et fréquences des collectes ont-elles été pensées en fonction des autres flux ?"]
[null,"K.4","La fréquence des collectes est-elle pertinente ?"]
[null,"K.5","La taille des conteneurs des services est-elle adaptée à la fréquence de collecte ?"]
[null,"K.6","L'organisation des collectes le week-end et les jours fériés est-elle au moins aussi performante qu'en semaine ?"]
[null,"K.7","Les monte-charges et/ou ascenseurs sont-ils suffisamment disponibles pour ne pas retarder les agents lors de la collecte"]
[null,"K.8","Avez-vous une réflexion/procédure sur les déchets liés aux soins ambulatoires (prestés au domicile du patient)?"]
["Axe 5 Pilotage","L","Stratégie & politique de gestion"]
[null,"L.1","Avez-vous déjà réalisé un audit interne ou externe de vos filières \"déchets\" ?"]
[null,"L.2","Il y a-t-il des objectifs fixés en terme de % de déchets valorisés?"]
[null,"L.3","Le % de déchets valorisés est-il suivi et conforme aux objectifs fixés ?"]
[null,"M","Outils de gestion du circuit"]
[null,"M.1","Assurez-vous un suivi régulier du budget \"déchets\" ?"]
[null,"M.2","Le budget \"déchets\" de votre établissement est-il communiqué aux acteurs incontournables du circuit des déchets ?"]
[null,"M.3","Disposez-vous d'indicateurs de pilotage suivis en routine ?"]
["Axe 6 RH","N","Gestion des emplois et compétences des services \" logistique / entretien / nettoyage"]
[null,"N.1","Existe-t-il un plan de formation adapté à la gestion des déchets ?"]
[null,"N.2","Le plan de formation est-il ajusté en fonction des évolutions réglementaires et habilitations dans le domaine de la gestion des déchets ?"]
[null,"N.3","L'ensemble des agents a-t-il bénéficié d'une formation récemment ?"]
[null,"N.4","Y a-t-il une traçabilité des formations suivies par chaque agent ?"]
[null,"N.5","Le plan de formation est-il conçu pour garantir le maintien en compétence des agents ?"]

{"sheet":"Fractions potentielles","index":9,"n_rows":100,"n_cols":18,"rows_kept":100,"cut":false,"hidden":true,"merged":[[1,0,1,15],[3,0,3,15]]}
[]
["Etude sur le potentiel de réemploi et l'opportunité d'une filière de matériel médical de réemploi en Rw"]
[]
["But : Avoir une connaissance du stock disponible et/ou des volumes annuels (en nombre de pièces) de matériel médical inusité dont les hôpitaux se débarrassent), à l'image de ce que fait en France https://www.envieautonomie.org/ "]
[]
[]
[]
[]
[null,"fauteuil roulant manuel/electrique"]
[null,"Nombre de matériel en utilisation"]
[null,"fréquence de renouvellement"]
[]
[null,null,"[pièces/an]","[%]","Filière actuelle"]
[null,"Nombre tot de matériel débarassé / an",{"$f":"SUM(C15:C20)","v":0},1,null,null,null,null,null,null,null,null,null,null,null,null,null,"Don"]
[null,"Réutilisable ",0,{"$f":"IFERROR(C15/$C$14,0)","v":0},null,null,null,null,null,null,null,null,null,null,null,null,null,"Autre"]
[null,"Réutilisable si réparation",0,{"$f":"IFERROR(C16/$C$14,0)","v":0},null,null,null,null,null,null,null,null,null,null,null,null,null,"Retour fournisseur"]
[null,"pièce détachée interessante",0,0,null,null,null,null,null,null,null,null,null,null,null,null,null,"Recyclage"]
[null,"Matériaux constitutif interessant",0,0,null,null,null,null,null,null,null,null,null,null,null,null,null,"Valorisation énergétique"]
[null,"Pas de récupération ou recyclage possible",0,0,null,null,null,null,null,null,null,null,null,null,null,null,null,"Enfouissement"]
[null,"Etat inconnu",0,0]
[]
[]
[null,"scooter electrique "]
[null,"Nombre de matériel en utilisation"]
[null,"fréquence de renouvellement"]
[]
[null,null,"[pièces/an]","[%]","Filière actuelle"]
[null,"Nombre tot de matériel débarassé / an",{"$f":"SUM(C29:C34)","v":226},1]
[null,"réutilisable",5,{"$f":"IFERROR(C29/$C$28,0)","v":2.2123893805309734E-2}]
[null,"réutilisable si réparation",40,{"$f":"IFERROR(C30/$C$28,0)","v":0.17699115044247787}]
[null,"pièce détachée interessante",20,8.8495575221238937E-2]
[null,"Matériaux constitutif interessant",60,0.26548672566371684]
[null,"Pas de récupération ou recyclage possible",100,0.44247787610619471]
[null,"pas d'idée sur l'état du matériel",1,4.4247787610619468E-3]
[]
[]
[null,"appareil de transfert/ verticalisateur/lève-personnes "]
[null,"Nombre de matériel en utilisation"]
[null,"fréquence de renouvellement"]
[]
[null,null,"[pièces/an]","[%]","Filière actuelle"]
[null,"Nombre tot de matériel débarassé / an",{"$f":"SUM(C43:C48)","v":226},1]
[null,"réutilisable",5,{"$f":"IFERROR(C43/$C$42,0)","v":2.2123893805309734E-2}]
[null,"réutilisable si réparation",40,{"$f":"IFERROR(C44/$C$42,0)","v":0.17699115044247787}]
[null,"pièce détachée interessante",20,8.8495575221238937E-2]
[null,"Matériaux constitutif interessant",60,0.26548672566371684]
[null,"Pas de récupération ou recyclage possible",100,0.44247787610619471]
[null,"pas d'idée sur l'état du matériel",1,4.4247787610619468E-3]
[]
[null,"lit médicalisé (hors éléments de literie) "]
[null,"Nombre de matériel en utilisation"]
[null,"fréquence de renouvellement"]
[]
[null,null,"[pièces/an]","[%]","Filière actuelle"]
[null,"Nombre tot de matériel débarassé / an",{"$f":"SUM(C56:C61)","v":226},1]
[null,"réutilisable",5,{"$f":"IFERROR(C56/$C$55,0)","v":2.2123893805309734E-2}]
[null,"réutilisable si réparation",40,{"$f":"IFERROR(C57/$C$55,0)","v":0.17699115044247787}]
[null,"pièce détachée interessante",20,8.8495575221238937E-2]
[null,"Matériaux constitutif interessant",60,0.26548672566371684]
[null,"Pas de récupération ou recyclage possible",100,0.44247787610619471]
[null,"pas d'idée sur l'état du matériel",1,4.4247787610619468E-3]
[]
[null,"fauteuil médicalisé (Fauteuil relax / fauteuil releveur / Fauteuil coquille déclassés) "]
[null,"Nombre de matériel en utilisation"]
[null,"fréquence de renouvellement"]
[]
[null,null,"[pièces/an]","[%]","Filière actuelle"]
[null,"Nombre tot de matériel débarassé / an",{"$f":"SUM(C69:C74)","v":226},1]
[null,"réutilisable",5,{"$f":"IFERROR(C69/$C$68,0)","v":2.2123893805309734E-2}]
[null,"réutilisable si réparation",40,{"$f":"IFERROR(C70/$C$68,0)","v":0.17699115044247787}]
[null,"pièce détachée interessante",20,8.8495575221238937E-2]
[null,"Matériaux constitutif interessant",60,0.26548672566371684]
[null,"Pas de récupération ou recyclage possible",100,0.44247787610619471]
[null,"pas d'idée sur l'état du matériel",1,4.4247787610619468E-3]
[]
[null,"chaise médicale (chaise douche, siège de bain, chaise percée,... "]
[null,"Nombre de matériel en utilisation"]
[null,"fréquence de renouvellement"]
[]
[null,null,"[pièces/an]","[%]","Filière actuelle"]
[null,"Nombre tot de matériel débarassé / an",{"$f":"SUM(C82:C87)","v":226},1]
[null,"réutilisable",5,{"$f":"IFERROR(C82/$C$81,0)","v":2.2123893805309734E-2}]
[null,"réutilisable si réparation",40,{"$f":"IFERROR(C83/$C$81,0)","v":0.17699115044247787}]
[null,"pièce détachée interessante",20,8.8495575221238937E-2]
[null,"Matériaux constitutif interessant",60,0.26548672566371684]
[null,"Pas de récupération ou recyclage possible",100,0.44247787610619471]
[null,"pas d'idée sur l'état du matériel",1,4.4247787610619468E-3]
[]
[null,"autres aides à la mobilité (Déambulateur / Rollator/ Cadre de marche/handbike...) "]
[null,"Nombre de matériel en utilisation"]
[null,"fréquence de renouvellement"]
[]
[null,null,"[pièces/an]","[%]","Filière actuelle"]
[null,"Nombre tot de matériel débarassé / an",{"$f":"SUM(C95:C100)","v":226},1]
[null,"réutilisable",5,{"$f":"IFERROR(C95/$C$94,0)","v":2.2123893805309734E-2}]
[null,"réutilisable si réparation",40,{"$f":"IFERROR(C96/$C$94,0)","v":0.17699115044247787}]
[null,"pièce détachée interessante",20,8.8495575221238937E-2]
[null,"Matériaux constitutif interessant",60,0.26548672566371684]
[null,"Pas de récupération ou recyclage possible",100,0.44247787610619471]
[null,"pas d'idée sur l'état du matériel",1,4.4247787610619468E-3]

{"sheet":"Base de donnée","index":10,"n_rows":69,"n_cols":59,"rows_kept":69,"cut":false,"hidden":true,"merged":[[0,36,0,42],[0,50,0,58],[0,43,0,49],[0,0,0,1],[0,2,0,10],[0,11,0,19],[0,20,0,28],[0,29,0,35]]}
["Fractions sortantes",null,"Lieu de production",null,null,null,null,null,null,null,null,"Stockage intermédiaire",null,null,null,null,null,null,null,null,"Lieu d'enlèvement",null,null,null,null,null,null,null,null,"Collecte 1 (lieu de production vers stockage intermédiaire)",null,null,null,null,null,null,"Collecte 2 (Stockage intermédiaire  vers lieu d'enlèvement)",null,null,null,null,null,null,"Collecte 3 (lieu de production vers enlèvement final) ",null,null,null,null,null,null,"Enlèvement final"]
["Fractions","O/N","Contenant LP","contenant sur demande LP","Volume LP","unité LP.V","Prix LP","unité LP.(E) ","nombre LP","unité LP.N","Remarques","Contenant SI","contenant sur demande SI","Volume SI","unité SI.V","Prix SI","unité SI.(E)","nombre SI","unité SI.N","RemarquesSI","Contenant LE","contenant sur demande LE","Volume LE","unité LE.V","Prix LE","unité LE.(E)","nombre LE","unité LE.N","RemarquesLE","fréquence collecte 1","unité fc1","enlèvement sur demande c1","housekeeping c1","logistic c1","autre c1","Remarques c1","fréquence collecte  c2","unité fc2","enlèvement sur demande c2","housekeeping c2","logistic c2","autre c2","Remarques c2","fréquence collecte  c3","unité fc3","enlèvement sur demande c3","housekeeping c3","logistic c3","autre c3","Remarques c3","fréquence collecte  EV","unité fEV","enlèvement sur demande EV","nombre de collecte annuelle EV","opérateur EV","qté annuelle EV","cout annuel","traitement final","Remarques2"]
["PMC (emballage)"]
["Bouteilles et flacons en plastique"]
["Métalliques"]
["Cartons à boisson"]
["Plastique industriel"]
["Plastique souple transparent industriel"]
["Autre: …................................"]
["Métaux autres"]
["Papiers/cartons "]
["Cartons"]
["Papiers"]
["papier confidentiel"]
["Papier non confidentiel"]
["Verre"]
["Verre creux"]
["verres creux de type ménagé coloré"]
["verres creux de type ménagé incolore"]
["Verre plat"]
["Déchets organiques (alimentaires)"]
["Déchets verts"]
["Bois"]
["Bois non traités (A)"]
["palettes à usage unique"]
["Bois traité (B)"]
["Bois contaminé ou dangereux (C) "]
["DEEE"]
["TV, moniteur, électro"]
["Matériel informatique"]
["lampes à décharge"]
["Gros appareils électiques/ électroniques"]
["Petits appareils électriques/ électroniques"]
["Appareils d'éclairage"]
["Piles et accumulateurs"]
["Piles et accus"]
["Lampes portables à piles et accus"]
["Autres : …..........................."]
["Produits dangereux"]
["Cartouches d'imprimante"]
["Produits d'imagerie médicale"]
["peintures et solvants"]
["Mercure"]
["Xylène et formol"]
["Produits chimiques"]
["Produits d'entretien"]
["Produit phyto"]
["Amiante libre/ciment"]
["PCB et PCT"]
["Autres : …..........................."]
["Huile à usage alimentaire"]
["Huile à usage non alimentaire"]
["B2"]
["Liquides biologiques"]
["Médicaments périmés"]
["Produits médicaux périmés"]
["Déchets anatomiques"]
["Pièces anatomiques"]
["Amalgames dentaires"]
["DMIA"]
["Pacemakers non souillés"]
["Autres : …..........................."]
["Colles et résines sans substance dangereuse"]
["Pneus usagés"]
["VHU"]
["Textiles"]
["Inertes"]
["Résiduel (déchets non triés) "]
["Encombrants"]

{"sheet":"menu déroulant","index":11,"n_rows":37,"n_cols":9,"rows_kept":37,"cut":false,"hidden":true,"merged":[]}
["oui/non","type de contenant","unité volume","unité fréquence","couts ","nombre","traitement final","oui/non","Oui/non/Non pertinent"]
["oui","Adapté au cas par cas","L","/jour","€/an","pg","Aucun","Oui","Oui"]
["non","Boite en carton - classique","m³","/sem","€/ mois","mois/an","Incinération","Non","Non"]
[null,"Boite en carton + sac  jaune",null,"/mois","€/collecte","collecte/an","Recyclage","Contractant","Non pertinent"]
[null,"Boite en carton - jaune",null,"/an","€/kg","kg/an","Enfouissement"]
[null,"Boite en plastique",null,null,"€/pce","pce/an","Réemploi"]
[null,"Bulle",null,null,"gratuit","-","Réutilisation"]
[null,"Chariot métallique",null,null,null,null,"Compostage"]
[null,"Conteneur ajouré - bois",null,null,null,null,"Biométhanisation"]
[null,"Conteneur ajouré - métallique",null,null,null,null,"IC"]
[null,"Conteneur basculable GM - métallique"]
[null,"conteneur basculable GM - plastique"]
[null,"Conteneur basculable PM - plastique"]
[null,"Conteneur fermé - métallique"]
[null,"Conteneur fermé - plastique"]
[null,"Conteneur ouvert - métallique"]
[null,"Conteneur ouvert - plastique"]
[null,"Conteneur/compacteur"]
[null,"Fût plastique - bleu"]
[null,"Fût plastique - jaune"]
[null,"Fût plastique - transparent"]
[null,"Fût plastique - vert"]
[null,"Idem"]
[null,"Ilot de tri"]
[null,"Palette d'entreposage"]
[null,"Poubelle individuelle - fermée"]
[null,"Poubelle individuelle - ouverte"]
[null,"Poubelle ménagère - plastique"]
[null,"Presse à carton"]
[null,"regroupement sans contenant"]
[null,"Rigibox"]
[null,"Sac plastique - Bleu "]
[null,"Sac plastique - jaune"]
[null,"Sac plastique - noir/gris"]
[null,"Sac plastique - transparent"]
[null,"IC"]
[null,"NA"]